Workbook

Sheet Inputs
A1: Scenarios | B1: 1000
A2: Months | B2: 600
A3: dt | B3: 0.08333333333
A4: Initial Rate | B4: 0.0388
A5: Initial Target | B5: 0.0644
A6: Alpha | B6: 4.1
A7: Beta | B7: 2.2
A8: Volatility
A9: Target Volatility | B9: 0.6
A10: Adjusted Volatility | B10: 0.1
A11: Mean Target | B11: 0.0644
A12: Drift Base | B12: 0
A13: Reversion | B13: 0.2
A14: Barrier | B14: 0.04
A15: Cash Reserves | B15: 0
A16: Random Numbers | B16: 10

Sheet Monthly Stats
A1: Month | B1: Average | C1: Std Deviation | D1: Skewness | E1: Kurtosis | F1: 6th Moment | G1: Minimum | H1: Maximum
A2: 1 | B2: 0.0388 | C2: 0 | D2: 0 | E2: 0 | F2: 0 | G2: 0.0388 | H2: 0.0388
A3: 2 | B3: 0.03911021804 | C3: 0.001075024695 | D3: 0.1272509919 | E3: 3.036501902 | F3: 14.55729473 | G3: 0.03597628204 | H3: 0.04247016127
A4: 3 | B4: 0.03945957489 | C4: 0.001583798135 | D4: 0.09656459853 | E4: 2.712966365 | F4: 11.495893 | G4: 0.03445672417 | H4: 0.04455949131
A5: 4 | B5: 0.03979959592 | C5: 0.00193554755 | D5: 0.2369083443 | E5: 2.932233786 | F5: 14.13456196 | G5: 0.03406127552 | H5: 0.04611797467
A6: 5 | B6: 0.0402211244 | C6: 0.002239173675 | D6: 0.1879122903 | E6: 2.896683498 | F6: 13.3851353 | G6: 0.03372649998 | H6: 0.04765080022
A7: 6 | B7: 0.04061712826 | C7: 0.00252521569 | D7: 0.2259414795 | E7: 2.961401154 | F7: 14.36675227 | G7: 0.03360577757 | H7: 0.04987715647
A8: 7 | B8: 0.04100427225 | C8: 0.002771082771 | D8: 0.2561415243 | E8: 2.91797355 | F8: 13.02383566 | G8: 0.03287734101 | H8: 0.04944026413
A9: 8 | B9: 0.04132920293 | C9: 0.002981278696 | D9: 0.296375893 | E9: 2.867884659 | F9: 13.24369394 | G9: 0.03312319677 | H9: 0.05075464047
A10: 9 | B10: 0.04166514972 | C10: 0.003217209479 | D10: 0.3137692502 | E10: 3.008296246 | F10: 16.0990721 | G10: 0.03224616994 | H10: 0.05363715825
A11: 10 | B11: 0.04197197963 | C11: 0.003411335134 | D11: 0.1994376682 | E11: 2.867542528 | F11: 14.18337256 | G11: 0.03138504511 | H11: 0.05435780743
A12: 11 | B12: 0.04232276286 | C12: 0.003625623783 | D12: 0.2534585096 | E12: 2.8594127 | F12: 13.60735333 | G12: 0.03198098423 | H12: 0.0543998055
A13: 12 | B13: 0.04261549794 | C13: 0.003800642371 | D13: 0.2716195869 | E13: 2.896168455 | F13: 13.6384197 | G13: 0.03221750975 | H13: 0.05479410047
A14: 13 | B14: 0.04294336088 | C14: 0.00400855033 | D14: 0.2062135645 | E14: 2.951451655 | F14: 15.25235498 | G14: 0.03197745495 | H14: 0.05826666202
A15: 14 | B15: 0.04324565438 | C15: 0.0042240386 | D15: 0.1958652149 | E15: 2.861193807 | F15: 13.41202075 | G15: 0.03099956782 | H15: 0.05825814971
A16: 15 | B16: 0.04361872154 | C16: 0.004480020506 | D16: 0.2313438262 | E16: 2.962673629 | F16: 14.80138006 | G16: 0.03102477227 | H16: 0.06017325565
A17: 16 | B17: 0.04394928247 | C17: 0.004617676781 | D17: 0.3074891455 | E17: 3.160599682 | F17: 18.45428789 | G17: 0.03130541739 | H17: 0.06224425847
A18: 17 | B18: 0.04423864802 | C18: 0.004854098211 | D18: 0.3864590236 | E18: 3.611636083 | F18: 27.38778413 | G18: 0.02902287229 | H18: 0.06534983658
A19: 18 | B19: 0.04454050733 | C19: 0.005111692348 | D19: 0.3959230702 | E19: 4.106480124 | F19: 45.72262208 | G19: 0.02695390589 | H19: 0.07194407786
A20: 19 | B20: 0.04488862842 | C20: 0.005360705124 | D20: 0.4918953434 | E20: 4.524758528 | F20: 62.62810375 | G20: 0.02614282291 | H20: 0.07617581141
A21: 20 | B21: 0.04521505047 | C21: 0.005505571145 | D21: 0.3872215031 | E21: 4.316420191 | F21: 59.44179754 | G21: 0.02666501831 | H21: 0.07754863826
A22: 21 | B22: 0.04546948309 | C22: 0.005677996632 | D22: 0.3778604436 | E22: 4.648950629 | F22: 78.17317221 | G22: 0.02635375852 | H22: 0.08076014345
A23: 22 | B23: 0.04565262829 | C23: 0.005850616631 | D23: 0.3870285252 | E23: 4.537930212 | F23: 63.20543858 | G23: 0.02630256697 | H23: 0.07969644591
A24: 23 | B24: 0.04592009327 | C24: 0.006033707148 | D24: 0.4420413645 | E24: 4.780765848 | F24: 69.22407175 | G24: 0.0256310892 | H24: 0.08135459795
A25: 24 | B25: 0.04623810356 | C25: 0.006264665143 | D25: 0.4932599357 | E25: 5.272189179 | F25: 92.60276816 | G25: 0.02548965272 | H25: 0.08576511158
A26: 25 | B26: 0.04648261491 | C26: 0.006447367976 | D26: 0.545674318 | E26: 5.730110819 | F26: 118.5133417 | G26: 0.02476761666 | H26: 0.08922398766
A27: 26 | B27: 0.04672913862 | C27: 0.006645174366 | D27: 0.6280168873 | E27: 6.106831147 | F27: 132.5572992 | G27: 0.02445972869 | H27: 0.09126907238
A28: 27 | B28: 0.04700181405 | C28: 0.006811484161 | D28: 0.6161950888 | E28: 6.088732385 | F28: 125.4598607 | G28: 0.02435859197 | H28: 0.09046120898
A29: 28 | B29: 0.04732248804 | C29: 0.007121157935 | D29: 0.7637019935 | E29: 6.806729819 | F29: 159.3601525 | G29: 0.02413006398 | H29: 0.09299713491
A30: 29 | B30: 0.04755623385 | C30: 0.007256487806 | D30: 0.7012636117 | E30: 6.315910128 | F30: 129.6283733 | G30: 0.02432215379 | H30: 0.09174369154
A31: 30 | B31: 0.04784019263 | C31: 0.007489959783 | D31: 0.7243684705 | E31: 6.563445228 | F31: 145.5565102 | G31: 0.02307893047 | H31: 0.09583742666
A32: 31 | B32: 0.04817610546 | C32: 0.007708006268 | D32: 0.683462108 | E32: 6.438153203 | F32: 137.2028906 | G32: 0.02199973597 | H32: 0.0971276415
A33: 32 | B33: 0.04841365734 | C33: 0.007875931223 | D33: 0.7084269972 | E33: 6.533270938 | F33: 144.7919552 | G33: 0.02180847223 | H33: 0.1005266701
A34: 33 | B34: 0.04867305398 | C34: 0.008095368455 | D34: 0.6959472886 | E34: 6.354144202 | F34: 138.3837302 | G34: 0.02166566554 | H34: 0.1029044826
A35: 34 | B35: 0.04888446389 | C35: 0.008295350919 | D35: 0.6028012718 | E35: 5.96249577 | F35: 117.593235 | G35: 0.02182300612 | H35: 0.1027647877
A36: 35 | B36: 0.04916485717 | C36: 0.008385918561 | D36: 0.6787110818 | E36: 6.610973312 | F36: 164.4914297 | G36: 0.02104915749 | H36: 0.1082543871
A37: 36 | B37: 0.04944106038 | C37: 0.008675151391 | D37: 0.8979657372 | E37: 7.744148534 | F37: 236.3913905 | G37: 0.02138705619 | H37: 0.1146358701
A38: 37 | B38: 0.04977255866 | C38: 0.008982757824 | D38: 0.9515066267 | E38: 7.764140402 | F38: 221.075118 | G38: 0.02100718785 | H38: 0.1152172475
A39: 38 | B39: 0.05004923056 | C39: 0.009266550517 | D39: 1.008725277 | E39: 8.291944005 | F39: 268.6961028 | G39: 0.0210999629 | H39: 0.1209665035
A40: 39 | B40: 0.0502727474 | C40: 0.009478319883 | D40: 1.133484745 | E40: 9.415426119 | F40: 381.8751237 | G40: 0.02061378175 | H40: 0.128566329
A41: 40 | B41: 0.05048494662 | C41: 0.009640960201 | D41: 1.064819252 | E41: 8.767530633 | F41: 324.9584519 | G41: 0.02033585067 | H41: 0.1278198228
A42: 41 | B42: 0.05069061913 | C42: 0.009926522962 | D42: 1.022190297 | E42: 7.993583443 | F42: 248.4012762 | G42: 0.02064604232 | H42: 0.1261021326
A43: 42 | B43: 0.05092542441 | C43: 0.01024018805 | D43: 1.109109083 | E43: 8.51875591 | F43: 295.8728069 | G43: 0.02142391396 | H43: 0.131573533
A44: 43 | B44: 0.05110600699 | C44: 0.01035325695 | D44: 1.025153696 | E44: 7.634649303 | F44: 218.580085 | G44: 0.02163694569 | H44: 0.1280646073
A45: 44 | B45: 0.05134376745 | C45: 0.01067644384 | D45: 1.07702213 | E45: 7.910854434 | F45: 228.8586096 | G45: 0.02121889619 | H45: 0.1308953029
A46: 45 | B46: 0.05155747896 | C46: 0.01091562554 | D46: 1.115335296 | E46: 8.082488127 | F46: 241.9350128 | G46: 0.02066065443 | H46: 0.1337602499
A47: 46 | B47: 0.05185615936 | C47: 0.01118275286 | D47: 1.11388692 | E47: 7.586245303 | F47: 186.605204 | G47: 0.02014583852 | H47: 0.1306001342
A48: 47 | B48: 0.05207297261 | C48: 0.01143107853 | D48: 1.098811514 | E48: 7.27508423 | F48: 163.8073908 | G48: 0.01959704313 | H48: 0.1303184678
A49: 48 | B49: 0.05229998241 | C49: 0.01171852988 | D49: 1.14476618 | E49: 7.592408446 | F49: 175.5418242 | G49: 0.0192281337 | H49: 0.1325152862
A50: 49 | B50: 0.05240360528 | C50: 0.01183475226 | D50: 1.032461116 | E50: 6.810652751 | F50: 128.9979409 | G50: 0.01819734658 | H50: 0.127019341
A51: 50 | B51: 0.05263753419 | C51: 0.01219864166 | D51: 1.08149369 | E51: 6.946107115 | F51: 128.4605444 | G51: 0.01879549791 | H51: 0.1284663557
A52: 51 | B52: 0.0529261623 | C52: 0.01261095977 | D52: 1.187801781 | E52: 7.680231339 | F52: 180.7703168 | G52: 0.01781732199 | H52: 0.1408083927
A53: 52 | B53: 0.05324497652 | C53: 0.01300836908 | D53: 1.181038838 | E53: 7.624151219 | F53: 176.1556216 | G53: 0.01789884642 | H53: 0.1428042034
A54: 53 | B54: 0.05347980043 | C54: 0.01337753356 | D54: 1.26442212 | E54: 8.107879847 | F54: 205.8279227 | G54: 0.01728540588 | H54: 0.1487674378
A55: 54 | B55: 0.05364641877 | C55: 0.01364692287 | D55: 1.318435424 | E55: 8.397945547 | F55: 211.4025403 | G55: 0.01775797397 | H55: 0.148950939
A56: 55 | B56: 0.05387927957 | C56: 0.01407556214 | D56: 1.388835727 | E56: 8.797275246 | F56: 239.347704 | G56: 0.01721107518 | H56: 0.1551160572
A57: 56 | B57: 0.05413000627 | C57: 0.01434650119 | D57: 1.355813905 | E57: 8.239151641 | F57: 188.9156308 | G57: 0.01680787545 | H57: 0.1488454428
A58: 57 | B58: 0.05435113534 | C58: 0.01469977824 | D58: 1.449086014 | E58: 8.977277728 | F58: 236.3787524 | G58: 0.01649654786 | H58: 0.1569874042
A59: 58 | B59: 0.05458615262 | C59: 0.0150047836 | D59: 1.509836466 | E59: 9.141682566 | F59: 233.1509717 | G59: 0.0159420674 | H59: 0.1564626829
A60: 59 | B60: 0.05474129012 | C60: 0.01532783173 | D60: 1.550828805 | E60: 9.498825993 | F60: 264.8754577 | G60: 0.01603547773 | H60: 0.1658088
A61: 60 | B61: 0.05494677149 | C61: 0.01545632965 | D61: 1.487904146 | E61: 9.099857297 | F61: 247.9063942 | G61: 0.01557556417 | H61: 0.1666183457
A62: 61 | B62: 0.0551573636 | C62: 0.01571486002 | D62: 1.449445676 | E62: 8.618522674 | F62: 207.8252301 | G62: 0.01586635609 | H62: 0.1616453046
A63: 62 | B63: 0.0552422759 | C63: 0.01591849591 | D63: 1.431176538 | E63: 8.507223016 | F63: 199.1243651 | G63: 0.01578270024 | H63: 0.1611337659
A64: 63 | B64: 0.05549507037 | C64: 0.01610997452 | D64: 1.357944328 | E64: 8.136733152 | F64: 188.7859077 | G64: 0.01560692236 | H64: 0.1620876648
A65: 64 | B65: 0.05576268087 | C65: 0.01651432289 | D65: 1.392581282 | E65: 8.385494914 | F65: 201.657879 | G65: 0.01513749277 | H65: 0.162090137
A66: 65 | B66: 0.05589981396 | C66: 0.01673853594 | D66: 1.399546233 | E66: 8.431716998 | F66: 205.1204933 | G66: 0.01517001597 | H66: 0.1647962213
A67: 66 | B67: 0.05610227249 | C67: 0.01699196075 | D67: 1.388429187 | E67: 8.440103853 | F67: 217.5471332 | G67: 0.01500016737 | H67: 0.1722632986
A68: 67 | B68: 0.05630152831 | C68: 0.01723259439 | D68: 1.364911544 | E68: 8.118469516 | F68: 204.0814563 | G68: 0.01461106363 | H68: 0.1693303167
A69: 68 | B69: 0.05659783427 | C69: 0.01766129417 | D69: 1.410531478 | E69: 8.353997807 | F69: 221.8310737 | G69: 0.01455218167 | H69: 0.1784248271
A70: 69 | B70: 0.05677663976 | C70: 0.01797800689 | D70: 1.442627235 | E70: 8.447370437 | F70: 221.1921206 | G70: 0.01470550932 | H70: 0.1810633257
A71: 70 | B71: 0.0569419787 | C71: 0.01829103661 | D71: 1.466730119 | E71: 8.554241586 | F71: 231.277221 | G71: 0.01450176462 | H71: 0.1853747067
A72: 71 | B72: 0.05712828491 | C72: 0.01864036862 | D72: 1.465298765 | E72: 8.359738855 | F72: 216.6250518 | G72: 0.01429707613 | H72: 0.1820069754
A73: 72 | B73: 0.0573637331 | C73: 0.01905750448 | D73: 1.514947472 | E73: 8.540199246 | F73: 225.3905582 | G73: 0.01371428664 | H73: 0.1898144306
A74: 73 | B74: 0.05749077594 | C74: 0.01928830645 | D74: 1.43441992 | E74: 7.611336673 | F74: 160.5292955 | G74: 0.01406272343 | H74: 0.1813686776
A75: 74 | B75: 0.05754631352 | C75: 0.01939954923 | D75: 1.431931099 | E75: 7.460492379 | F75: 143.7176204 | G75: 0.01388826338 | H75: 0.1730733923
A76: 75 | B76: 0.05762748568 | C76: 0.01961125057 | D76: 1.437133274 | E76: 7.436376239 | F76: 140.524662 | G76: 0.01417278209 | H76: 0.1721038925
A77: 76 | B77: 0.05780387204 | C77: 0.01995602203 | D77: 1.493227328 | E77: 7.735480927 | F77: 149.6418637 | G77: 0.01319724927 | H77: 0.1744189362
A78: 77 | B78: 0.05786404945 | C78: 0.02004860935 | D78: 1.464388973 | E78: 7.588732463 | F78: 145.8228184 | G78: 0.01299282764 | H78: 0.1763198675
A79: 78 | B79: 0.0580403432 | C79: 0.02039233298 | D79: 1.493800793 | E79: 7.643298535 | F79: 145.7455682 | G79: 0.01354795034 | H79: 0.1794407648
A80: 79 | B80: 0.05821355689 | C80: 0.02074609799 | D80: 1.502414168 | E80: 7.551484391 | F80: 137.8229395 | G80: 0.01330738174 | H80: 0.1787457583
A81: 80 | B81: 0.05830828116 | C81: 0.02089229753 | D81: 1.463332237 | E81: 7.28350085 | F81: 129.8369303 | G81: 0.01420779471 | H81: 0.1798242389
A82: 81 | B82: 0.05843592592 | C82: 0.02130593382 | D82: 1.515448055 | E82: 7.569556343 | F82: 142.7875908 | G82: 0.01447427576 | H82: 0.1826925804
A83: 82 | B83: 0.05861140119 | C83: 0.0216124737 | D83: 1.561465279 | E83: 7.954057832 | F83: 164.7416492 | G83: 0.0141853758 | H83: 0.1912577458
A84: 83 | B84: 0.0587973286 | C84: 0.02198650661 | D84: 1.550690579 | E84: 7.755057503 | F84: 153.6429441 | G84: 0.01337583826 | H84: 0.1917857801
A85: 84 | B85: 0.05888484527 | C85: 0.02216299161 | D85: 1.584577174 | E85: 8.025138325 | F85: 165.7085238 | G85: 0.01411931835 | H85: 0.1920994082
A86: 85 | B86: 0.05907854746 | C86: 0.02238225671 | D86: 1.583420082 | E86: 8.003714415 | F86: 165.9074626 | G86: 0.01453937241 | H86: 0.1968512996
A87: 86 | B87: 0.05922367717 | C87: 0.0225965566 | D87: 1.557647722 | E87: 7.761163025 | F87: 153.8364732 | G87: 0.01419097803 | H87: 0.1987107361
A88: 87 | B88: 0.05933370033 | C88: 0.02277182286 | D88: 1.566527994 | E88: 7.851155919 | F88: 160.7333357 | G88: 0.01327262194 | H88: 0.2013205079
A89: 88 | B89: 0.059502059 | C89: 0.02299451245 | D89: 1.539441134 | E89: 7.596415294 | F89: 151.5023187 | G89: 0.01363924839 | H89: 0.2015920062
A90: 89 | B90: 0.05971416908 | C90: 0.02323793818 | D90: 1.547711959 | E90: 7.679260298 | F90: 159.2718051 | G90: 0.01412322543 | H90: 0.2103208943
A91: 90 | B91: 0.05993887585 | C91: 0.02358776946 | D91: 1.574869784 | E91: 7.804775803 | F91: 162.3834714 | G91: 0.0141330367 | H91: 0.2110258969
A92: 91 | B92: 0.06010856078 | C92: 0.0237251493 | D92: 1.50499999 | E92: 7.241389672 | F92: 134.3235066 | G92: 0.01373817458 | H92: 0.2020570625
A93: 92 | B93: 0.06026081502 | C93: 0.02415936838 | D93: 1.595733065 | E93: 7.951931084 | F93: 176.4517009 | G93: 0.01349196305 | H93: 0.2201261603
A94: 93 | B94: 0.06038396338 | C94: 0.02447345509 | D94: 1.645906668 | E94: 8.250503849 | F94: 189.9039329 | G94: 0.01362734201 | H94: 0.2239455867
A95: 94 | B95: 0.060389131 | C95: 0.02471707455 | D95: 1.678405022 | E95: 8.364051192 | F95: 191.047621 | G95: 0.01401295701 | H95: 0.2241609163
A96: 95 | B96: 0.06066794699 | C96: 0.0249819886 | D96: 1.714177305 | E96: 8.701938992 | F96: 213.3070106 | G96: 0.01408765865 | H96: 0.231539103
A97: 96 | B97: 0.06067324951 | C97: 0.02506130908 | D97: 1.710950419 | E97: 8.732918554 | F97: 218.8235274 | G97: 0.0137565786 | H97: 0.235149452
A98: 97 | B98: 0.06073417797 | C98: 0.0253402362 | D98: 1.707200294 | E98: 8.611775409 | F98: 209.5921079 | G98: 0.01333184394 | H98: 0.2357083562
A99: 98 | B99: 0.06084218932 | C99: 0.02550283289 | D99: 1.702780352 | E99: 8.739633627 | F99: 225.0404899 | G99: 0.01294084351 | H99: 0.2410226052
A100: 99 | B100: 0.06099996246 | C100: 0.0258803439 | D100: 1.773960258 | E100: 9.303370606 | F100: 265.4529003 | G100: 0.01252901576 | H100: 0.2523154486
A101: 100 | B101: 0.06108870735 | C101: 0.02592262445 | D101: 1.754750058 | E101: 9.296698622 | F101: 274.1556895 | G101: 0.01224399933 | H101: 0.2550386025
A102: 101 | B102: 0.06125355536 | C102: 0.02623050666 | D102: 1.764780732 | E102: 9.292472811 | F102: 273.0761866 | G102: 0.01129659967 | H102: 0.2576165949
A103: 102 | B103: 0.06131778462 | C103: 0.02648213918 | D103: 1.755586129 | E103: 9.047870833 | F103: 250.8827237 | G103: 0.01159692677 | H103: 0.2555816279
A104: 103 | B104: 0.06133821247 | C104: 0.0265105514 | D104: 1.729429121 | E104: 8.864066671 | F104: 240.0774754 | G104: 0.01077664417 | H104: 0.2536515842
A105: 104 | B105: 0.06142546745 | C105: 0.02665376193 | D105: 1.705486816 | E105: 8.54291892 | F105: 212.4259897 | G105: 0.01079620521 | H105: 0.248328367
A106: 105 | B106: 0.06147440883 | C106: 0.02671047085 | D106: 1.666005118 | E106: 8.148617753 | F106: 186.3789712 | G106: 0.01037338138 | H106: 0.2428172898
A107: 106 | B107: 0.06156411879 | C107: 0.02679994207 | D107: 1.614862814 | E107: 7.591329204 | F107: 144.3985847 | G107: 0.01061096354 | H107: 0.225948374
A108: 107 | B108: 0.06162434437 | C108: 0.02690763567 | D108: 1.605698293 | E108: 7.498353324 | F108: 137.53559 | G108: 0.01024095466 | H108: 0.2208357074
A109: 108 | B109: 0.06173411732 | C109: 0.02712514547 | D109: 1.627989581 | E109: 7.520925411 | F109: 130.8340317 | G109: 0.009969009299 | H109: 0.207109942
A110: 109 | B110: 0.06171127494 | C110: 0.02724338138 | D110: 1.622268346 | E110: 7.503407506 | F110: 130.8580072 | G110: 0.009757264273 | H110: 0.2021221997
A111: 110 | B111: 0.06174615254 | C111: 0.02726238646 | D111: 1.563011299 | E111: 7.13474933 | F111: 118.1244483 | G111: 0.009383094567 | H111: 0.2044761665
A112: 111 | B112: 0.06179417518 | C112: 0.02748181509 | D112: 1.540238224 | E112: 6.924622562 | F112: 110.7648769 | G112: 0.009417142275 | H112: 0.2076629607
A113: 112 | B113: 0.06198142291 | C113: 0.02767695988 | D113: 1.537257127 | E113: 6.907783807 | F113: 109.5849473 | G113: 0.009112028691 | H113: 0.2023466766
A114: 113 | B114: 0.06207822073 | C114: 0.0278545485 | D114: 1.521938617 | E114: 6.754167565 | F114: 103.9473408 | G114: 0.009257120347 | H114: 0.2068810682
A115: 114 | B115: 0.0622082494 | C115: 0.02803296523 | D115: 1.508142851 | E115: 6.63766918 | F115: 99.32011232 | G115: 0.009189986904 | H115: 0.2053408477
A116: 115 | B116: 0.06235225379 | C116: 0.02810124389 | D116: 1.47693528 | E116: 6.527729879 | F116: 96.67573163 | G116: 0.009068564645 | H116: 0.2022354157
A117: 116 | B117: 0.06240772691 | C117: 0.02829948712 | D117: 1.468071252 | E117: 6.439549678 | F117: 92.55778084 | G117: 0.00876076333 | H117: 0.2028564891
A118: 117 | B118: 0.06242582209 | C118: 0.02847084697 | D118: 1.469193205 | E118: 6.467647514 | F118: 93.71451695 | G118: 0.008763607088 | H118: 0.2019631548
A119: 118 | B119: 0.062566515 | C119: 0.02852544797 | D119: 1.458913608 | E119: 6.442009314 | F119: 94.80558854 | G119: 0.00864835518 | H119: 0.2080010891
A120: 119 | B120: 0.06270603278 | C120: 0.02859241372 | D120: 1.443490008 | E120: 6.363390917 | F120: 91.88861952 | G120: 0.008396819877 | H120: 0.2040108613
A121: 120 | B121: 0.06274617966 | C121: 0.0287365343 | D121: 1.445816749 | E121: 6.367040408 | F121: 92.57861389 | G121: 0.008348733638 | H121: 0.2085259724
A122: 121 | B122: 0.06280353353 | C122: 0.02879974803 | D122: 1.41831505 | E122: 6.213491016 | F122: 89.03009946 | G122: 0.008421393785 | H122: 0.2118514334
A123: 122 | B123: 0.06296705602 | C123: 0.0290637417 | D123: 1.45105806 | E123: 6.432315309 | F123: 99.19131103 | G123: 0.008288419848 | H123: 0.2181192339
A124: 123 | B124: 0.06301902408 | C124: 0.02921013539 | D124: 1.456572103 | E124: 6.468102699 | F124: 102.6889221 | G124: 0.008155468311 | H124: 0.224668773
A125: 124 | B125: 0.06302671801 | C125: 0.02930712193 | D125: 1.463947749 | E125: 6.515857468 | F125: 106.4077403 | G125: 0.007755854873 | H125: 0.2306387802
A126: 125 | B126: 0.06319001178 | C126: 0.02958164487 | D126: 1.510765849 | E126: 6.883150651 | F126: 125.9510216 | G126: 0.007933645416 | H126: 0.2388357495
A127: 126 | B127: 0.06322150697 | C127: 0.02966051185 | D127: 1.502688447 | E127: 6.840098043 | F127: 126.0952396 | G127: 0.007822333789 | H127: 0.2413490187
A128: 127 | B128: 0.06338468721 | C128: 0.02994269389 | D128: 1.505713924 | E128: 6.745756356 | F128: 119.6614428 | G128: 0.007967085404 | H128: 0.2415002034
A129: 128 | B129: 0.06343897846 | C129: 0.03026604092 | D129: 1.556883473 | E129: 7.040709872 | F129: 131.5223019 | G129: 0.008406250996 | H129: 0.2440645839
A130: 129 | B130: 0.06341803473 | C130: 0.03037459323 | D130: 1.53715745 | E130: 6.862442036 | F130: 122.289018 | G130: 0.00824176489 | H130: 0.2379550456
A131: 130 | B131: 0.06350776679 | C131: 0.0305449698 | D131: 1.550033294 | E131: 6.981803959 | F131: 130.050477 | G131: 0.008532144323 | H131: 0.2447720331
A132: 131 | B132: 0.06347026688 | C132: 0.03063179035 | D132: 1.580103558 | E132: 7.148094769 | F132: 134.8504554 | G132: 0.008346454582 | H132: 0.2466715869
A133: 132 | B133: 0.06352532661 | C133: 0.03082070878 | D133: 1.607093381 | E133: 7.323215308 | F133: 143.6613809 | G133: 0.008748526545 | H133: 0.250106587
A134: 133 | B134: 0.06356421936 | C134: 0.03094170774 | D134: 1.59683479 | E134: 7.269433565 | F134: 142.4337417 | G134: 0.008549916696 | H134: 0.2483564898
A135: 134 | B135: 0.06365340689 | C135: 0.0313583287 | D135: 1.653023742 | E135: 7.592443204 | F135: 157.0897624 | G135: 0.008685429552 | H135: 0.2559926236
A136: 135 | B136: 0.06372393045 | C136: 0.03171086153 | D136: 1.705656654 | E136: 7.951878789 | F136: 176.3291802 | G136: 0.008671493169 | H136: 0.2601826703
A137: 136 | B137: 0.06375170257 | C137: 0.03162337811 | D137: 1.686046137 | E137: 7.883822043 | F137: 175.7380401 | G137: 0.008627420549 | H137: 0.26366691
A138: 137 | B138: 0.06382514241 | C138: 0.03168671169 | D138: 1.666556178 | E138: 7.69376916 | F138: 163.9099424 | G138: 0.008509250775 | H138: 0.2557600044
A139: 138 | B139: 0.06384590247 | C139: 0.03165890454 | D139: 1.641527538 | E139: 7.406577626 | F139: 144.4625202 | G139: 0.008615249328 | H139: 0.2502149295
A140: 139 | B140: 0.0638581482 | C140: 0.0318864671 | D140: 1.662616221 | E140: 7.599043826 | F140: 158.6863524 | G140: 0.008682574035 | H140: 0.2644712634
A141: 140 | B141: 0.06395505669 | C141: 0.03204816742 | D141: 1.671131925 | E141: 7.728891228 | F141: 172.1513378 | G141: 0.008288369032 | H141: 0.2681672489
A142: 141 | B142: 0.06401050248 | C142: 0.03217815075 | D142: 1.684613142 | E142: 7.835109751 | F142: 177.5536623 | G142: 0.008274640263 | H142: 0.2727733435
A143: 142 | B143: 0.06395943946 | C143: 0.03189738721 | D143: 1.616933172 | E143: 7.363405563 | F143: 152.4031218 | G143: 0.008662652172 | H143: 0.2616483792
A144: 143 | B144: 0.06393771612 | C144: 0.03202676114 | D144: 1.625634659 | E144: 7.372239631 | F144: 151.0972233 | G144: 0.00828358508 | H144: 0.2651531951
A145: 144 | B145: 0.06403254505 | C145: 0.03221354693 | D145: 1.657601297 | E145: 7.598185763 | F145: 161.2272234 | G145: 0.008809629395 | H145: 0.2704439183
A146: 145 | B146: 0.06401791972 | C146: 0.03219862001 | D146: 1.693944832 | E146: 8.104287683 | F146: 201.3618498 | G146: 0.008602253113 | H146: 0.2851153275
A147: 146 | B147: 0.06395989001 | C147: 0.03205442831 | D147: 1.652230835 | E147: 7.732108008 | F147: 177.4027214 | G147: 0.008450897042 | H147: 0.2782162837
A148: 147 | B148: 0.06400783013 | C148: 0.03208826889 | D148: 1.655110137 | E148: 7.773366812 | F148: 180.4128716 | G148: 0.008483148209 | H148: 0.2807604147
A149: 148 | B149: 0.06405592211 | C149: 0.03233142013 | D149: 1.704427611 | E149: 8.155646042 | F149: 203.1875961 | G149: 0.008936818311 | H149: 0.2893887675
A150: 149 | B150: 0.06406448875 | C150: 0.03237739366 | D150: 1.688095759 | E150: 8.118451312 | F150: 207.0403281 | G150: 0.009611537166 | H150: 0.2921044702
A151: 150 | B151: 0.06410686834 | C151: 0.03234758342 | D151: 1.672397544 | E151: 7.956313226 | F151: 196.1832006 | G151: 0.009339410062 | H151: 0.2891571223
A152: 151 | B152: 0.06419852692 | C152: 0.03252585311 | D152: 1.707307615 | E152: 8.314633485 | F152: 224.8290256 | G152: 0.00923189534 | H152: 0.2983602431
A153: 152 | B153: 0.06412826654 | C153: 0.03252380563 | D153: 1.686960676 | E153: 8.08334077 | F153: 207.5844575 | G153: 0.009348190756 | H153: 0.2940768908
A154: 153 | B154: 0.06408709001 | C154: 0.03245449773 | D154: 1.666411967 | E154: 7.9111111 | F154: 193.7950015 | G154: 0.009762790041 | H154: 0.2893083599
A155: 154 | B155: 0.06400135531 | C155: 0.03263985122 | D155: 1.761035086 | E155: 8.751132853 | F155: 241.9412809 | G155: 0.01053940728 | H155: 0.2968986124
A156: 155 | B156: 0.06405597279 | C156: 0.03269357262 | D156: 1.744776017 | E156: 8.62542749 | F156: 234.3818716 | G156: 0.01078037851 | H156: 0.2963673867
A157: 156 | B157: 0.06406453298 | C157: 0.03291174845 | D157: 1.782539035 | E157: 8.969188708 | F157: 258.3819165 | G157: 0.01089785077 | H157: 0.3034142524
A158: 157 | B158: 0.06406866142 | C158: 0.03301072371 | D158: 1.79424648 | E158: 8.973901175 | F158: 257.7933171 | G158: 0.0113528938 | H158: 0.3041468988
A159: 158 | B159: 0.06404033123 | C159: 0.03317094153 | D159: 1.808137461 | E159: 9.074872198 | F159: 264.1468938 | G159: 0.01152785782 | H159: 0.3065857024
A160: 159 | B160: 0.06393676519 | C160: 0.03284146591 | D160: 1.721634386 | E160: 8.378624407 | F160: 219.0419521 | G160: 0.0112903765 | H160: 0.2942969339
A161: 160 | B161: 0.06389333351 | C161: 0.03297160426 | D161: 1.731320567 | E161: 8.401521935 | F161: 220.1593055 | G161: 0.0109487953 | H161: 0.2969255853
A162: 161 | B162: 0.06391166291 | C162: 0.03303947799 | D162: 1.725917891 | E162: 8.511441426 | F162: 238.9708681 | G162: 0.01101928085 | H162: 0.3047710687
A163: 162 | B163: 0.06400770838 | C163: 0.03310400975 | D163: 1.731795267 | E163: 8.672294713 | F163: 254.9451177 | G163: 0.01108643613 | H163: 0.3095601929
A164: 163 | B164: 0.06412187459 | C164: 0.03329543707 | D164: 1.705509405 | E164: 8.185646604 | F164: 202.9942057 | G164: 0.01133347921 | H164: 0.2922232902
A165: 164 | B165: 0.06419737337 | C165: 0.03345211141 | D165: 1.739949737 | E165: 8.625675222 | F165: 243.7958768 | G165: 0.01109414806 | H165: 0.3082730564
A166: 165 | B166: 0.06413296327 | C166: 0.03353211495 | D166: 1.755244126 | E166: 8.724973039 | F166: 245.5389195 | G166: 0.01148188509 | H166: 0.3070416967
A167: 166 | B167: 0.06410758157 | C167: 0.03341397776 | D167: 1.767324049 | E167: 9.026860213 | F167: 280.6560015 | G167: 0.01140793812 | H167: 0.3161163097
A168: 167 | B168: 0.06416100203 | C168: 0.03348139725 | D168: 1.746326085 | E168: 8.787156372 | F168: 257.5105597 | G168: 0.01160518334 | H168: 0.3121171499
A169: 168 | B169: 0.0641437945 | C169: 0.03341543554 | D169: 1.705563878 | E169: 8.449889998 | F169: 232.1655232 | G169: 0.01146865376 | H169: 0.3035816656
A170: 169 | B170: 0.06416158696 | C170: 0.03343534706 | D170: 1.657270351 | E170: 7.894747964 | F170: 188.8302275 | G170: 0.01143521454 | H170: 0.291756912
A171: 170 | B171: 0.06410916475 | C171: 0.03332080836 | D171: 1.619253856 | E171: 7.629624964 | F171: 176.7838925 | G171: 0.01179875764 | H171: 0.2884329817
A172: 171 | B172: 0.06410493432 | C172: 0.03325906196 | D172: 1.615051713 | E172: 7.640778979 | F172: 181.6348693 | G172: 0.01121674491 | H172: 0.2921792227
A173: 172 | B173: 0.06415157472 | C173: 0.03334743486 | D173: 1.649173448 | E173: 8.048470282 | F173: 216.4928676 | G173: 0.01150198888 | H173: 0.3042531337
A174: 173 | B174: 0.06404606218 | C174: 0.033114892 | D174: 1.619522638 | E174: 7.872645302 | F174: 208.6737425 | G174: 0.01141257245 | H174: 0.3011464005
A175: 174 | B175: 0.06399391933 | C175: 0.03313779213 | D175: 1.594176318 | E175: 7.558235804 | F175: 179.3151066 | G175: 0.0112498158 | H175: 0.290135472
A176: 175 | B176: 0.06401910168 | C176: 0.03310706637 | D176: 1.572788252 | E176: 7.384480454 | F176: 168.0731775 | G176: 0.0111012093 | H176: 0.2860783763
A177: 176 | B177: 0.06407384756 | C177: 0.03315540877 | D177: 1.583827151 | E177: 7.491703738 | F177: 178.5426189 | G177: 0.01093082943 | H177: 0.2920188156
A178: 177 | B178: 0.06405489512 | C178: 0.03295138607 | D178: 1.571804688 | E178: 7.515685608 | F178: 187.8751475 | G178: 0.01084274613 | H178: 0.2956620197
A179: 178 | B179: 0.06406728407 | C179: 0.03303268657 | D179: 1.545880947 | E179: 7.220560493 | F179: 165.1248044 | G179: 0.01049484538 | H179: 0.2891967126
A180: 179 | B180: 0.06410683025 | C180: 0.03302269437 | D180: 1.532378379 | E180: 7.06148264 | F180: 152.1409361 | G180: 0.00987617696 | H180: 0.2840459874
A181: 180 | B181: 0.06413190512 | C181: 0.03317069048 | D181: 1.574712431 | E181: 7.442065146 | F181: 178.0491724 | G181: 0.009580353987 | H181: 0.2935704486
A182: 181 | B182: 0.0640502699 | C182: 0.03296578594 | D182: 1.545176482 | E182: 7.228892768 | F182: 165.1307054 | G182: 0.009743173598 | H182: 0.2886317242
A183: 182 | B183: 0.06403676353 | C183: 0.03300157116 | D183: 1.553467402 | E183: 7.262302115 | F183: 163.9740379 | G183: 0.009547127448 | H183: 0.2863962784
A184: 183 | B184: 0.06419868754 | C184: 0.033355564 | D184: 1.587479792 | E184: 7.455024468 | F184: 169.9094733 | G184: 0.01009536111 | H184: 0.287503379
A185: 184 | B185: 0.06415839051 | C185: 0.03336304907 | D185: 1.593887062 | E185: 7.467366018 | F185: 165.2857526 | G185: 0.009910645681 | H185: 0.2842220855
A186: 185 | B186: 0.06420753927 | C186: 0.03320988263 | D186: 1.596588185 | E186: 7.744147879 | F186: 194.4964636 | G186: 0.009787197494 | H186: 0.2958245332
A187: 186 | B187: 0.06416182395 | C187: 0.03311366562 | D187: 1.536921502 | E187: 7.18992474 | F187: 160.0318036 | G187: 0.009705906644 | H187: 0.2846209034
A188: 187 | B188: 0.06414619603 | C188: 0.03304182199 | D188: 1.519404057 | E188: 7.056765611 | F188: 147.951349 | G188: 0.009505863611 | H188: 0.2746540968
A189: 188 | B189: 0.06423419256 | C189: 0.03307539418 | D189: 1.495465016 | E189: 6.826418879 | F189: 133.5180727 | G189: 0.009660019485 | H189: 0.263151448
A190: 189 | B190: 0.06417618328 | C190: 0.03297629542 | D190: 1.48102357 | E190: 6.690457516 | F190: 128.5293165 | G190: 0.009493148156 | H190: 0.2584939664
A191: 190 | B191: 0.06417658016 | C191: 0.03305792309 | D191: 1.509750898 | E191: 6.883739409 | F191: 139.6164885 | G191: 0.009769946704 | H191: 0.2646840798
A192: 191 | B192: 0.06407622218 | C192: 0.03290821417 | D192: 1.510249307 | E192: 7.031784592 | F192: 158.3206017 | G192: 0.009836697028 | H192: 0.273941925
A193: 192 | B193: 0.06409807448 | C193: 0.03308437212 | D193: 1.546799976 | E193: 7.31477867 | F193: 175.5959105 | G193: 0.009761888444 | H193: 0.2761024122
A194: 193 | B194: 0.06411895043 | C194: 0.03325045258 | D194: 1.539264435 | E194: 7.218023003 | F194: 170.6883572 | G194: 0.009625182345 | H194: 0.2764400023
A195: 194 | B195: 0.06401320496 | C195: 0.03319748942 | D195: 1.547123018 | E195: 7.38121611 | F195: 184.9699429 | G195: 0.009189697276 | H195: 0.2818828517
A196: 195 | B196: 0.06403328171 | C196: 0.03334318314 | D196: 1.563969624 | E196: 7.404137636 | F196: 182.2860203 | G196: 0.008780260497 | H196: 0.2869947139
A197: 196 | B197: 0.06415161342 | C197: 0.03362886645 | D197: 1.643783726 | E197: 8.149316707 | F197: 236.7372329 | G197: 0.008865829277 | H197: 0.3063814687
A198: 197 | B198: 0.06414225024 | C198: 0.03356781807 | D198: 1.600494956 | E198: 7.681419773 | F198: 199.234727 | G198: 0.009064389152 | H198: 0.2938441058
A199: 198 | B199: 0.06417735276 | C199: 0.03348684902 | D199: 1.586090629 | E199: 7.538837826 | F199: 187.6852596 | G199: 0.009598028666 | H199: 0.2849742015
A200: 199 | B200: 0.06429187225 | C200: 0.03377306164 | D200: 1.670477312 | E200: 8.271835443 | F200: 234.066405 | G200: 0.009638942577 | H200: 0.2998710649
... 401 more rows

Sheet Scenario Stats
A1: Scenario | B1: Average | C1: Std Deviation | D1: Skewness | E1: Kurtosis | F1: 6th Moment
A2: 1 | B2: 0.0658457618 | C2: 0.01898199818 | D2: 0.8034087612 | E2: 3.158060129 | F2: 13.85368922
A3: 2 | B3: 0.06107252747 | C3: 0.02522911738 | D3: 0.2445280714 | E3: 2.072035027 | F3: 5.621189864
A4: 3 | B4: 0.05274547992 | C4: 0.01042594678 | D4: 1.74864813 | E4: 6.017763813 | F4: 57.254196
A5: 4 | B5: 0.08559382936 | C5: 0.02824777421 | D5: 0.7693104026 | E5: 3.025043711 | F5: 13.74895416
A6: 5 | B6: 0.06931936025 | C6: 0.01917749614 | D6: 0.8025992309 | E6: 2.751009681 | F6: 12.02949112
A7: 6 | B7: 0.04521403353 | C7: 0.01182278719 | D7: 0.4503585401 | E7: 2.79892036 | F7: 12.40044943
A8: 7 | B8: 0.05490941407 | C8: 0.01542790892 | D8: 0.1216569669 | E8: 1.852103118 | F8: 4.534957432
A9: 8 | B9: 0.04860341849 | C9: 0.02249076583 | D9: 0.7134971333 | E9: 2.303007433 | F9: 7.721461032
A10: 9 | B10: 0.09100951527 | C10: 0.06674833902 | D10: 1.451785105 | E10: 3.934373893 | F10: 22.20840781
A11: 10 | B11: 0.05198935268 | C11: 0.02181454935 | D11: 0.7578313253 | E11: 2.362555981 | F11: 7.64082603
A12: 11 | B12: 0.08356424236 | C12: 0.0377302556 | D12: 1.005815431 | E12: 2.629985769 | F12: 10.38597512
A13: 12 | B13: 0.05984831164 | C13: 0.0167889351 | D13: 0.6916117372 | E13: 2.614470582 | F13: 11.03678321
A14: 13 | B14: 0.06044098264 | C14: 0.02244991315 | D14: 0.03101876457 | E14: 1.522277571 | F14: 2.936217813
A15: 14 | B15: 0.05400539965 | C15: 0.01396714031 | D15: -0.02679421714 | E15: 2.410903864 | F15: 7.50281008
A16: 15 | B16: 0.07051093003 | C16: 0.01962122792 | D16: 0.9421581121 | E16: 3.938831698 | F16: 29.46695088
A17: 16 | B17: 0.06507603752 | C17: 0.04157970569 | D17: 0.6219239224 | E17: 1.911001749 | F17: 5.039233696
A18: 17 | B18: 0.07019302748 | C18: 0.02144501532 | D18: 0.3733935249 | E18: 2.718670912 | F18: 11.81637084
A19: 18 | B19: 0.07759929786 | C19: 0.03600205005 | D19: 0.12669245 | E19: 1.377293237 | F19: 2.189349635
A20: 19 | B20: 0.03486585649 | C20: 0.01030798167 | D20: 0.1858044556 | E20: 2.588980951 | F20: 9.202760053
A21: 20 | B21: 0.07154286966 | C21: 0.01668369384 | D21: 0.6563042965 | E21: 2.85269721 | F21: 11.34660107
A22: 21 | B22: 0.06080072895 | C22: 0.01741490711 | D22: -0.04187089583 | E22: 1.98421526 | F22: 4.653595788
A23: 22 | B23: 0.07449904127 | C23: 0.02983079182 | D23: 0.9654303461 | E23: 2.633072837 | F23: 10.21507987
A24: 23 | B24: 0.1535652261 | C24: 0.1073408362 | D24: 0.321736288 | E24: 1.413362545 | F24: 2.299636584
A25: 24 | B25: 0.07195513595 | C25: 0.02234958076 | D25: 0.104456219 | E25: 1.535947 | F25: 2.956244001
A26: 25 | B26: 0.04303104 | C26: 0.01014908282 | D26: -0.1924396421 | E26: 3.485162699 | F26: 14.77555148
A27: 26 | B27: 0.05979855682 | C27: 0.01218430814 | D27: 0.9052542666 | E27: 3.302271602 | F27: 15.13258558
A28: 27 | B28: 0.04970676987 | C28: 0.02786305343 | D28: 1.396832929 | E28: 3.969517538 | F28: 24.28540788
A29: 28 | B29: 0.03405882652 | C29: 0.009959549215 | D29: 0.6963572184 | E29: 2.60019991 | F29: 10.41683553
A30: 29 | B30: 0.05554970614 | C30: 0.01326074177 | D30: -0.7442780503 | E30: 2.804337747 | F30: 10.83111715
A31: 30 | B31: 0.0559565397 | C31: 0.036593516 | D31: 1.876016122 | E31: 5.163332322 | F31: 36.44200031
A32: 31 | B32: 0.0502678329 | C32: 0.0202544891 | D32: 1.594989534 | E32: 4.5941871 | F32: 32.99421205
A33: 32 | B33: 0.0601423861 | C33: 0.02417429467 | D33: 0.2330260324 | E33: 2.240525267 | F33: 6.645275379
A34: 33 | B34: 0.06965537615 | C34: 0.01061519436 | D34: 0.1145405351 | E34: 3.421688739 | F34: 19.86177645
A35: 34 | B35: 0.05622486836 | C35: 0.008891520952 | D35: 0.4066416502 | E35: 2.859723561 | F35: 11.88509348
A36: 35 | B36: 0.05632423857 | C36: 0.0306510632 | D36: 0.9574856979 | E36: 2.767311263 | F36: 12.20252244
A37: 36 | B37: 0.0543670219 | C37: 0.0273033148 | D37: 0.7278939691 | E37: 2.514715132 | F37: 9.906684072
A38: 37 | B38: 0.06201040153 | C38: 0.01510285156 | D38: -0.1027242937 | E38: 1.940834955 | F38: 4.966589476
A39: 38 | B39: 0.05598875303 | C39: 0.02115158467 | D39: 0.4632005788 | E39: 2.179166379 | F39: 6.690631997
A40: 39 | B40: 0.05037879236 | C40: 0.01894107132 | D40: -0.05126378698 | E40: 1.991439584 | F40: 4.935286162
A41: 40 | B41: 0.07488294112 | C41: 0.01136281666 | D41: -0.1310627526 | E41: 2.946736634 | F41: 15.82953531
A42: 41 | B42: 0.05452668029 | C42: 0.02057462659 | D42: 0.9935542609 | E42: 3.007035639 | F42: 13.22948461
A43: 42 | B43: 0.04034779939 | C43: 0.01326037139 | D43: 0.5298232504 | E43: 2.360086938 | F43: 7.98173904
A44: 43 | B44: 0.06899837706 | C44: 0.03441284518 | D44: 1.543601983 | E44: 4.152286266 | F44: 24.27267849
A45: 44 | B45: 0.05440970626 | C45: 0.02908158487 | D45: 1.813888621 | E45: 6.027816776 | F45: 61.60357326
A46: 45 | B46: 0.05442086497 | C46: 0.01963142315 | D46: 0.108629952 | E46: 1.84788405 | F46: 4.132451219
A47: 46 | B47: 0.07096016862 | C47: 0.03514367284 | D47: 0.2888163482 | E47: 2.194192081 | F47: 6.278218809
A48: 47 | B48: 0.07618630514 | C48: 0.03439979175 | D48: 1.326554262 | E48: 4.240245775 | F48: 28.44860289
A49: 48 | B49: 0.04532053873 | C49: 0.03366880884 | D49: 1.714614314 | E49: 5.097134972 | F49: 34.47570841
A50: 49 | B50: 0.08556587723 | C50: 0.03344015093 | D50: -0.13016228 | E50: 1.775841547 | F50: 3.621022532
A51: 50 | B51: 0.06884602211 | C51: 0.01378734623 | D51: -0.2358801058 | E51: 2.416708023 | F51: 7.442128262
A52: 51 | B52: 0.05387045085 | C52: 0.02922623545 | D52: 1.007794511 | E52: 2.970022948 | F52: 14.18312732
A53: 52 | B53: 0.05199140569 | C53: 0.01961510548 | D53: -0.1599939244 | E53: 1.743184919 | F53: 3.778109453
A54: 53 | B54: 0.05909551364 | C54: 0.02231209971 | D54: 0.5907177728 | E54: 2.335871259 | F54: 8.66327322
A55: 54 | B55: 0.08322243068 | C55: 0.0247190994 | D55: 0.3438400414 | E55: 3.03300699 | F55: 15.18246768
A56: 55 | B56: 0.06066007417 | C56: 0.02193410824 | D56: 0.5294945341 | E56: 3.748792227 | F56: 24.00934351
A57: 56 | B57: 0.05889870128 | C57: 0.02170421812 | D57: 1.154454666 | E57: 3.036043506 | F57: 12.90615267
A58: 57 | B58: 0.08172888178 | C58: 0.01737019488 | D58: -0.1655314779 | E58: 3.201463181 | F58: 14.4534433
A59: 58 | B59: 0.0549279939 | C59: 0.01279017814 | D59: -0.5666022563 | E59: 2.573774678 | F59: 9.737162767
A60: 59 | B60: 0.0268056328 | C60: 0.01344680173 | D60: 0.5494650103 | E60: 1.870658785 | F60: 4.535676849
A61: 60 | B61: 0.04506363737 | C61: 0.015171986 | D61: 0.505383809 | E61: 1.983072023 | F61: 5.3603893
A62: 61 | B62: 0.04999124007 | C62: 0.00936714012 | D62: 0.6906597547 | E62: 2.527142869 | F62: 8.853609214
A63: 62 | B63: 0.09848801587 | C63: 0.0502211091 | D63: 0.7284691264 | E63: 2.645460244 | F63: 13.67663542
A64: 63 | B64: 0.07909786027 | C64: 0.02592378352 | D64: 0.6014122067 | E64: 2.185705322 | F64: 6.328646328
A65: 64 | B65: 0.04434661816 | C65: 0.02065512676 | D65: 1.81529879 | E65: 5.773918049 | F65: 51.1937072
A66: 65 | B66: 0.05508693052 | C66: 0.01612422806 | D66: 0.8250107113 | E66: 3.003066122 | F66: 13.91970128
A67: 66 | B67: 0.07382942498 | C67: 0.02491181304 | D67: 0.554856206 | E67: 2.45676706 | F67: 9.563593493
A68: 67 | B68: 0.08756745542 | C68: 0.03368092368 | D68: -0.4089466453 | E68: 1.665322943 | F68: 3.196093673
A69: 68 | B69: 0.06939833586 | C69: 0.01991724882 | D69: -0.146981897 | E69: 1.897816466 | F69: 4.41870504
A70: 69 | B70: 0.05020012261 | C70: 0.01819677797 | D70: -0.2594178849 | E70: 1.735151119 | F70: 3.57667563
A71: 70 | B71: 0.03855865999 | C71: 0.007259412544 | D71: 0.1170066359 | E71: 2.29535497 | F71: 7.344342308
A72: 71 | B72: 0.05253190111 | C72: 0.03924945392 | D72: 1.197592824 | E72: 3.241711126 | F72: 16.82003632
A73: 72 | B73: 0.09491629658 | C73: 0.05692807236 | D73: 0.9739261565 | E73: 2.903777953 | F73: 12.63411301
A74: 73 | B74: 0.06394399574 | C74: 0.02007744933 | D74: 0.537811547 | E74: 2.06499286 | F74: 5.988226421
A75: 74 | B75: 0.04512704224 | C75: 0.01691253578 | D75: 0.2108336683 | E75: 1.677732771 | F75: 3.518034709
A76: 75 | B76: 0.05573687539 | C76: 0.02780804635 | D76: 0.691166877 | E76: 2.368789917 | F76: 9.318879519
A77: 76 | B77: 0.07430396743 | C77: 0.02228229228 | D77: 0.7739261509 | E77: 3.185577811 | F77: 14.39564841
A78: 77 | B78: 0.06492023365 | C78: 0.01190591137 | D78: 0.1377598943 | E78: 2.823320181 | F78: 11.93686928
A79: 78 | B79: 0.05582119833 | C79: 0.02541925686 | D79: 1.271422981 | E79: 4.291213266 | F79: 28.79078806
A80: 79 | B80: 0.0607710142 | C80: 0.02122072984 | D80: 0.2418824523 | E80: 1.930529324 | F80: 4.608564289
A81: 80 | B81: 0.02430263217 | C81: 0.01268375982 | D81: 1.015986982 | E81: 3.582521578 | F81: 24.13421105
A82: 81 | B82: 0.04240568293 | C82: 0.009216511324 | D82: 1.327081472 | E82: 3.913357932 | F82: 25.1554462
A83: 82 | B83: 0.06120251314 | C83: 0.02952262408 | D83: 1.487504598 | E83: 4.595647955 | F83: 34.29491935
A84: 83 | B84: 0.08469794426 | C84: 0.07255026262 | D84: 0.7462289931 | E84: 1.949428692 | F84: 5.327332429
A85: 84 | B85: 0.06918814275 | C85: 0.01951996707 | D85: 0.4946739555 | E85: 1.815556743 | F85: 4.596536348
A86: 85 | B86: 0.05010742292 | C86: 0.02852993185 | D86: 0.7854349683 | E86: 3.227191745 | F86: 18.28294219
A87: 86 | B87: 0.04906865857 | C87: 0.02137591039 | D87: 1.023944778 | E87: 3.348623076 | F87: 17.4243414
A88: 87 | B88: 0.08901370843 | C88: 0.02921009753 | D88: 0.8886293985 | E88: 4.093164306 | F88: 25.02629565
A89: 88 | B89: 0.05477553572 | C89: 0.008275417871 | D89: -0.1807933317 | E89: 2.493069863 | F89: 8.721010515
A90: 89 | B90: 0.06084660668 | C90: 0.01918905495 | D90: 1.175691221 | E90: 3.692456977 | F90: 23.03735486
A91: 90 | B91: 0.05145782436 | C91: 0.01655861558 | D91: -0.06286245577 | E91: 2.101999004 | F91: 5.677462176
A92: 91 | B92: 0.04532687375 | C92: 0.01159689182 | D92: -0.04047778802 | E92: 1.745062425 | F92: 3.636541522
A93: 92 | B93: 0.05225349411 | C93: 0.01334785242 | D93: 1.241481117 | E93: 4.151683534 | F93: 28.88450473
A94: 93 | B94: 0.09464627833 | C94: 0.04059538823 | D94: 0.6656850642 | E94: 2.024415191 | F94: 5.564249692
A95: 94 | B95: 0.05394193803 | C95: 0.01010479968 | D95: 0.3436377333 | E95: 3.222528454 | F95: 16.9265806
A96: 95 | B96: 0.06772707539 | C96: 0.01704650501 | D96: -0.09619248952 | E96: 2.633972949 | F96: 8.73269159
A97: 96 | B97: 0.04262616494 | C97: 0.01725767583 | D97: 1.48643937 | E97: 4.146026614 | F97: 27.1075888
A98: 97 | B98: 0.04533907853 | C98: 0.008474982581 | D98: -0.2886043188 | E98: 2.338834358 | F98: 6.995789482
A99: 98 | B99: 0.04963096589 | C99: 0.01471724283 | D99: 0.0353328001 | E99: 2.190375485 | F99: 5.669180172
A100: 99 | B100: 0.06827481378 | C100: 0.02928380222 | D100: -0.0476707966 | E100: 1.653649938 | F100: 3.215885106
A101: 100 | B101: 0.04680052683 | C101: 0.01045325426 | D101: 0.4601987822 | E101: 2.070908861 | F101: 6.107864792
A102: 101 | B102: 0.06129743808 | C102: 0.02714651531 | D102: 1.164451614 | E102: 3.323701378 | F102: 16.75951167
A103: 102 | B103: 0.06398747726 | C103: 0.02103051879 | D103: 0.4107830055 | E103: 2.142804687 | F103: 5.982344638
A104: 103 | B104: 0.06493208216 | C104: 0.0155861094 | D104: -0.05199501622 | E104: 2.712175453 | F104: 9.761225496
A105: 104 | B105: 0.0834692843 | C105: 0.02857645487 | D105: 0.5500918981 | E105: 2.797188599 | F105: 10.56041662
A106: 105 | B106: 0.06393021209 | C106: 0.01094584775 | D106: -0.3647120223 | E106: 2.444324798 | F106: 7.927699104
A107: 106 | B107: 0.1032579271 | C107: 0.0297446064 | D107: -0.3315078731 | E107: 1.909227423 | F107: 5.028178446
A108: 107 | B108: 0.05335814839 | C108: 0.01349545941 | D108: 0.08610918701 | E108: 1.773093547 | F108: 4.044202454
A109: 108 | B109: 0.05519195057 | C109: 0.02003345944 | D109: 0.6676652196 | E109: 2.480322652 | F109: 9.651729096
A110: 109 | B110: 0.05685279932 | C110: 0.01284090606 | D110: -0.05931149603 | E110: 1.92942442 | F110: 4.7031154
A111: 110 | B111: 0.06142787561 | C111: 0.009796425882 | D111: 0.2462987029 | E111: 3.353039005 | F111: 16.93852241
A112: 111 | B112: 0.04527045191 | C112: 0.01595910388 | D112: 0.08593053704 | E112: 1.902318515 | F112: 4.524294745
A113: 112 | B113: 0.04418731053 | C113: 0.01013606515 | D113: 0.8059986722 | E113: 2.901986671 | F113: 11.89734443
A114: 113 | B114: 0.07926638453 | C114: 0.03604488115 | D114: 0.9731844538 | E114: 3.032873526 | F114: 13.38586731
A115: 114 | B115: 0.04021366003 | C115: 0.01123921703 | D115: 0.2411869561 | E115: 1.915557666 | F115: 4.61287079
A116: 115 | B116: 0.05817577704 | C116: 0.02084469939 | D116: 0.3499406792 | E116: 2.008157735 | F116: 5.376514248
A117: 116 | B117: 0.04163479375 | C117: 0.01271667505 | D117: 0.4029168444 | E117: 1.866464307 | F117: 6.06225216
A118: 117 | B118: 0.08097426768 | C118: 0.04765107831 | D118: 0.8563012783 | E118: 2.454072771 | F118: 9.057191908
A119: 118 | B119: 0.0546772884 | C119: 0.01631749501 | D119: 0.3242855424 | E119: 2.216675105 | F119: 7.53682962
A120: 119 | B120: 0.04092816229 | C120: 0.01698829371 | D120: 1.559406045 | E120: 4.660865266 | F120: 32.43648339
A121: 120 | B121: 0.06685574851 | C121: 0.03746174276 | D121: 0.5836181815 | E121: 2.463135853 | F121: 8.086083765
A122: 121 | B122: 0.07025893827 | C122: 0.01303594472 | D122: -0.4967202962 | E122: 2.554180352 | F122: 8.937521321
A123: 122 | B123: 0.07316585936 | C123: 0.02574053063 | D123: 0.5330455964 | E123: 2.13599746 | F123: 6.997980125
A124: 123 | B124: 0.08927668055 | C124: 0.03565166586 | D124: 0.4834429388 | E124: 2.334120756 | F124: 9.467775005
A125: 124 | B125: 0.07001796848 | C125: 0.02182370197 | D125: 1.083111658 | E125: 4.022448383 | F125: 28.00293396
A126: 125 | B126: 0.09545917381 | C126: 0.05786894437 | D126: 0.457489437 | E126: 1.887574481 | F126: 4.376666433
A127: 126 | B127: 0.05172561589 | C127: 0.01399494429 | D127: -0.1940216929 | E127: 2.273931242 | F127: 6.746109456
A128: 127 | B128: 0.06413204736 | C128: 0.01520202221 | D128: 0.8839070563 | E128: 3.903738841 | F128: 28.81836129
A129: 128 | B129: 0.05671983803 | C129: 0.006754158877 | D129: 0.3745216461 | E129: 3.49537134 | F129: 19.91943401
A130: 129 | B130: 0.04634132214 | C130: 0.01833065711 | D130: 0.2204071439 | E130: 1.722490256 | F130: 3.928062034
A131: 130 | B131: 0.06853826662 | C131: 0.04536914356 | D131: 1.616695198 | E131: 5.072380215 | F131: 43.69564632
A132: 131 | B132: 0.05774389456 | C132: 0.0242051928 | D132: 0.4814715356 | E132: 2.175064243 | F132: 6.56625883
A133: 132 | B133: 0.07570558646 | C133: 0.03117570784 | D133: 0.1513685752 | E133: 1.906858404 | F133: 4.692616909
A134: 133 | B134: 0.05924129211 | C134: 0.01165527207 | D134: 0.2575500565 | E134: 2.318398204 | F134: 7.671316272
A135: 134 | B135: 0.0765285161 | C135: 0.02912518199 | D135: 0.05207910771 | E135: 1.583427868 | F135: 3.034056369
A136: 135 | B136: 0.07513423032 | C136: 0.03005577729 | D136: -0.6612954731 | E136: 1.95176925 | F136: 4.92529919
A137: 136 | B137: 0.08863296897 | C137: 0.03463476139 | D137: 0.5154113812 | E137: 2.306632736 | F137: 6.957699536
A138: 137 | B138: 0.06614504557 | C138: 0.0269389022 | D138: -0.21867023 | E138: 1.954677306 | F138: 4.614577846
A139: 138 | B139: 0.05356303741 | C139: 0.04260076135 | D139: 1.908937025 | E139: 5.665586047 | F139: 49.652275
A140: 139 | B140: 0.06344607366 | C140: 0.02255182641 | D140: 0.4330957939 | E140: 2.268164505 | F140: 8.104396368
A141: 140 | B141: 0.05678633716 | C141: 0.0111080366 | D141: 0.2345513103 | E141: 2.002768455 | F141: 5.399290724
A142: 141 | B142: 0.0683088659 | C142: 0.02286831468 | D142: 0.3589791367 | E142: 3.333112351 | F142: 14.93959791
A143: 142 | B143: 0.06148931269 | C143: 0.01932807136 | D143: 0.5802996385 | E143: 2.17597317 | F143: 6.900697667
A144: 143 | B144: 0.05960136304 | C144: 0.02607122321 | D144: 0.3870357663 | E144: 1.805351499 | F144: 3.900700817
A145: 144 | B145: 0.0767604154 | C145: 0.03594775175 | D145: 1.348498632 | E145: 3.61822216 | F145: 18.76511947
A146: 145 | B146: 0.04097448646 | C146: 0.01395108111 | D146: 0.1473200881 | E146: 2.274738312 | F146: 6.480516156
A147: 146 | B147: 0.05088163603 | C147: 0.008940806667 | D147: 0.8943220861 | E147: 3.150692666 | F147: 16.35727762
A148: 147 | B148: 0.06248426178 | C148: 0.01512821169 | D148: 0.05872682137 | E148: 2.274302766 | F148: 6.575096927
A149: 148 | B149: 0.06884969995 | C149: 0.02071895155 | D149: 1.296336337 | E149: 3.696873658 | F149: 18.99010272
A150: 149 | B150: 0.049063583 | C150: 0.02490719626 | D150: -0.1263956925 | E150: 1.92508665 | F150: 4.360716595
A151: 150 | B151: 0.06525928974 | C151: 0.0277574151 | D151: 0.2892870471 | E151: 3.423186825 | F151: 23.66779146
A152: 151 | B152: 0.05598007205 | C152: 0.02133276888 | D152: -0.1781121467 | E152: 2.055116513 | F152: 5.221360797
A153: 152 | B153: 0.05179824223 | C153: 0.02059228904 | D153: 0.1401401936 | E153: 1.778490509 | F153: 4.28746403
A154: 153 | B154: 0.05838477798 | C154: 0.01795253726 | D154: 0.9215897898 | E154: 2.96196819 | F154: 13.53611073
A155: 154 | B155: 0.05897313286 | C155: 0.02003141088 | D155: 0.1125407715 | E155: 1.842428858 | F155: 4.321339135
A156: 155 | B156: 0.1078880852 | C156: 0.03690955962 | D156: 0.1541749039 | E156: 1.695953201 | F156: 3.699330387
A157: 156 | B157: 0.04752640393 | C157: 0.006799654043 | D157: 0.2487559039 | E157: 2.490861188 | F157: 8.600090398
A158: 157 | B158: 0.0349059846 | C158: 0.007461857636 | D158: 0.7107340873 | E158: 3.894750554 | F158: 22.97893964
A159: 158 | B159: 0.03071967155 | C159: 0.01220299287 | D159: 0.1160565303 | E159: 1.64545041 | F159: 3.559112673
A160: 159 | B160: 0.0741413046 | C160: 0.02159864657 | D160: 0.1002759015 | E160: 1.877660263 | F160: 4.508448021
A161: 160 | B161: 0.0635713593 | C161: 0.02123400304 | D161: 0.8220550845 | E161: 2.509470978 | F161: 9.461536019
A162: 161 | B162: 0.03979417116 | C162: 0.009123229936 | D162: 0.09813203673 | E162: 2.10118624 | F162: 5.858355919
A163: 162 | B163: 0.07162924415 | C163: 0.0168829725 | D163: 0.1106612379 | E163: 1.928024864 | F163: 4.587628193
A164: 163 | B164: 0.0572120071 | C164: 0.02406252292 | D164: 2.000362464 | E164: 7.3424785 | F164: 83.35961276
A165: 164 | B165: 0.07636238681 | C165: 0.043273309 | D165: 0.9812654409 | E165: 3.261535636 | F165: 18.44717482
A166: 165 | B166: 0.0826098607 | C166: 0.02240595739 | D166: -0.1177190184 | E166: 2.379518257 | F166: 7.110787141
A167: 166 | B167: 0.07371180629 | C167: 0.02602130412 | D167: 0.7537158721 | E167: 2.985927871 | F167: 13.6718439
A168: 167 | B168: 0.06485411808 | C168: 0.02295186052 | D168: 0.5320893891 | E168: 2.099406031 | F168: 6.22536936
A169: 168 | B169: 0.071702694 | C169: 0.01940412066 | D169: 0.05296938025 | E169: 2.145450795 | F169: 6.341245071
A170: 169 | B170: 0.09542833145 | C170: 0.02932851411 | D170: -0.07479631895 | E170: 1.832605923 | F170: 4.274305496
A171: 170 | B171: 0.05606127014 | C171: 0.01896175869 | D171: 1.031975504 | E171: 2.559878705 | F171: 9.062974244
A172: 171 | B172: 0.09166542918 | C172: 0.0311394375 | D172: -0.3685016115 | E172: 1.814876593 | F172: 3.940259706
A173: 172 | B173: 0.07966791128 | C173: 0.03292341652 | D173: 0.6403464894 | E173: 2.448045303 | F173: 8.729276032
A174: 173 | B174: 0.0564963129 | C174: 0.0180090273 | D174: -0.02240811515 | E174: 1.834759626 | F174: 4.181629852
A175: 174 | B175: 0.05128922436 | C175: 0.009836589364 | D175: 0.01424126978 | E175: 1.908474253 | F175: 4.725850385
A176: 175 | B176: 0.07253697054 | C176: 0.02313204871 | D176: 0.2402606756 | E176: 1.898368972 | F176: 4.418150751
A177: 176 | B177: 0.04764064725 | C177: 0.01675584614 | D177: 0.9928009411 | E177: 2.911445363 | F177: 14.80103152
A178: 177 | B178: 0.059590118 | C178: 0.03056415313 | D178: 2.136487112 | E178: 7.163379486 | F178: 83.70288081
A179: 178 | B179: 0.07335751123 | C179: 0.02380701415 | D179: 0.6064372752 | E179: 2.347221696 | F179: 7.880549254
A180: 179 | B180: 0.06017995573 | C180: 0.02029528063 | D180: 0.2865804173 | E180: 1.966998149 | F180: 4.854760734
A181: 180 | B181: 0.08478021197 | C181: 0.04473798944 | D181: 0.3559090253 | E181: 1.538748566 | F181: 3.301356201
A182: 181 | B182: 0.05255156279 | C182: 0.0187659853 | D182: 1.315071471 | E182: 3.900550035 | F182: 22.43914886
A183: 182 | B183: 0.03741229903 | C183: 0.01617151313 | D183: 0.07287033257 | E183: 1.464519681 | F183: 2.542073572
A184: 183 | B184: 0.06094193851 | C184: 0.02213841197 | D184: -0.08191788485 | E184: 2.4151311 | F184: 7.11388595
A185: 184 | B185: 0.06037719526 | C185: 0.02345395721 | D185: 0.3809873999 | E185: 1.693736168 | F185: 3.789810478
A186: 185 | B186: 0.08696349346 | C186: 0.05308202403 | D186: 0.786954347 | E186: 2.331171482 | F186: 8.057083913
A187: 186 | B187: 0.09263088674 | C187: 0.01908986985 | D187: -1.151306667 | E187: 4.508379899 | F187: 25.80305985
A188: 187 | B188: 0.06080169119 | C188: 0.01244225074 | D188: -0.2285350012 | E188: 2.22821722 | F188: 6.377502452
A189: 188 | B189: 0.05734103449 | C189: 0.02018229486 | D189: 0.1449764536 | E189: 1.727302937 | F189: 3.775314464
A190: 189 | B190: 0.04629200475 | C190: 0.01617790072 | D190: 0.3017478644 | E190: 2.115650269 | F190: 5.953402907
A191: 190 | B191: 0.06868767578 | C191: 0.02673028475 | D191: 0.5101375775 | E191: 2.180019096 | F191: 6.207173119
A192: 191 | B192: 0.05748120866 | C192: 0.01097342375 | D192: 0.831751261 | E192: 2.951229404 | F192: 15.2426661
A193: 192 | B193: 0.05396105079 | C193: 0.02260065197 | D193: 1.407002854 | E193: 4.048752524 | F193: 23.94655647
A194: 193 | B194: 0.06384942588 | C194: 0.02166141686 | D194: 1.744101394 | E194: 5.049684197 | F194: 35.48894398
A195: 194 | B195: 0.08709640009 | C195: 0.05506539845 | D195: 0.4162529007 | E195: 1.793976968 | F195: 4.304685352
A196: 195 | B196: 0.06076640694 | C196: 0.01810250885 | D196: -0.4547208643 | E196: 2.341583398 | F196: 6.736629543
A197: 196 | B197: 0.1219221877 | C197: 0.06256297219 | D197: 0.2828906985 | E197: 1.703076745 | F197: 3.548687313
A198: 197 | B198: 0.04581825918 | C198: 0.02438026224 | D198: 0.530750151 | E198: 2.599868365 | F198: 10.15560518
A199: 198 | B199: 0.06664213238 | C199: 0.03833396496 | D199: 0.9584910725 | E199: 2.873779752 | F199: 11.90779956
A200: 199 | B200: 0.05616212897 | C200: 0.01844647832 | D200: 0.8230666426 | E200: 2.742784727 | F200: 11.85240732
... 801 more rows

Sheet Monthly Index
A1: Months | B1: Skewness Index | C1: Kurt Index | D1: 6th Moment Index
A2: 1 | B2: 0 | C2: 0 | D2: 0
A3: 2 | B3: 0.001096608282 | C3: 0.005364836162 | D3: 0.001081016807
A4: 3 | B4: 0.00117749977 | C4: 0.007614245007 | D4: 0.001709117721
A5: 4 | B5: 0.003384467789 | C5: 0.01016405533 | D5: 0.002884162258
A6: 5 | B6: 0.002980410019 | C6: 0.0115428632 | D6: 0.003366304727
A7: 6 | B7: 0.003887565362 | C7: 0.01315387228 | D7: 0.004251857732
A8: 7 | B8: 0.00467634575 | C8: 0.01402685674 | D8: 0.004339261554
A9: 8 | B9: 0.005660166143 | C9: 0.01463917477 | D9: 0.004828060369
A10: 9 | B10: 0.006272922441 | C10: 0.01632182215 | D10: 0.006430845211
A11: 10 | B11: 0.004124054692 | C11: 0.01627411778 | D11: 0.006060682074
A12: 11 | B12: 0.005422501133 | C12: 0.01698088618 | D12: 0.006223220834
A13: 12 | B13: 0.005961909802 | C13: 0.01779693364 | D13: 0.006564784641
A14: 13 | B14: 0.004657331829 | C14: 0.0188399266 | D14: 0.007771741657
A15: 14 | B15: 0.004548324219 | C15: 0.01895325042 | D15: 0.007223408038
A16: 15 | B16: 0.005537665552 | C16: 0.02043519866 | D16: 0.008468033338
A17: 16 | B17: 0.007464775201 | C17: 0.02221354311 | D17: 0.01085794033
A18: 17 | B18: 0.009622859766 | C18: 0.02625604722 | D18: 0.01694668611
A19: 18 | B19: 0.01011593081 | C19: 0.03089665455 | D19: 0.02977437973
A20: 19 | B20: 0.01285719441 | C20: 0.03509124068 | D20: 0.04265760642
A21: 20 | B21: 0.01023950106 | C21: 0.03399766727 | D21: 0.04142542943
A22: 21 | B22: 0.01013566512 | C22: 0.03732000266 | D22: 0.05602948859
A23: 22 | B23: 0.01052998489 | C23: 0.03712404431 | D23: 0.04657661161
A24: 23 | B24: 0.01219527335 | C24: 0.03984234392 | D24: 0.05241317185
A25: 24 | B25: 0.01383963931 | C25: 0.04493527436 | D25: 0.07243734071
A26: 25 | B26: 0.0155070125 | C26: 0.04967572176 | D26: 0.09500276674
A27: 26 | B27: 0.01808723128 | C27: 0.05389242946 | D27: 0.1089899709
A28: 27 | B28: 0.01793313289 | C28: 0.05448526378 | D28: 0.1052029225
A29: 28 | B29: 0.02266458575 | C29: 0.06251528593 | D29: 0.1385102461
A30: 29 | B30: 0.02097219644 | C30: 0.05860397391 | D30: 0.1142520021
A31: 30 | B31: 0.02195543969 | C31: 0.06199654589 | D31: 0.131353744
A32: 31 | B32: 0.02095886626 | C32: 0.0617651098 | D32: 0.1263289029
A33: 32 | B33: 0.02191620412 | C33: 0.06341468739 | D33: 0.1352789998
A34: 33 | B34: 0.02177534392 | C34: 0.06261200545 | D34: 0.131625654
A35: 34 | B35: 0.01905155284 | C35: 0.0595437322 | D35: 0.1135238687
A36: 35 | B36: 0.02153051656 | C36: 0.06634658756 | D36: 0.1598042188
A37: 36 | B37: 0.02888476387 | C37: 0.07916892315 | D37: 0.2338636981
A38: 37 | B38: 0.03103715107 | C38: 0.08085894031 | D38: 0.2221493674
A39: 38 | B39: 0.03331391854 | C39: 0.08778911075 | D39: 0.2728247539
A40: 39 | B40: 0.03776714666 | C40: 0.1008627006 | D40: 0.3898297841
A41: 40 | B41: 0.03571055256 | C41: 0.09473587745 | D41: 0.3328158315
A42: 41 | B42: 0.03467834749 | C42: 0.0877043203 | D42: 0.2541702961
A43: 42 | B43: 0.0380850219 | C43: 0.09497788194 | D43: 0.3004244698
A44: 43 | B44: 0.03534307319 | C44: 0.08557301866 | D44: 0.2216503169
A45: 44 | B45: 0.03757067106 | C45: 0.09006191201 | D45: 0.2278217067
A46: 45 | B46: 0.03923156099 | C46: 0.09303334756 | D46: 0.2366180165
A47: 46 | B47: 0.03952942217 | C47: 0.08835209768 | D47: 0.1786042199
A48: 47 | B48: 0.03931171665 | C48: 0.08564151742 | D48: 0.1523307935
A49: 48 | B49: 0.04133113441 | C49: 0.09046146787 | D49: 0.1565005221
A50: 49 | B50: 0.03741014328 | C50: 0.08153198231 | D50: 0.1129250147
A51: 50 | B51: 0.03962165 | C51: 0.08437402676 | D51: 0.1043888206
A52: 51 | B52: 0.04403803016 | C52: 0.09476917083 | D52: 0.133097546
A53: 52 | B53: 0.04426868813 | C53: 0.09544210497 | D53: 0.1168242718
A54: 53 | B54: 0.04786123352 | C54: 0.1028152595 | D54: 0.1212845184
A55: 54 | B55: 0.05025229642 | C55: 0.107465886 | D55: 0.1133708366
A56: 55 | B56: 0.05350162032 | C56: 0.1141568958 | D56: 0.1086189553
A57: 56 | B57: 0.05256672924 | C57: 0.107820279 | D57: 0.07834974385
A58: 57 | B58: 0.05664534169 | C58: 0.1187453782 | D58: 0.08492643325
A59: 58 | B59: 0.05942550509 | C59: 0.1220062644 | D59: 0.07448860026
A60: 59 | B60: 0.06147143639 | C60: 0.1279438248 | D60: 0.07294072686
A61: 60 | B61: 0.05913891647 | C61: 0.12301011 | D61: 0.06657373079
A62: 61 | B62: 0.05792468257 | C62: 0.1173319551 | D62: 0.05053736478
A63: 62 | B63: 0.05743529436 | C63: 0.1164492181 | D63: 0.04387801365
A64: 63 | B64: 0.05470915638 | C64: 0.1119452862 | D64: 0.03959643199
A65: 64 | B65: 0.05655580822 | C65: 0.1165710139 | D65: 0.03565642069
A66: 65 | B66: 0.05708496265 | C66: 0.1178702598 | D66: 0.03290193298
A67: 66 | B67: 0.05690450513 | C67: 0.1187230987 | D67: 0.03166318431
A68: 67 | B68: 0.05619206678 | C68: 0.1148618249 | D68: 0.02715510273
A69: 68 | B69: 0.05852289443 | C69: 0.1193803369 | D69: 0.02481321447
A70: 69 | B70: 0.06018787443 | C70: 0.1215758445 | D70: 0.0215625905
A71: 70 | B71: 0.06152165812 | C71: 0.1239569112 | D71: 0.01964590256
A72: 71 | B72: 0.06182038023 | C72: 0.1220384336 | D72: 0.01581657218
A73: 72 | B73: 0.06434883539 | C73: 0.1257464919 | D73: 0.01382310156
A74: 73 | B74: 0.06115130566 | C74: 0.1125880727 | D74: 0.008943669736
A75: 74 | B75: 0.0611511209 | C75: 0.1105979207 | D75: 0.0076352509
A76: 75 | B76: 0.0615722036 | C76: 0.1106883657 | D76: 0.006776789415
A77: 76 | B77: 0.06430953639 | C77: 0.115894172 | D77: 0.006252793675
A78: 77 | B78: 0.06315534789 | C78: 0.1138941482 | D78: 0.005886884004
A79: 78 | B79: 0.06474916336 | C79: 0.1154354258 | D79: 0.005115771618
A80: 79 | B80: 0.06545238726 | C80: 0.1147651391 | D80: 0.004189218672
A81: 80 | B81: 0.06388268024 | C81: 0.110979038 | D81: 0.003746059998
A82: 81 | B82: 0.06652943652 | C82: 0.1161289719 | D82: 0.003421772532
A83: 82 | B83: 0.06883533691 | C83: 0.1226521056 | D83: 0.003529119681
A84: 83 | B84: 0.06869806722 | C84: 0.1203024098 | D84: 0.002854150642
A85: 84 | B85: 0.07035988308 | C85: 0.1248369226 | D85: 0.002880543843
A86: 85 | B86: 0.07051521107 | C86: 0.1249544155 | D86: 0.002724005738
A87: 86 | B87: 0.06955980387 | C87: 0.1215759456 | D87: 0.002360438958
A88: 87 | B88: 0.07011229236 | C88: 0.1233168782 | D88: 0.002329002825
A89: 88 | B89: 0.06909621924 | C89: 0.1197282542 | D89: 0.002059751032
A90: 89 | B90: 0.06968441771 | C90: 0.1214947175 | D90: 0.002038143414
A91: 90 | B91: 0.07121145603 | C91: 0.1241145864 | D91: 0.001864643066
A92: 91 | B92: 0.06817474025 | C92: 0.1154122873 | D92: 0.001514059594
A93: 92 | B93: 0.0726433481 | C93: 0.1274652589 | D93: 0.001683154979
A94: 93 | B94: 0.07519170615 | C94: 0.1327884635 | D94: 0.001614598739
A95: 94 | B95: 0.07686954413 | C95: 0.1349880604 | D95: 0.001449057179
A96: 95 | B96: 0.07876029936 | C96: 0.1409861676 | D96: 0.001547671445
A97: 96 | B97: 0.07867531941 | C97: 0.1416119651 | D97: 0.001532214854
A98: 97 | B98: 0.07872905296 | C98: 0.1400904322 | D98: 0.00131186386
A99: 98 | B99: 0.07866653215 | C99: 0.1424651702 | D99: 0.001347991818
A100: 99 | B100: 0.08227788906 | C100: 0.1523190609 | D100: 0.001400044476
A101: 100 | B101: 0.08143415688 | C101: 0.1523242728 | D101: 0.001455123792
A102: 101 | B102: 0.0821637014 | C102: 0.152803877 | D102: 0.001322500767
A103: 102 | B103: 0.08193579325 | C103: 0.1491688045 | D103: 0.001105892925
A104: 103 | B104: 0.08073936605 | C104: 0.146188468 | D104: 0.001051111567
A105: 104 | B105: 0.07973968152 | C105: 0.1411247726 | D105: 0.0008949011213
A106: 105 | B106: 0.07794162701 | C106: 0.1347063672 | D106: 0.0007765479818
A107: 106 | B107: 0.07562413712 | C107: 0.1256396893 | D107: 0.0005934163066
A108: 107 | B108: 0.07527693082 | C108: 0.1242495671 | D108: 0.0005484459874
A109: 108 | B109: 0.07648684384 | C109: 0.1249155122 | D109: 0.0004895118938
A110: 109 | B110: 0.07629296498 | C110: 0.1247376649 | D110: 0.0004620052963
A111: 110 | B111: 0.0735239693 | C111: 0.1186454725 | D111: 0.0004177774684
A112: 111 | B112: 0.07259769494 | C112: 0.1153841684 | D112: 0.0003611983224
A113: 112 | B113: 0.07260813488 | C113: 0.1153787005 | D113: 0.0003467101583
A114: 113 | B114: 0.07200802608 | C114: 0.1130195022 | D114: 0.0003134066301
A115: 114 | B115: 0.07148272256 | C115: 0.1112879489 | D115: 0.0002881114799
A116: 115 | B116: 0.07006614191 | C116: 0.1095721312 | D116: 0.0002838803551
A117: 116 | B117: 0.06976831199 | C117: 0.1082810018 | D117: 0.0002540071067
A118: 117 | B118: 0.06992202622 | C118: 0.108899699 | D118: 0.0002406132178
A119: 118 | B119: 0.06948611735 | C119: 0.1085809782 | D119: 0.0002476595848
A120: 119 | B120: 0.06881089486 | C120: 0.1073763871 | D120: 0.0002428783319
A121: 120 | B121: 0.06900809541 | C121: 0.1075689855 | D121: 0.0002331472232
A122: 121 | B122: 0.06773868309 | C122: 0.1050496604 | D122: 0.0002220101245
A123: 122 | B123: 0.06947405783 | C123: 0.1090319191 | D123: 0.000232425316
A124: 123 | B124: 0.06982654704 | C124: 0.1097740354 | D124: 0.0002300092028
A125: 124 | B125: 0.070234283 | C125: 0.1106597459 | D125: 0.0002296110625
A126: 125 | B126: 0.07266184072 | C126: 0.1171976524 | D126: 0.0002546968429
A127: 126 | B127: 0.07232220873 | C127: 0.1165405189 | D127: 0.0002492280395
A128: 127 | B128: 0.07265073011 | C128: 0.1152257919 | D128: 0.0002212079061
A129: 128 | B129: 0.07530961101 | C129: 0.1205253673 | D129: 0.000217154988
A130: 129 | B130: 0.07441045854 | C130: 0.1175329029 | D130: 0.0001923021577
A131: 130 | B131: 0.07514317506 | C131: 0.1197452089 | D131: 0.0001961803502
A132: 131 | B132: 0.07664144778 | C132: 0.1226302075 | D132: 0.0001945453857
A133: 132 | B133: 0.07806632503 | C133: 0.1257953595 | D133: 0.0001955573626
A134: 133 | B134: 0.07764192118 | C134: 0.1249743697 | D134: 0.0001870344071
A135: 134 | B135: 0.08062523692 | C135: 0.1308534668 | D135: 0.0001801693083
A136: 135 | B136: 0.08340694886 | C136: 0.1373173004 | D136: 0.0001803610563
A137: 136 | B137: 0.08240549706 | C137: 0.1361123328 | D137: 0.0001873034116
A138: 137 | B138: 0.08150347256 | C138: 0.1329232717 | D138: 0.0001741280023
A139: 138 | B139: 0.08026877354 | C139: 0.1279611451 | D139: 0.0001560117972
A140: 139 | B140: 0.08142668958 | C140: 0.1314227218 | D140: 0.0001577660463
A141: 140 | B141: 0.08195261903 | C141: 0.1338317693 | D141: 0.0001655183621
A142: 141 | B142: 0.08269663341 | C142: 0.1357848725 | D142: 0.0001651584358
A143: 142 | B143: 0.07921638777 | C143: 0.1274276862 | D143: 0.0001552849265
A144: 143 | B144: 0.07970647342 | C144: 0.1276321841 | D144: 0.0001457322611
A145: 144 | B145: 0.08139430187 | C145: 0.1317141068 | D145: 0.0001489237582
A146: 145 | B146: 0.08316751999 | C146: 0.1404671233 | D146: 0.0001862651268
A147: 146 | B147: 0.08103009765 | C147: 0.1338946063 | D147: 0.0001703994919
A148: 147 | B148: 0.08119979876 | C148: 0.1346649663 | D148: 0.0001734388005
A149: 148 | B149: 0.0837632327 | C149: 0.1414608003 | D149: 0.0001807897204
A150: 149 | B150: 0.08298727233 | C150: 0.1408470181 | D150: 0.0001815276384
A151: 150 | B151: 0.0822090302 | C151: 0.1380535064 | D151: 0.0001760270023
A152: 151 | B152: 0.0840426333 | C152: 0.1444448785 | D152: 0.0001937477814
A153: 152 | B153: 0.08302417058 | C153: 0.1403664906 | D153: 0.0001755025917
A154: 153 | B154: 0.08196713409 | C154: 0.1373073497 | D154: 0.0001661684053
A155: 154 | B155: 0.08670413843 | C155: 0.1519071213 | D155: 0.0001890182217
A156: 155 | B156: 0.08594582395 | C156: 0.1498024248 | D156: 0.0001823146233
A157: 156 | B157: 0.08792899328 | C157: 0.1558915759 | D157: 0.0001859094311
A158: 157 | B158: 0.08856225422 | C158: 0.1560251757 | D158: 0.0001790795777
A159: 158 | B159: 0.08932948541 | C159: 0.1578266637 | D159: 0.0001716593744
A160: 159 | B160: 0.08485725603 | C160: 0.1454786411 | D160: 0.000155961137
A161: 160 | B161: 0.08539379779 | C161: 0.1458944158 | D161: 0.0001475928406
A162: 161 | B162: 0.08516757105 | C162: 0.1478500257 | D162: 0.0001570831045
A163: 162 | B163: 0.08551470958 | C163: 0.1507647648 | D163: 0.0001682120862
A164: 163 | B164: 0.08434299676 | C164: 0.1424858152 | D164: 0.000129026007
A165: 164 | B165: 0.08614677043 | C165: 0.1502820209 | D165: 0.0001495687758
A166: 165 | B166: 0.08693032151 | C166: 0.1519794005 | D166: 0.000143682064
A167: 166 | B167: 0.08745967292 | C167: 0.1571642144 | D167: 0.0001701767677
A168: 167 | B168: 0.08646896758 | C168: 0.1530708937 | D168: 0.000154707943
A169: 168 | B169: 0.08441271303 | C169: 0.1471539435 | D169: 0.0001421574065
A170: 169 | B170: 0.08203659076 | C170: 0.1375093089 | D170: 0.0001153734473
A171: 170 | B171: 0.08008695712 | C171: 0.1328056181 | D171: 0.0001109325247
A172: 171 | B172: 0.07984796039 | C172: 0.1329735241 | D172: 0.0001164261182
A173: 172 | B173: 0.08158975637 | C173: 0.1401447834 | D173: 0.0001361743582
A174: 173 | B174: 0.0799847263 | C174: 0.1369009213 | D174: 0.0001386408527
A175: 174 | B175: 0.07873258609 | C175: 0.1313984499 | D175: 0.000116401219
A176: 175 | B176: 0.07766700729 | C176: 0.1283870341 | D176: 0.0001111302223
A177: 176 | B177: 0.07824746377 | C177: 0.1303149171 | D177: 0.0001178063759
A178: 177 | B178: 0.07755106623 | C178: 0.1306367877 | D178: 0.0001328609133
A179: 178 | B179: 0.07631331349 | C179: 0.1255478734 | D179: 0.0001137422296
A180: 179 | B180: 0.07565035421 | C180: 0.1228087958 | D180: 0.0001063713309
A181: 180 | B181: 0.07781711391 | C181: 0.1295050839 | D181: 0.0001187712632
A182: 181 | B182: 0.07624314098 | C182: 0.1256537137 | D182: 0.0001160084329
A183: 182 | B183: 0.07666646936 | C183: 0.126237481 | D183: 0.0001132578878
A184: 183 | B184: 0.07855187057 | C184: 0.1298536553 | D184: 0.0001079943307
A185: 184 | B185: 0.07886359799 | C185: 0.1300374752 | D185: 0.0001035775915
A186: 185 | B186: 0.07893387538 | C186: 0.1348420001 | D186: 0.0001306775423
A187: 186 | B187: 0.07592914167 | C187: 0.1251201918 | D187: 0.0001099285141
A188: 187 | B188: 0.07502696501 | C188: 0.122764299 | D188: 0.000103874367
A189: 188 | B189: 0.07387831472 | C189: 0.1188348395 | D189: 9.493584128e-05
A190: 189 | B190: 0.07310793325 | C190: 0.1163900825 | D190: 9.322037231e-05
A191: 190 | B191: 0.07456405194 | C191: 0.1197829617 | D191: 9.829022312e-05
A192: 191 | B192: 0.0744982565 | C192: 0.1222255297 | D192: 0.0001144412094
A193: 192 | B193: 0.07638974347 | C193: 0.1272305199 | D193: 0.000119731249
A194: 193 | B194: 0.07610001231 | C194: 0.12562452 | D194: 0.0001101914114
A195: 194 | B195: 0.07644097312 | C195: 0.1283585497 | D195: 0.000118129983
A196: 195 | B196: 0.07734668464 | C196: 0.1288250867 | D196: 0.0001110330566
A197: 196 | B197: 0.08146189457 | C197: 0.1420033722 | D197: 0.0001344867415
A198: 197 | B198: 0.0792853706 | C198: 0.1338219303 | D198: 0.0001153961
A199: 198 | B199: 0.07854116515 | C199: 0.131341232 | D199: 0.0001130603548
A200: 199 | B200: 0.08288934653 | C200: 0.144321691 | D200: 0.0001313832136
... 401 more rows

Sheet freq
G1: from rt values | R1: Rnd Scenario Rates | S1: Rnd Scenario Targets | T1: absLn | V1: drt | W1: lnrt | X1: Dlnrt | Y1: Selective Dlnrt
F2: μ= | G2: =LN('Monthly Stats'!B601)-0.5*freq!G3^2 -> -2.852804176 | Q2: -0.004722336652 | R2: 0.0388 | S2: 0.0644 | T2: No. 799
F3: σ= | G3: =LN(('Monthly Stats'!C601/'Monthly Stats'!B601)^2+1)^0.5 -> 0.5019195708 | Q3: -0.004272682765 | R3: 0.0410571106 | S3: 0.0644 | T3: 0.05652749352
F4: comparable | G4: E= | H4: =EXP(G2+0.5*G3^2) -> 0.06542554188 | Q4: -0.003839446895 | R4: 0.04323592802 | S4: 0.0644 | T4: 0.05169147883
F5: lognormal | Q5: -0.003422035921 | R5: 0.04271091023 | S5: 0.0644 | T5: 0.01223371897
B6: Frequency t= | F6: frequency | G6: Relative Frequency | H6: Relative Frequency | I6: Relative Fequency | J6: Relative Fequency | Q6: -0.003019884726 | R6: 0.04110425905 | S6: 0.0644 | T6: 0.03835895282
A7: central rt | B7: 24 | C7: 120 | D7: 300 | E7: 600 | G7: 600 | H7: 300 | I7: 120 | J7: 24 | Q7: -0.00263245658 | R7: 0.04000231239 | S7: 0.0644 | T7: 0.02719077942
A8: 0 | B8: 0 | C8: 0 | D8: 0 | E8: 0 | F8: =NORMDIST(LN(A8+0.0025),$G$2,$G$3,TRUE) -> 2.009173246e-10 | G8: =E8/Inputs!$B$1 -> 0 | H8: =D8/Inputs!$B$1 -> 0 | I8: =C8/Inputs!$B$1 -> 0 | J8: =B8/Inputs!$B$1 -> 0 | Q8: -0.002259242886 | R8: 0.04223543045 | S8: 0.0644 | T8: 0.05430589191
A9: =A8+0.005 -> 0.005 | B9: 0 | C9: 0 | D9: 0 | E9: 0 | F9: =(NORMDIST(LN(A9+0.0025),$G$2,$G$3,TRUE)-NORMDIST(LN(A9-0.0025),$G$2,$G$3,TRUE)) -> 2.406839351e-05 | G9: =E9/Inputs!$B$1 -> 0 | H9: =D9/Inputs!$B$1 -> 0 | I9: =C9/Inputs!$B$1 -> 0 | J9: =B9/Inputs!$B$1 -> 0 | Q9: -0.001899762401 | R9: 0.04233734586 | S9: 0.0644 | T9: 0.002393825708
A10: =A9+0.005 -> 0.01 | B10: 0 | C10: 2 | D10: 3 | E10: 1 | F10: 0.001132589127 | G10: =E10/Inputs!$B$1 -> 0.001 | H10: =D10/Inputs!$B$1 -> 0.003 | I10: =C10/Inputs!$B$1 -> 0.002 | J10: =B10/Inputs!$B$1 -> 0 | Q10: -0.001553560063 | R10: 0.0453830705 | S10: 0.0644 | T10: 0.06945326278
A11: 0.015 | B11: 0 | C11: 4 | D11: 9 | E11: 5 | F11: 0.007585132302 | G11: =E11/Inputs!$B$1 -> 0.005 | H11: =D11/Inputs!$B$1 -> 0.009 | I11: =C11/Inputs!$B$1 -> 0.004 | J11: =B11/Inputs!$B$1 -> 0 | Q11: -0.001220205512 | R11: 0.0459230483 | S11: 0.0644 | T11: 0.01181169476
A12: 0.02 | B12: 0 | C12: 14 | D12: 26 | E12: 21 | F12: 0.02160847109 | G12: =E12/Inputs!$B$1 -> 0.021 | H12: =D12/Inputs!$B$1 -> 0.026 | I12: =C12/Inputs!$B$1 -> 0.014 | J12: =B12/Inputs!$B$1 -> 0 | Q12: -0.000899291412 | R12: 0.04632691647 | S12: 0.0644 | T12: 0.008739709916
A13: 0.025 | B13: 2 | C13: 29 | D13: 43 | E13: 39 | F13: 0.0396399221 | G13: =E13/Inputs!$B$1 -> 0.039 | H13: =D13/Inputs!$B$1 -> 0.043 | I13: =C13/Inputs!$B$1 -> 0.029 | J13: =B13/Inputs!$B$1 -> 0.002 | Q13: -0.0005904316387 | R13: 0.04545319917 | S13: 0.0644 | T13: 0.01905623348
A14: 0.03 | B14: 8 | C14: 56 | D14: 56 | E14: 51 | F14: 0.05652210419 | G14: =E14/Inputs!$B$1 -> 0.051 | H14: =D14/Inputs!$B$1 -> 0.056 | I14: =C14/Inputs!$B$1 -> 0.056 | J14: =B14/Inputs!$B$1 -> 0.008 | Q14: -0.0002932594053 | R14: 0.04821272353 | S14: 0.0644 | T14: 0.05892345419
A15: 0.035 | B15: 58 | C15: 64 | D15: 69 | E15: 58 | F15: 0.06895419949 | G15: =E15/Inputs!$B$1 -> 0.058 | H15: =D15/Inputs!$B$1 -> 0.069 | I15: =C15/Inputs!$B$1 -> 0.064 | J15: =B15/Inputs!$B$1 -> 0.058 | Q15: -7.425373623e-06 | R15: 0.04799199955 | S15: 0.0644 | T15: 0.00460493789
A16: 0.04 | B16: 195 | C16: 73 | D16: 69 | E16: 81 | F16: 0.07594233284 | G16: =E16/Inputs!$B$1 -> 0.081 | H16: =D16/Inputs!$B$1 -> 0.069 | I16: =C16/Inputs!$B$1 -> 0.073 | J16: =B16/Inputs!$B$1 -> 0.195 | Q16: 0.0002674042023 | R16: 0.04700601424 | S16: 0.0644 | T16: 0.02077506376
A17: 0.045 | B17: 319 | C17: 71 | D17: 78 | E17: 91 | F17: 0.07798512692 | G17: =E17/Inputs!$B$1 -> 0.091 | H17: =D17/Inputs!$B$1 -> 0.078 | I17: =C17/Inputs!$B$1 -> 0.071 | J17: =B17/Inputs!$B$1 -> 0.319 | Q17: 0.0005315492689 | R17: 0.04285408748 | S17: 0.0644 | T17: 0.09249082388
A18: 0.05 | B18: 277 | C18: 96 | D18: 74 | E18: 71 | F18: 0.07621848684 | G18: =E18/Inputs!$B$1 -> 0.071 | H18: =D18/Inputs!$B$1 -> 0.074 | I18: =C18/Inputs!$B$1 -> 0.096 | J18: =B18/Inputs!$B$1 -> 0.277 | Q18: 0.0007853176753 | R18: 0.0424255896 | S18: 0.0644 | T18: 0.01006562139
A19: 0.055 | B19: 106 | C19: 76 | D19: 60 | E19: 76 | F19: 0.07187101821 | G19: =E19/Inputs!$B$1 -> 0.076 | H19: =D19/Inputs!$B$1 -> 0.06 | I19: =C19/Inputs!$B$1 -> 0.076 | J19: =B19/Inputs!$B$1 -> 0.106 | Q19: 0.001029006767 | R19: 0.04265315418 | S19: 0.0644 | T19: 0.005333218935
A20: 0.06 | B20: 20 | C20: 102 | D20: 66 | E20: 75 | F20: 0.06600406845 | G20: =E20/Inputs!$B$1 -> 0.075 | H20: =D20/Inputs!$B$1 -> 0.066 | I20: =C20/Inputs!$B$1 -> 0.102 | J20: =B20/Inputs!$B$1 -> 0.02 | Q20: 0.001262904856 | R20: 0.04165950889 | S20: 0.0644 | T20: 0.02358787796
A21: 0.065 | B21: 12 | C21: 67 | D21: 56 | E21: 61 | F21: 0.05942941659 | G21: =E21/Inputs!$B$1 -> 0.061 | H21: =D21/Inputs!$B$1 -> 0.056 | I21: =C21/Inputs!$B$1 -> 0.067 | J21: =B21/Inputs!$B$1 -> 0.012 | Q21: 0.001487292562 | R21: 0.04067162411 | S21: 0.0644 | T21: 0.02401529301
A22: 0.07 | B22: 1 | C22: 71 | D22: 53 | E22: 52 | F22: 0.05271622858 | G22: =E22/Inputs!$B$1 -> 0.052 | H22: =D22/Inputs!$B$1 -> 0.053 | I22: =C22/Inputs!$B$1 -> 0.071 | J22: =B22/Inputs!$B$1 -> 0.001 | Q22: 0.001702444014 | R22: 0.04242800243 | S22: 0.0644 | T22: 0.04226162716
A23: 0.075 | B23: 1 | C23: 38 | D23: 46 | E23: 44 | F23: 0.04623314951 | G23: =E23/Inputs!$B$1 -> 0.044 | H23: =D23/Inputs!$B$1 -> 0.046 | I23: =C23/Inputs!$B$1 -> 0.038 | J23: =B23/Inputs!$B$1 -> 0.001 | Q23: 0.00190862792 | R23: 0.04424318218 | S23: 0.0644 | T23: 0.04187640663
A24: 0.08 | B24: 0 | C24: 43 | D24: 34 | E24: 44 | F24: 0.04019757547 | G24: =E24/Inputs!$B$1 -> 0.044 | H24: =D24/Inputs!$B$1 -> 0.034 | I24: =C24/Inputs!$B$1 -> 0.043 | J24: =B24/Inputs!$B$1 -> 0 | Q24: 0.002106108499 | R24: 0.04426677949 | S24: 0.078475201 | T24: 0.0005169136258
A25: 0.085 | B25: 1 | C25: 35 | D25: 35 | E25: 41 | F25: 0.03471990851 | G25: =E25/Inputs!$B$1 -> 0.041 | H25: =D25/Inputs!$B$1 -> 0.035 | I25: =C25/Inputs!$B$1 -> 0.035 | J25: =B25/Inputs!$B$1 -> 0.001 | Q25: 0.002295146284 | R25: 0.0442760495 | S25: 0.09203548282 | T25: 0.0001930916611
A26: 0.09 | B26: 0 | C26: 36 | D26: 29 | E26: 29 | F26: 0.02983887096 | G26: =E26/Inputs!$B$1 -> 0.029 | H26: =D26/Inputs!$B$1 -> 0.029 | I26: =C26/Inputs!$B$1 -> 0.036 | J26: =B26/Inputs!$B$1 -> 0 | Q26: 0.002475998792 | R26: 0.04568429422 | S26: 0.09203548282 | T26: 0.03129438117
A27: 0.095 | B27: 0 | C27: 24 | D27: 31 | E27: 22 | F27: 0.02554778184 | G27: =E27/Inputs!$B$1 -> 0.022 | H27: =D27/Inputs!$B$1 -> 0.031 | I27: =C27/Inputs!$B$1 -> 0.024 | J27: =B27/Inputs!$B$1 -> 0 | Q27: 0.002648921087 | R27: 0.04572778881 | S27: 0.09203548282 | T27: 0.0009353169242
A28: 0.1 | B28: 0 | C28: 17 | D28: 27 | E28: 25 | F28: 0.02181316912 | G28: =E28/Inputs!$B$1 -> 0.025 | H28: =D28/Inputs!$B$1 -> 0.027 | I28: =C28/Inputs!$B$1 -> 0.017 | J28: =B28/Inputs!$B$1 -> 0 | Q28: 0.002814166218 | R28: 0.0474362552 | S28: 0.09203548282 | T28: 0.03666433179
A29: 0.105 | B29: 0 | C29: 11 | D29: 26 | E29: 15 | F29: 0.0185874314 | G29: =E29/Inputs!$B$1 -> 0.015 | H29: =D29/Inputs!$B$1 -> 0.026 | I29: =C29/Inputs!$B$1 -> 0.011 | J29: =B29/Inputs!$B$1 -> 0 | Q29: 0.002971985563 | R29: 0.04659219412 | S29: 0.09203548282 | T29: 0.017970094
A30: 0.11 | B30: 0 | C30: 14 | D30: 19 | E30: 14 | F30: 0.01581712436 | G30: =E30/Inputs!$B$1 -> 0.014 | H30: =D30/Inputs!$B$1 -> 0.019 | I30: =C30/Inputs!$B$1 -> 0.014 | J30: =B30/Inputs!$B$1 -> 0 | Q30: 0.003122629073 | R30: 0.04676439759 | S30: 0.09203548282 | T30: 0.003672860418
A31: 0.115 | B31: 0 | C31: 9 | D31: 11 | E31: 8 | F31: 0.01344815248 | G31: =E31/Inputs!$B$1 -> 0.008 | H31: =D31/Inputs!$B$1 -> 0.011 | I31: =C31/Inputs!$B$1 -> 0.009 | J31: =B31/Inputs!$B$1 -> 0 | Q31: 0.003266345433 | R31: 0.0459687732 | S31: 0.09203548282 | T31: 0.01717615443
A32: 0.12 | B32: 0 | C32: 6 | D32: 13 | E32: 10 | F32: 0.01142883915 | G32: =E32/Inputs!$B$1 -> 0.01 | H32: =D32/Inputs!$B$1 -> 0.013 | I32: =C32/Inputs!$B$1 -> 0.006 | J32: =B32/Inputs!$B$1 -> 0 | Q32: 0.003403382141 | R32: 0.04488552972 | S32: 0.09203548282 | T32: 0.02386315645
A33: 0.125 | B33: 0 | C33: 4 | D33: 13 | E33: 9 | F33: 0.009711583501 | G33: =E33/Inputs!$B$1 -> 0.009 | H33: =D33/Inputs!$B$1 -> 0.013 | I33: =C33/Inputs!$B$1 -> 0.004 | J33: =B33/Inputs!$B$1 -> 0 | Q33: 0.003533985525 | R33: 0.04819172318 | S33: 0.09203548282 | T33: 0.07105552434
A34: 0.13 | B34: 0 | C34: 7 | D34: 6 | E34: 12 | F34: 0.008253603731 | G34: =E34/Inputs!$B$1 -> 0.012 | H34: =D34/Inputs!$B$1 -> 0.006 | I34: =C34/Inputs!$B$1 -> 0.007 | J34: =B34/Inputs!$B$1 -> 0 | Q34: 0.003658400692 | R34: 0.04818457487 | S34: 0.09203548282 | T34: 0.0001646405962
A35: 0.135 | B35: 0 | C35: 6 | D35: 9 | E35: 4 | F35: 0.007017110963 | G35: =E35/Inputs!$B$1 -> 0.004 | H35: =D35/Inputs!$B$1 -> 0.009 | I35: =C35/Inputs!$B$1 -> 0.006 | J35: =B35/Inputs!$B$1 -> 0 | Q35: 0.003776871433 | R35: 0.04795350242 | S35: 0.09203548282 | T35: 0.004823403526
A36: 0.14 | B36: 0 | C36: 6 | D36: 2 | E36: 5 | F36: 0.005969145263 | G36: =E36/Inputs!$B$1 -> 0.005 | H36: =D36/Inputs!$B$1 -> 0.002 | I36: =C36/Inputs!$B$1 -> 0.006 | J36: =B36/Inputs!$B$1 -> 0 | Q36: 0.003889640075 | R36: 0.04932282669 | S36: 0.09203548282 | T36: 0.02813884928
A37: 0.145 | B37: 0 | C37: 1 | D37: 5 | E37: 3 | F37: 0.005081226253 | G37: =E37/Inputs!$B$1 -> 0.003 | H37: =D37/Inputs!$B$1 -> 0.005 | I37: =C37/Inputs!$B$1 -> 0.001 | J37: =B37/Inputs!$B$1 -> 0 | Q37: 0.003996947303 | R37: 0.04954475749 | S37: 0.09203548282 | T37: 0.004473164056
A38: 0.15 | B38: 0 | C38: 3 | D38: 4 | E38: 5 | F38: 0.004328916247 | G38: =E38/Inputs!$B$1 -> 0.005 | H38: =D38/Inputs!$B$1 -> 0.004 | I38: =C38/Inputs!$B$1 -> 0.003 | J38: =B38/Inputs!$B$1 -> 0 | Q38: 0.004099031949 | R38: 0.05050957497 | S38: 0.09203548282 | T38: 0.01927016997
A39: 0.155 | B39: 0 | C39: 4 | D39: 2 | E39: 3 | F39: 0.00369135682 | G39: =E39/Inputs!$B$1 -> 0.003 | H39: =D39/Inputs!$B$1 -> 0.002 | I39: =C39/Inputs!$B$1 -> 0.004 | J39: =B39/Inputs!$B$1 -> 0 | Q39: 0.004196130757 | R39: 0.05193234075 | S39: 0.09203548282 | T39: 0.02776251145
A40: 0.16 | B40: 0 | C40: 0 | D40: 3 | E40: 3 | F40: 0.003150815108 | G40: =E40/Inputs!$B$1 -> 0.003 | H40: =D40/Inputs!$B$1 -> 0.003 | I40: =C40/Inputs!$B$1 -> 0 | J40: =B40/Inputs!$B$1 -> 0 | Q40: 0.004288478128 | R40: 0.05305174879 | S40: 0.09203548282 | T40: 0.02130979871
A41: 0.165 | B41: 0 | C41: 2 | D41: 1 | E41: 3 | F41: 0.002692260017 | G41: =E41/Inputs!$B$1 -> 0.003 | H41: =D41/Inputs!$B$1 -> 0.001 | I41: =C41/Inputs!$B$1 -> 0.002 | J41: =B41/Inputs!$B$1 -> 0 | Q41: 0.004376305859 | R41: 0.05533602323 | S41: 0.09203548282 | T41: 0.04213998268
A42: 0.17 | B42: 0 | C42: 1 | D42: 5 | E42: 0 | F42: 0.0023029782 | G42: =E42/Inputs!$B$1 -> 0 | H42: =D42/Inputs!$B$1 -> 0.005 | I42: =C42/Inputs!$B$1 -> 0.001 | J42: =B42/Inputs!$B$1 -> 0 | Q42: 0.004459842863 | R42: 0.05453316951 | S42: 0.09203548282 | T42: 0.01463127859
A43: 0.175 | B43: 0 | C43: 1 | D43: 2 | E43: 5 | F43: 0.001972233248 | G43: =E43/Inputs!$B$1 -> 0.005 | H43: =D43/Inputs!$B$1 -> 0.002 | I43: =C43/Inputs!$B$1 -> 0.001 | J43: =B43/Inputs!$B$1 -> 0 | Q43: 0.004539314899 | R43: 0.05385772471 | S43: 0.09203548282 | T43: 0.01247958832
A44: 0.18 | B44: 0 | C44: 1 | D44: 0 | E44: 2 | F44: 0.001690967723 | G44: =E44/Inputs!$B$1 -> 0.002 | H44: =D44/Inputs!$B$1 -> 0 | I44: =C44/Inputs!$B$1 -> 0.001 | J44: =B44/Inputs!$B$1 -> 0 | Q44: 0.004614944292 | R44: 0.05491154391 | S44: 0.09203548282 | T44: 0.01936145721
A45: 0.185 | B45: 0 | C45: 1 | D45: 1 | E45: 2 | F45: 0.001451545458 | G45: =E45/Inputs!$B$1 -> 0.002 | H45: =D45/Inputs!$B$1 -> 0.001 | I45: =C45/Inputs!$B$1 -> 0.001 | J45: =B45/Inputs!$B$1 -> 0 | Q45: 0.004686949659 | R45: 0.05608523774 | S45: 0.09203548282 | T45: 0.0211327391
A46: 0.19 | B46: 0 | C46: 1 | D46: 1 | E46: 0 | F46: 0.00124753052 | G46: =E46/Inputs!$B$1 -> 0 | H46: =D46/Inputs!$B$1 -> 0.001 | I46: =C46/Inputs!$B$1 -> 0.001 | J46: =B46/Inputs!$B$1 -> 0 | Q46: 0.004755545647 | R46: 0.05821233609 | S46: 0.09203548282 | T46: 0.03720835783
A47: 0.195 | B47: 0 | C47: 1 | D47: 3 | E47: 0 | F47: 0.001073498763 | G47: =E47/Inputs!$B$1 -> 0 | H47: =D47/Inputs!$B$1 -> 0.003 | I47: =C47/Inputs!$B$1 -> 0.001 | J47: =B47/Inputs!$B$1 -> 0 | Q47: 0.004820942676 | R47: 0.05782078687 | S47: 0.09203548282 | T47: 0.006765246009
A48: 0.2 | B48: 0 | C48: 2 | D48: 2 | E48: 2 | F48: 0.0009248779301 | G48: =E48/Inputs!$B$1 -> 0.002 | H48: =D48/Inputs!$B$1 -> 0.002 | I48: =C48/Inputs!$B$1 -> 0.002 | J48: =B48/Inputs!$B$1 -> 0 | Q48: 0.004883346692 | R48: 0.06077601346 | S48: 0.09203548282 | T48: 0.04983055127
A49: 0.205 | B49: 0 | C49: 0 | D49: 0 | E49: 0 | F49: 0.0007978124563 | G49: =E49/Inputs!$B$1 -> 0 | H49: =D49/Inputs!$B$1 -> 0 | I49: =C49/Inputs!$B$1 -> 0 | J49: =B49/Inputs!$B$1 -> 0 | Q49: 0.004942958942 | R49: 0.06123038163 | S49: 0.09203548282 | T49: 0.007432003679
A50: 0.21 | B50: 0 | C50: 1 | D50: 0 | E50: 1 | F50: 0.0006890494481 | G50: =E50/Inputs!$B$1 -> 0.001 | H50: =D50/Inputs!$B$1 -> 0 | I50: =C50/Inputs!$B$1 -> 0.001 | J50: =B50/Inputs!$B$1 -> 0 | Q50: 0.004999975751 | R50: 0.06316368352 | S50: 0.09203548282 | T50: 0.03106971108
A51: 0.215 | B51: 0 | C51: 0 | D51: 1 | E51: 0 | F51: 0.0005958427242 | G51: =E51/Inputs!$B$1 -> 0 | H51: =D51/Inputs!$B$1 -> 0.001 | I51: =C51/Inputs!$B$1 -> 0 | J51: =B51/Inputs!$B$1 -> 0 | Q51: 0.005054588332 | R51: 0.06326367936 | S51: 0.09203548282 | T51: 0.001565571678
A52: 0.22 | B52: 0 | C52: 0 | D52: 1 | E52: 1 | F52: 0.0005158721606 | G52: =E52/Inputs!$B$1 -> 0.001 | H52: =D52/Inputs!$B$1 -> 0.001 | I52: =C52/Inputs!$B$1 -> 0 | J52: =B52/Inputs!$B$1 -> 0 | Q52: 0.005106982595 | R52: 0.06391447018 | S52: 0.09203548282 | T52: 0.01021810865
A53: 0.225 | B53: 0 | C53: 0 | D53: 3 | E53: 0 | F53: 0.0004471759685 | G53: =E53/Inputs!$B$1 -> 0 | H53: =D53/Inputs!$B$1 -> 0.003 | I53: =C53/Inputs!$B$1 -> 0 | J53: =B53/Inputs!$B$1 -> 0 | Q53: 0.005157338991 | R53: 0.06687374421 | S53: 0.09203548282 | T53: 0.04524434185
A54: 0.23 | B54: 0 | C54: 0 | D54: 0 | E54: 1 | F54: 0.0003880938609 | G54: =E54/Inputs!$B$1 -> 0.001 | H54: =D54/Inputs!$B$1 -> 0 | I54: =C54/Inputs!$B$1 -> 0 | J54: =B54/Inputs!$B$1 -> 0 | Q54: 0.005205832363 | R54: 0.06449822628 | S54: 0.09203548282 | T54: 0.03618500184
A55: 0.235 | B55: 0 | C55: 0 | D55: 0 | E55: 2 | F55: 0.000337219375 | G55: =E55/Inputs!$B$1 -> 0.002 | H55: =D55/Inputs!$B$1 -> 0 | I55: =C55/Inputs!$B$1 -> 0 | J55: =B55/Inputs!$B$1 -> 0 | Q55: 0.005252631823 | R55: 0.06700310453 | S55: 0.09203548282 | T55: 0.03808493184
A56: 0.24 | B56: 0 | C56: 0 | D56: 0 | E56: 0 | F56: 0.0002933598741 | G56: =E56/Inputs!$B$1 -> 0 | H56: =D56/Inputs!$B$1 -> 0 | I56: =C56/Inputs!$B$1 -> 0 | J56: =B56/Inputs!$B$1 -> 0 | Q56: 0.005297900642 | R56: 0.06729497913 | S56: 0.09203548282 | T56: 0.004330376155
A57: 0.245 | B57: 0 | C57: 0 | D57: 0 | E57: 0 | F57: 0.0002555029886 | G57: =E57/Inputs!$B$1 -> 0 | H57: =D57/Inputs!$B$1 -> 0 | I57: =C57/Inputs!$B$1 -> 0 | J57: =B57/Inputs!$B$1 -> 0 | Q57: 0.00534179616 | R57: 0.06713372405 | S57: 0.09203548282 | T57: 0.002415416924
A58: 0.25 | B58: 0 | C58: 0 | D58: 3 | E58: 3 | F58: =(1-NORMDIST(LN(A58-0.0025),$G$2,$G$3,TRUE)) -> 0.001855253277 | G58: =E58/Inputs!$B$1 -> 0.003 | H58: =D58/Inputs!$B$1 -> 0.003 | I58: =C58/Inputs!$B$1 -> 0 | J58: =B58/Inputs!$B$1 -> 0 | Q58: 0.005384469724 | R58: 0.06702906647 | S58: 0.09203548282 | T58: 0.001576457122
Q59: 0.005426066626 | R59: 0.06676666102 | S59: 0.09203548282 | T59: 0.003938782747
Q60: 0.005466726076 | R60: 0.06698004666 | S60: 0.09203548282 | T60: 0.003174595794
Q61: 0.005506581185 | R61: 0.06558421603 | S61: 0.09203548282 | T61: 0.02107600526
Q62: 0.005545758962 | R62: 0.06265636817 | S62: 0.09203548282 | T62: 0.04568603361
Q63: 0.005584380329 | R63: 0.06145442927 | S63: 0.09203548282 | T63: 0.01938570911
Q64: 0.005622560156 | R64: 0.06316289483 | S64: 0.09203548282 | T64: 0.02740481005
Q65: 0.005660407303 | R65: 0.06253574444 | S65: 0.09203548282 | T65: 0.00999501614
Q66: 0.005698024676 | R66: 0.06727580991 | S66: 0.09203548282 | T66: 0.07304613218
Q67: 0.005735509302 | R67: 0.06669480522 | S67: 0.09203548282 | T67: 0.008689967066
Q68: 0.005772952411 | R68: 0.06649527281 | S68: 0.09203548282 | T68: 0.003012506488
Q69: 0.005810439526 | R69: 0.06656121032 | S69: 0.09203548282 | T69: 0.000974821872
Q70: 0.005848050569 | R70: 0.06580006004 | S70: 0.09203548282 | T70: 0.01151752836
Q71: 0.005885859971 | R71: 0.06748150999 | S71: 0.09203548282 | T71: 0.02521658473
Q72: 0.005923936797 | R72: 0.06691010808 | S72: 0.09203548282 | T72: 0.008519885124
Q73: 0.005962344868 | R73: 0.06975495768 | S73: 0.09203548282 | T73: 0.04162214913
Q74: 0.006001142898 | R74: 0.07058837963 | S74: 0.09203548282 | T74: 0.01186074149
Q75: 0.006040384637 | R75: 0.07099365999 | S75: 0.09203548282 | T75: 0.005708741873
Q76: 0.00608011901 | R76: 0.07022740248 | S76: 0.09203548282 | T76: 0.01086829243
Q77: 0.006120390272 | R77: 0.07287215543 | S77: 0.09203548282 | T77: 0.03695172793
Q78: 0.006161238158 | R78: 0.07420650526 | S78: 0.09203548282 | T78: 0.01812890905
Q79: 0.006202698038 | R79: 0.07455812002 | S79: 0.09203548282 | T79: 0.004710838647
Q80: 0.006244801081 | R80: 0.07647483318 | S80: 0.09203548282 | T80: 0.02536645395
Q81: 0.006287574405 | R81: 0.08096265698 | S81: 0.09203548282 | T81: 0.05701001594
Q82: 0.006331041246 | R82: 0.08201494399 | S82: 0.09203548282 | T82: 0.01289715219
Q83: 0.006375221116 | R83: 0.08301989204 | S83: 0.09203548282 | T83: 0.01216246883
Q84: 0.006420129966 | R84: 0.0825413046 | S84: 0.09203548282 | T84: 0.005797711117
Q85: 0.006465780342 | R85: 0.08007584973 | S85: 0.09203548282 | T85: 0.03034082166
Q86: 0.006512181553 | R86: 0.08118410532 | S86: 0.09203548282 | T86: 0.01372887475
Q87: 0.006559339821 | R87: 0.07818223585 | S87: 0.09203548282 | T87: 0.03769332087
Q88: 0.006607258446 | R88: 0.07741430142 | S88: 0.09203548282 | T88: 0.009887221203
Q89: 0.006655937956 | R89: 0.0782237486 | S89: 0.09203548282 | T89: 0.01038545677
Q90: 0.00670537626 | R90: 0.07692156679 | S90: 0.09203548282 | T90: 0.01680330128
Q91: 0.0067555688 | R91: 0.0776151751 | S91: 0.09203548282 | T91: 0.008960375096
Q92: 0.006806508699 | R92: 0.07675739654 | S92: 0.09203548282 | T92: 0.01112950878
Q93: 0.006858186903 | R93: 0.07639030591 | S93: 0.09203548282 | T93: 0.004810250347
Q94: 0.006910592321 | R94: 0.07926410521 | S94: 0.09203548282 | T94: 0.03691327968
Q95: 0.006963711967 | R95: 0.08039503535 | S95: 0.09203548282 | T95: 0.01415074539
Q96: 0.007017531091 | R96: 0.08122092345 | S96: 0.09203548282 | T96: 0.01020416815
Q97: 0.007072033308 | R97: 0.08135223433 | S97: 0.09203548282 | T97: 0.001599108073
Q98: 0.007127200726 | R98: 0.08386523023 | S98: 0.09203548282 | T98: 0.03040651064
Q99: 0.007183014071 | R99: 0.0858951759 | S99: 0.09203548282 | T99: 0.02390026064
Q100: 0.0072394528 | R100: 0.08415374758 | S100: 0.09203548282 | T100: 0.02049851265
Q101: 0.00729649522 | R101: 0.08517677887 | S101: 0.09203548282 | T101: 0.0120670952
Q102: 0.007354118596 | R102: 0.08241399187 | S102: 0.09203548282 | T102: 0.03298992027
Q103: 0.007412299257 | R103: 0.0808573742 | S103: 0.09203548282 | T103: 0.01908473534
Q104: 0.007471012702 | R104: 0.07872440259 | S104: 0.09203548282 | T104: 0.02674991073
Q105: 0.00753023369 | R105: 0.07826833058 | S105: 0.09203548282 | T105: 0.005826418663
Q106: 0.007589936344 | R106: 0.07817534551 | S106: 0.09203548282 | T106: 0.001205034409
Q107: 0.007650094233 | R107: 0.07974747754 | S107: 0.09203548282 | T107: 0.01989448961
Q108: 0.007710680461 | R108: 0.07749255884 | S108: 0.09203548282 | T108: 0.02869949357
Q109: 0.007771667747 | R109: 0.07560636709 | S109: 0.09203548282 | T109: 0.02465771535
Q110: 0.007833028508 | R110: 0.07504294316 | S110: 0.09203548282 | T110: 0.007496274052
Q111: 0.007894734924 | R111: 0.07552957976 | S111: 0.09203548282 | T111: 0.006447540413
Q112: 0.007956759018 | R112: 0.07546960238 | S112: 0.09203548282 | T112: 0.0008107055377
Q113: 0.008019072716 | R113: 0.08152608989 | S113: 0.09203548282 | T113: 0.07717683376
Q114: 0.008081647909 | R114: 0.0805338172 | S114: 0.09203548282 | T114: 0.0122622036
Q115: 0.008144456521 | R115: 0.08171750319 | S115: 0.09203548282 | T115: 0.01457473173
Q116: 0.008207470552 | R116: 0.07809117978 | S116: 0.09203548282 | T116: 0.04540739959
Q117: 0.008270662142 | R117: 0.07790008474 | S117: 0.09203548282 | T117: 0.002466373689
Q118: 0.008334003612 | R118: 0.07706880575 | S118: 0.09203548282 | T118: 0.0107447355
Q119: 0.008397467516 | R119: 0.07463570064 | S119: 0.09203548282 | T119: 0.03209594938
Q120: 0.008461026677 | R120: 0.07616458302 | S120: 0.09203548282 | T120: 0.02026131252
Q121: 0.008524654233 | R121: 0.07911925244 | S121: 0.09203548282 | T121: 0.03804337503
Q122: 0.008588323671 | R122: 0.08226324679 | S122: 0.09203548282 | T122: 0.03895189416
Q123: 0.008652008861 | R123: 0.0850854475 | S123: 0.09203548282 | T123: 0.03371528557
Q124: 0.008715684087 | R124: 0.0895723072 | S124: 0.09203548282 | T124: 0.05137388562
Q125: 0.00877932408 | R125: 0.09080917976 | S125: 0.09203548282 | T125: 0.0136978796
Q126: 0.008842904035 | R126: 0.09112764168 | S126: 0.09203548282 | T126: 0.003484501454
Q127: 0.008906399646 | R127: 0.09238698158 | S127: 0.09203548282 | T127: 0.01370859839
Q128: 0.00896978712 | R128: 0.0907613993 | S128: 0.09203548282 | T128: 0.01776829827
Q129: 0.009033043196 | R129: 0.09090073907 | S129: 0.09203548282 | T129: 0.001517755532
Q130: 0.009096145169 | R130: 0.09094301138 | S130: 0.09203548282 | T130: 0.0004486311816
Q131: 0.009159070899 | R131: 0.09325314329 | S131: 0.09203548282 | T131: 0.02506840553
Q132: 0.009221798825 | R132: 0.09637073557 | S132: 0.09203548282 | T132: 0.03286851751
Q133: 0.009284307979 | R133: 0.100410389 | S133: 0.06854254473 | T133: 0.04104679649
Q134: 0.009346577994 | R134: 0.1000644996 | S134: 0.03570251589 | T134: 0.003467002702
Q135: 0.009408589113 | R135: 0.09753177226 | S135: 0.03570251589 | T135: 0.02565307871
Q136: 0.009470322194 | R136: 0.09226172745 | S136: 0.03570251589 | T136: 0.05556509146
Q137: 0.009531758715 | R137: 0.09242279191 | S137: 0.03570251589 | T137: 0.001727913454
Q138: 0.009592880781 | R138: 0.09297029243 | S138: 0.03570251589 | T138: 0.005890093004
Q139: 0.009653671122 | R139: 0.08910673769 | S139: 0.03570251589 | T139: 0.04246135365
Q140: 0.009714113096 | R140: 0.0892380007 | S140: 0.03570251589 | T140: 0.001455715758
Q141: 0.009774190689 | R141: 0.0901217675 | S141: 0.03570251589 | T141: 0.009838463576
Q142: 0.009833888513 | R142: 0.08531814276 | S142: 0.03570251589 | T142: 0.05479090151
Q143: 0.009893191806 | R143: 0.08269204995 | S143: 0.03570251589 | T143: 0.03127995812
Q144: 0.009952086424 | R144: 0.08263617947 | S144: 0.03570251589 | T144: 0.0006921723771
Q145: 0.01001055884 | R145: 0.08527783834 | S145: 0.03570251589 | T145: 0.03145072074
Q146: 0.01006859614 | R146: 0.08526432954 | S146: 0.03570251589 | T146: 0.0001747207077
Q147: 0.01012618602 | R147: 0.08361551674 | S147: 0.03570251589 | T147: 0.01954337947
Q148: 0.01018331678 | R148: 0.08665807085 | S148: 0.03570251589 | T148: 0.03572474628
Q149: 0.01023997728 | R149: 0.08466939534 | S149: 0.03570251589 | T149: 0.02323224761
Q150: 0.01029615701 | R150: 0.08261479117 | S150: 0.03570251589 | T150: 0.02458177077
Q151: 0.010351846 | R151: 0.08456140029 | S151: 0.03570251589 | T151: 0.02327286792
Q152: 0.01040703488 | R152: 0.08361410241 | S152: 0.03570251589 | T152: 0.01128200497
Q153: 0.01046171481 | R153: 0.08527321122 | S153: 0.03570251589 | T153: 0.01963185767
Q154: 0.01051587752 | R154: 0.08469978699 | S154: 0.03570251589 | T154: 0.00676356356
Q155: 0.01056951525 | R155: 0.08465474213 | S155: 0.03570251589 | T155: 0.0005482582747
Q156: 0.01062262081 | R156: 0.08137459855 | S156: 0.03570251589 | T156: 0.03953425909
Q157: 0.01067518749 | R157: 0.08141881799 | S157: 0.03570251589 | T157: 0.0005269594557
Q158: 0.01072720911 | R158: 0.08346115851 | S158: 0.03570251589 | T158: 0.02475863174
Q159: 0.01077867996 | R159: 0.08421093313 | S159: 0.03570251589 | T159: 0.008927104958
Q160: 0.01082959486 | R160: 0.08057313312 | S160: 0.03570251589 | T160: 0.04417580087
Q161: 0.01087994904 | R161: 0.07653095586 | S161: 0.03570251589 | T161: 0.05148624606
Q162: 0.01092973825 | R162: 0.0757005215 | S162: 0.03570251589 | T162: 0.01092656017
Q163: 0.01097895865 | R163: 0.07834032482 | S163: 0.03570251589 | T163: 0.03426112631
Q164: 0.01102760686 | R164: 0.07686946973 | S164: 0.03570251589 | T164: 0.01896998831
Q165: 0.0110756799 | R165: 0.07457051852 | S165: 0.03570251589 | T165: 0.03037984894
Q166: 0.01112317524 | R166: 0.07188158086 | S166: 0.03570251589 | T166: 0.0367414792
Q167: 0.01117009071 | R167: 0.07063147504 | S167: 0.03570251589 | T167: 0.01756048633
Q168: 0.01121642456 | R168: 0.07115551171 | S168: 0.03570251589 | T168: 0.007375621529
Q169: 0.0112621754 | R169: 0.06676817133 | S169: 0.03570251589 | T169: 0.06365759653
Q170: 0.01130734222 | R170: 0.06581043289 | S170: 0.03570251589 | T170: 0.01446440851
Q171: 0.01135192436 | R171: 0.06365293092 | S171: 0.03570251589 | T171: 0.03334930785
Q172: 0.01139592149 | R172: 0.06254072552 | S172: 0.03570251589 | T172: 0.01764371734
Q173: 0.01143933362 | R173: 0.06376711954 | S173: 0.03570251589 | T173: 0.01940343814
Q174: 0.01148216108 | R174: 0.06433968265 | S174: 0.03570251589 | T174: 0.008922600678
Q175: 0.01152440451 | R175: 0.0628230908 | S175: 0.03570251589 | T175: 0.02387019453
Q176: 0.01156606485 | R176: 0.06154318915 | S176: 0.03570251589 | T176: 0.02059980167
Q177: 0.01160714329 | R177: 0.06442617955 | S177: 0.03570251589 | T177: 0.0457645755
Q178: 0.01164764135 | R178: 0.0631485762 | S178: 0.03570251589 | T178: 0.02004606191
Q179: 0.01168756078 | R179: 0.06239232899 | S179: 0.03570251589 | T179: 0.01206426612
Q180: 0.01172690358 | R180: 0.06235550645 | S180: 0.03570251589 | T180: 0.0006066504995
Q181: 0.011765672 | R181: 0.06141678724 | S181: 0.03570251589 | T181: 0.01518507668
Q182: 0.01180386853 | R182: 0.05763037006 | S182: 0.03570251589 | T182: 0.06364981762
Q183: 0.01184149587 | R183: 0.05583464814 | S183: 0.03570251589 | T183: 0.0316713746
Q184: 0.01187855695 | R184: 0.05418416249 | S184: 0.03570251589 | T184: 0.03002224905
Q185: 0.01191505487 | R185: 0.05243855713 | S185: 0.03570251589 | T185: 0.03276281588
Q186: 0.01195099295 | R186: 0.0512449972 | S186: 0.03570251589 | T186: 0.023040445
Q187: 0.01198637468 | R187: 0.05180881566 | S187: 0.03570251589 | T187: 0.0109260248
Q188: 0.01202120375 | R188: 0.05305339019 | S188: 0.03570251589 | T188: 0.02372214833
Q189: 0.01205548397 | R189: 0.05636810802 | S189: 0.03570251589 | T189: 0.06058847054
Q190: 0.01208921935 | R190: 0.05624889522 | S190: 0.03570251589 | T190: 0.002133436467
Q191: 0.01212241402 | R191: 0.05732737185 | S191: 0.03570251589 | T191: 0.01897550413
Q192: 0.01215507226 | R192: 0.05831446064 | S192: 0.03570251589 | T192: 0.01705559877
Q193: 0.01218719849 | R193: 0.05594563315 | S193: 0.03570251589 | T193: 0.04148601725
Q194: 0.01221879725 | R194: 0.05417425706 | S194: 0.03570251589 | T194: 0.03219084779
Q195: 0.01224987318 | R195: 0.05276251195 | S195: 0.03570251589 | T195: 0.02642119488
Q196: 0.01228043105 | R196: 0.05041836154 | S196: 0.03570251589 | T196: 0.04546181142
Q197: 0.01231047572 | R197: 0.05037734436 | S197: 0.03570251589 | T197: 0.0008301666605
Q198: 0.01234001215 | R198: 0.05164138951 | S198: 0.03570251589 | T198: 0.02476561715
Q199: 0.01236904539 | R199: 0.05216844689 | S199: 0.03570251589 | T199: 0.0101380742
Q200: 0.01239758056 | R200: 0.05151487181 | S200: 0.03570251589 | T200: 0.01262360615
... 402 more rows

Sheet Worst Scenario
A1: Scenario No. 1 | B1: Month | C1: Rates | D1: Targets
B2: 1 | C2: 0.0388 | D2: 0.0644
B3: 2 | C3: 0.03777818962 | D3: 0.0644
B4: 3 | C4: 0.0364483449 | D4: 0.0644
B5: 4 | C5: 0.03845604527 | D5: 0.0644
B6: 5 | C6: 0.0382079964 | D6: 0.0644
B7: 6 | C7: 0.03777723031 | D7: 0.0644
B8: 7 | C8: 0.03862162071 | D8: 0.0644
B9: 8 | C9: 0.03753323785 | D9: 0.0644
B10: 9 | C10: 0.03807474623 | D10: 0.0644
B11: 10 | C11: 0.03894390436 | D11: 0.0644
B12: 11 | C12: 0.03959219031 | D12: 0.0644
B13: 12 | C13: 0.04102464491 | D13: 0.0644
B14: 13 | C14: 0.04281519771 | D14: 0.0644
B15: 14 | C15: 0.04199788389 | D15: 0.0644
B16: 15 | C16: 0.04161308215 | D16: 0.0644
B17: 16 | C17: 0.04133588165 | D17: 0.0644
B18: 17 | C18: 0.04162616523 | D18: 0.0644
B19: 18 | C19: 0.04249985517 | D19: 0.0644
B20: 19 | C20: 0.04305219909 | D20: 0.0644
B21: 20 | C21: 0.04206158293 | D21: 0.0644
B22: 21 | C22: 0.04221771977 | D22: 0.0644
B23: 22 | C23: 0.04358373318 | D23: 0.0644
B24: 23 | C24: 0.04281699908 | D24: 0.0644
B25: 24 | C25: 0.04332538901 | D25: 0.0644
B26: 25 | C26: 0.04349060908 | D26: 0.0644
B27: 26 | C27: 0.0429677362 | D27: 0.0644
B28: 27 | C28: 0.04461190455 | D28: 0.0644
B29: 28 | C29: 0.04255055824 | D29: 0.0644
B30: 29 | C30: 0.04078886937 | D30: 0.0644
B31: 30 | C31: 0.03833561932 | D31: 0.0644
B32: 31 | C32: 0.03734797241 | D32: 0.0644
B33: 32 | C33: 0.03870212221 | D33: 0.0644
B34: 33 | C34: 0.03959710189 | D34: 0.0644
B35: 34 | C35: 0.04100713996 | D35: 0.0644
B36: 35 | C36: 0.04107101054 | D36: 0.0644
B37: 36 | C37: 0.04188465869 | D37: 0.0644
B38: 37 | C38: 0.0426515832 | D38: 0.0644
B39: 38 | C39: 0.04499715461 | D39: 0.0644
B40: 39 | C40: 0.04266842449 | D40: 0.0644
B41: 40 | C41: 0.04125026582 | D41: 0.0644
B42: 41 | C42: 0.04321736343 | D42: 0.0644
B43: 42 | C43: 0.04321129583 | D43: 0.0644
B44: 43 | C44: 0.04413867178 | D44: 0.0644
B45: 44 | C45: 0.04459160292 | D45: 0.0644
B46: 45 | C46: 0.04400030636 | D46: 0.0644
B47: 46 | C47: 0.04586919871 | D47: 0.0644
B48: 47 | C48: 0.04816257449 | D48: 0.0644
B49: 48 | C49: 0.0478280947 | D49: 0.0644
B50: 49 | C50: 0.04970807943 | D50: 0.0644
B51: 50 | C51: 0.05257146877 | D51: 0.0644
B52: 51 | C52: 0.05169941854 | D52: 0.0644
B53: 52 | C53: 0.05167002895 | D53: 0.0644
B54: 53 | C54: 0.05334124634 | D54: 0.08203045593
B55: 54 | C55: 0.05410949507 | D55: 0.09918278003
B56: 55 | C56: 0.05284224787 | D56: 0.09918278003
B57: 56 | C57: 0.05362031051 | D57: 0.09918278003
B58: 57 | C58: 0.05430272062 | D58: 0.09918278003
B59: 58 | C59: 0.05247451849 | D59: 0.09918278003
B60: 59 | C60: 0.05389719483 | D60: 0.09918278003
B61: 60 | C61: 0.051736419 | D61: 0.09918278003
B62: 61 | C62: 0.05344606966 | D62: 0.09918278003
B63: 62 | C63: 0.05562492354 | D63: 0.09918278003
B64: 63 | C64: 0.05558179243 | D64: 0.09918278003
B65: 64 | C65: 0.05783373691 | D65: 0.09918278003
B66: 65 | C66: 0.05591577438 | D66: 0.09918278003
B67: 66 | C67: 0.05911354857 | D67: 0.09918278003
B68: 67 | C68: 0.0588016549 | D68: 0.09918278003
B69: 68 | C69: 0.05820714196 | D69: 0.09918278003
B70: 69 | C70: 0.0595712887 | D70: 0.09918278003
B71: 70 | C71: 0.05797665999 | D71: 0.09918278003
B72: 71 | C72: 0.05886775808 | D72: 0.09918278003
B73: 72 | C73: 0.05910969351 | D73: 0.09918278003
B74: 73 | C74: 0.0590180719 | D74: 0.09918278003
B75: 74 | C75: 0.05989490705 | D75: 0.09918278003
B76: 75 | C76: 0.06265011274 | D76: 0.09918278003
B77: 76 | C77: 0.06157678864 | D77: 0.09918278003
B78: 77 | C78: 0.06255181807 | D78: 0.09918278003
B79: 78 | C79: 0.06244196012 | D79: 0.09918278003
B80: 79 | C80: 0.06315981674 | D80: 0.09918278003
B81: 80 | C81: 0.06799079608 | D81: 0.09918278003
B82: 81 | C82: 0.07091045612 | D82: 0.09918278003
B83: 82 | C83: 0.0711584038 | D83: 0.09918278003
B84: 83 | C84: 0.0715866329 | D84: 0.09918278003
B85: 84 | C85: 0.06966793549 | D85: 0.09918278003
B86: 85 | C86: 0.07018118598 | D86: 0.09918278003
B87: 86 | C87: 0.07122109483 | D87: 0.09918278003
B88: 87 | C88: 0.0731760822 | D88: 0.09918278003
B89: 88 | C89: 0.07395179292 | D89: 0.09918278003
B90: 89 | C90: 0.07241344854 | D90: 0.09918278003
B91: 90 | C91: 0.07205008018 | D91: 0.09918278003
B92: 91 | C92: 0.07175412187 | D92: 0.09918278003
B93: 92 | C93: 0.07128788695 | D93: 0.09918278003
B94: 93 | C94: 0.07134772411 | D94: 0.09918278003
B95: 94 | C95: 0.07410148937 | D95: 0.09918278003
B96: 95 | C96: 0.08028974456 | D96: 0.09918278003
B97: 96 | C97: 0.07816205398 | D97: 0.09918278003
B98: 97 | C98: 0.07984519473 | D98: 0.09918278003
B99: 98 | C99: 0.08452103182 | D99: 0.09918278003
B100: 99 | C100: 0.0889394776 | D100: 0.08359128432
B101: 100 | C101: 0.08816877763 | D101: 0.04154356055
B102: 101 | C102: 0.08517668603 | D102: 0.04154356055
B103: 102 | C103: 0.08541762011 | D103: 0.04154356055
B104: 103 | C104: 0.09286645171 | D104: 0.04154356055
B105: 104 | C105: 0.09436360187 | D105: 0.04154356055
B106: 105 | C106: 0.09334404057 | D106: 0.04154356055
B107: 106 | C107: 0.08987438509 | D107: 0.04154356055
B108: 107 | C108: 0.08696659554 | D108: 0.04154356055
B109: 108 | C109: 0.08674203457 | D109: 0.04154356055
B110: 109 | C110: 0.08354083595 | D110: 0.04154356055
B111: 110 | C111: 0.08117341032 | D111: 0.04154356055
B112: 111 | C112: 0.08049850632 | D112: 0.04154356055
B113: 112 | C113: 0.07946399897 | D113: 0.04154356055
B114: 113 | C114: 0.0762902947 | D114: 0.04154356055
B115: 114 | C115: 0.07499532821 | D115: 0.04154356055
B116: 115 | C116: 0.07694008815 | D116: 0.04154356055
B117: 116 | C117: 0.07893104949 | D117: 0.04154356055
B118: 117 | C118: 0.07762685498 | D118: 0.04154356055
B119: 118 | C119: 0.07727080641 | D119: 0.04154356055
B120: 119 | C120: 0.07852902486 | D120: 0.04154356055
B121: 120 | C121: 0.07693693223 | D121: 0.04154356055
B122: 121 | C122: 0.07757202005 | D122: 0.04154356055
B123: 122 | C123: 0.0758942288 | D123: 0.04154356055
B124: 123 | C124: 0.07701291171 | D124: 0.04154356055
B125: 124 | C125: 0.07404304784 | D125: 0.04154356055
B126: 125 | C126: 0.07413801076 | D126: 0.04154356055
B127: 126 | C127: 0.07136364265 | D127: 0.04154356055
B128: 127 | C128: 0.07007753557 | D128: 0.04154356055
B129: 128 | C129: 0.06819364075 | D129: 0.04154356055
B130: 129 | C130: 0.06816657945 | D130: 0.04154356055
B131: 130 | C131: 0.06653534216 | D131: 0.04154356055
B132: 131 | C132: 0.06714317979 | D132: 0.04154356055
B133: 132 | C133: 0.06618464853 | D133: 0.04154356055
B134: 133 | C134: 0.06623591849 | D134: 0.04154356055
B135: 134 | C135: 0.06688558074 | D135: 0.04154356055
B136: 135 | C136: 0.06712126923 | D136: 0.04154356055
B137: 136 | C137: 0.06885753277 | D137: 0.04154356055
B138: 137 | C138: 0.06672534664 | D138: 0.04154356055
B139: 138 | C139: 0.06616718524 | D139: 0.04154356055
B140: 139 | C140: 0.06632701993 | D140: 0.04154356055
B141: 140 | C141: 0.06662790518 | D141: 0.04154356055
B142: 141 | C142: 0.06807451803 | D142: 0.04154356055
B143: 142 | C143: 0.06654548518 | D143: 0.04154356055
B144: 143 | C144: 0.06450152741 | D144: 0.04154356055
B145: 144 | C145: 0.0653956377 | D145: 0.04154356055
B146: 145 | C146: 0.06652118726 | D146: 0.04154356055
B147: 146 | C147: 0.06568883335 | D147: 0.04154356055
B148: 147 | C148: 0.06544703866 | D148: 0.04154356055
B149: 148 | C149: 0.06765823736 | D149: 0.04154356055
B150: 149 | C150: 0.06450286445 | D150: 0.04154356055
B151: 150 | C151: 0.0661864278 | D151: 0.04154356055
B152: 151 | C152: 0.06561571161 | D152: 0.04154356055
B153: 152 | C153: 0.06463072467 | D153: 0.04154356055
B154: 153 | C154: 0.06372845129 | D154: 0.04154356055
B155: 154 | C155: 0.06270665654 | D155: 0.04154356055
B156: 155 | C156: 0.06215232581 | D156: 0.04154356055
B157: 156 | C157: 0.06017348481 | D157: 0.04154356055
B158: 157 | C158: 0.05899131866 | D158: 0.04154356055
B159: 158 | C159: 0.05845802685 | D159: 0.04154356055
B160: 159 | C160: 0.05936554271 | D160: 0.04154356055
B161: 160 | C161: 0.05808134052 | D161: 0.04154356055
B162: 161 | C162: 0.05677720228 | D162: 0.04154356055
B163: 162 | C163: 0.05682208247 | D163: 0.04154356055
B164: 163 | C164: 0.05607602498 | D164: 0.04154356055
B165: 164 | C165: 0.05556943503 | D165: 0.04154356055
B166: 165 | C166: 0.05440431169 | D166: 0.04154356055
B167: 166 | C167: 0.05526939352 | D167: 0.04154356055
B168: 167 | C168: 0.05428823722 | D168: 0.04154356055
B169: 168 | C169: 0.05614106732 | D169: 0.04154356055
B170: 169 | C170: 0.05767463194 | D170: 0.04154356055
B171: 170 | C171: 0.05745764873 | D171: 0.05566805619
B172: 171 | C172: 0.0575114862 | D172: 0.07291945757
B173: 172 | C173: 0.05710467306 | D173: 0.07291945757
B174: 173 | C174: 0.05782055137 | D174: 0.07291945757
B175: 174 | C175: 0.05950587304 | D175: 0.07291945757
B176: 175 | C176: 0.05963937603 | D176: 0.07291945757
B177: 176 | C177: 0.05974262115 | D177: 0.07291945757
B178: 177 | C178: 0.05868231125 | D178: 0.07291945757
B179: 178 | C179: 0.05767453721 | D179: 0.07291945757
B180: 179 | C180: 0.059042538 | D180: 0.07291945757
B181: 180 | C181: 0.06155908247 | D181: 0.07291945757
B182: 181 | C182: 0.05998631987 | D182: 0.07291945757
B183: 182 | C183: 0.06109301179 | D183: 0.07291945757
B184: 183 | C184: 0.05875882717 | D184: 0.07291945757
B185: 184 | C185: 0.05976539299 | D185: 0.07291945757
B186: 185 | C186: 0.05814022925 | D186: 0.07291945757
B187: 186 | C187: 0.0583252018 | D187: 0.07291945757
B188: 187 | C188: 0.05952324249 | D188: 0.07291945757
B189: 188 | C189: 0.05970428812 | D189: 0.07291945757
B190: 189 | C190: 0.05967142646 | D190: 0.07291945757
B191: 190 | C191: 0.05911230937 | D191: 0.07291945757
B192: 191 | C192: 0.06010739693 | D192: 0.07291945757
B193: 192 | C193: 0.06083666939 | D193: 0.07291945757
B194: 193 | C194: 0.05818843273 | D194: 0.07291945757
B195: 194 | C195: 0.05950657341 | D195: 0.07291945757
B196: 195 | C196: 0.0624187186 | D196: 0.07291945757
B197: 196 | C197: 0.05979102468 | D197: 0.07291945757
B198: 197 | C198: 0.063478335 | D198: 0.07291945757
B199: 198 | C199: 0.06219463241 | D199: 0.07291945757
B200: 199 | C200: 0.06255421114 | D200: 0.07291945757
... 401 more rows

Sheet Random Scenario
A1: Month | B1: No. 10 | C1: No. 799 | D1: No. 185 | E1: No. 455 | F1: No. 290 | G1: No. 28 | H1: No. 528 | I1: No. 569 | J1: No. 728 | K1: No. 570
A2: 1 | B2: 0.0388 | C2: 0.0388 | D2: 0.0388 | E2: 0.0388 | F2: 0.0388 | G2: 0.0388 | H2: 0.0388 | I2: 0.0388 | J2: 0.0388 | K2: 0.0388
A3: 2 | B3: 0.03911664156 | C3: 0.0410571106 | D3: 0.03772856783 | E3: 0.03936163881 | F3: 0.03906804416 | G3: 0.0386893301 | H3: 0.03854659419 | I3: 0.03755687573 | J3: 0.03770911282 | K3: 0.03984096821
A4: 3 | B4: 0.03843090002 | C4: 0.04323592802 | D4: 0.03632086861 | E4: 0.04138789766 | F4: 0.03988100902 | G4: 0.04109183449 | H4: 0.03918500976 | I4: 0.03939543962 | J4: 0.03617199968 | K4: 0.04095871736
A5: 4 | B5: 0.03845635863 | C5: 0.04271091023 | D5: 0.03825559693 | E5: 0.04307143065 | F5: 0.04039579928 | G5: 0.03984923071 | H5: 0.04003709608 | I5: 0.03943350159 | J5: 0.03647826058 | K5: 0.04015626259
A6: 5 | B6: 0.03879896293 | C6: 0.04110425905 | D6: 0.0379866921 | E6: 0.04277048335 | F6: 0.03943515365 | G6: 0.04006620423 | H6: 0.04107136848 | I6: 0.03895344589 | J6: 0.03582683034 | K6: 0.0395058391
A7: 6 | B7: 0.04135071239 | C7: 0.04000231239 | D7: 0.0375337735 | E7: 0.04634995917 | F7: 0.03957991222 | G7: 0.04073562675 | H7: 0.04159786775 | I7: 0.04059176204 | J7: 0.03585931225 | K7: 0.03948846878
A8: 7 | B8: 0.04094553277 | C8: 0.04223543045 | D8: 0.03835294165 | E8: 0.04553230408 | F8: 0.0408459937 | G8: 0.04080563246 | H8: 0.03997633766 | I8: 0.04260881748 | J8: 0.03618936443 | K8: 0.04092006854
A9: 8 | B9: 0.04102676845 | C9: 0.04233734586 | D9: 0.03722253742 | E9: 0.04519621017 | F9: 0.04011026432 | G9: 0.03877007931 | H9: 0.03984983414 | I9: 0.0422956101 | J9: 0.03632167517 | K9: 0.04114517046
A10: 9 | B10: 0.04119154328 | C10: 0.0453830705 | D10: 0.03774324987 | E10: 0.04458659885 | F10: 0.0405873111 | G10: 0.0407650153 | H10: 0.03923442791 | I10: 0.04394439255 | J10: 0.03704713396 | K10: 0.03929980156
A11: 10 | B11: 0.04189752797 | C11: 0.0459230483 | D11: 0.03858636306 | E11: 0.04477244327 | F11: 0.04074332432 | G11: 0.0429223961 | H11: 0.04099133951 | I11: 0.04647360961 | J11: 0.03928449204 | K11: 0.03916290029
A12: 11 | B12: 0.04050995974 | C12: 0.04632691647 | D12: 0.03921195051 | E12: 0.04612006139 | F12: 0.04024579765 | G12: 0.044872992 | H12: 0.04145316813 | I12: 0.04568862905 | J12: 0.04191485454 | K12: 0.04147935485
A13: 12 | B13: 0.04308359037 | C13: 0.04545319917 | D13: 0.04060181548 | E13: 0.04757428887 | F13: 0.04176385866 | G13: 0.0412702169 | H13: 0.04204964802 | I13: 0.04462666328 | J13: 0.04190570431 | K13: 0.04016425947
A14: 13 | B14: 0.04354013616 | C14: 0.04821272353 | D14: 0.04233192513 | E14: 0.04681794021 | F14: 0.03960648946 | G14: 0.04227365693 | H14: 0.04498545743 | I14: 0.04607860565 | J14: 0.04198381532 | K14: 0.04036207782
A15: 14 | B15: 0.04410796317 | C15: 0.04799199955 | D15: 0.04149439708 | E15: 0.04620689971 | F15: 0.03782795183 | G15: 0.04383517427 | H15: 0.04685986167 | I15: 0.04455932242 | J15: 0.04261256334 | K15: 0.04101451573
A16: 15 | B16: 0.04338615381 | C16: 0.04700601424 | D16: 0.04206190686 | E16: 0.04626853106 | F16: 0.0410434347 | G16: 0.04684801907 | H16: 0.04837347482 | I16: 0.04502755177 | J16: 0.04101464698 | K16: 0.04106332879
A17: 16 | B17: 0.04315396141 | C17: 0.04285408748 | D17: 0.04271461173 | E17: 0.04818585113 | F17: 0.03984690762 | G17: 0.04642868017 | H17: 0.04859233568 | I17: 0.04550152057 | J17: 0.04193351009 | K17: 0.03874808488
A18: 17 | B18: 0.04411560049 | C18: 0.0424255896 | D18: 0.04401990556 | E18: 0.04852358205 | F18: 0.0411816361 | G18: 0.04791367966 | H18: 0.04978032002 | I18: 0.04411922219 | J18: 0.04147996442 | K18: 0.04068382086
A19: 18 | B19: 0.04575135834 | C19: 0.04265315418 | D19: 0.04688773987 | E19: 0.04695031926 | F19: 0.04203684138 | G19: 0.04934312363 | H19: 0.0490138311 | I19: 0.04357799442 | J19: 0.04198419003 | K19: 0.04276831278
A20: 19 | B20: 0.04655283626 | C20: 0.04165950889 | D20: 0.04873510176 | E20: 0.04685700946 | F20: 0.04342188758 | G20: 0.04789702846 | H20: 0.0482853735 | I20: 0.04384323603 | J20: 0.04124122456 | K20: 0.04466204323
A21: 20 | B21: 0.04598375131 | C21: 0.04067162411 | D21: 0.04878877425 | E21: 0.04437099265 | F21: 0.04339660606 | G21: 0.0500760517 | H21: 0.04954028474 | I21: 0.04210366878 | J21: 0.04098091766 | K21: 0.04816368502
A22: 21 | B22: 0.04501095183 | C22: 0.04242800243 | D22: 0.04996305015 | E22: 0.04332356993 | F22: 0.04416256337 | G22: 0.05304029262 | H22: 0.05187590793 | I22: 0.04214301011 | J22: 0.04185498236 | K22: 0.04916866015
A23: 22 | B23: 0.04413115523 | C23: 0.04424318218 | D23: 0.04844616906 | E23: 0.04367124911 | F23: 0.04167853452 | G23: 0.05456984868 | H23: 0.05069155276 | I23: 0.04023250203 | J23: 0.04334403789 | K23: 0.04966490952
A24: 23 | B24: 0.0431178433 | C24: 0.04426677949 | D24: 0.0484986791 | E24: 0.04452246285 | F24: 0.04073502507 | G24: 0.05388949126 | H24: 0.05172495016 | I24: 0.04049006729 | J24: 0.04406640051 | K24: 0.05069115429
A25: 24 | B25: 0.04258670147 | C25: 0.0442760495 | D25: 0.04998540867 | E25: 0.04470970839 | F25: 0.04316746794 | G25: 0.05566840633 | H25: 0.04997895738 | I25: 0.04192368095 | J25: 0.04348173283 | K25: 0.05013733101
A26: 25 | B26: 0.04492922653 | C26: 0.04568429422 | D26: 0.05098002683 | E26: 0.04317428595 | F26: 0.04369639951 | G26: 0.05558483567 | H26: 0.05092424507 | I26: 0.04167813919 | J26: 0.04249801226 | K26: 0.05162957564
A27: 26 | B27: 0.04345859663 | C27: 0.04572778881 | D27: 0.05119908511 | E27: 0.0460505437 | F27: 0.04517495079 | G27: 0.05534230946 | H27: 0.04968112818 | I27: 0.04315267537 | J27: 0.04160921991 | K27: 0.05410570643
A28: 27 | B28: 0.04284241606 | C28: 0.0474362552 | D28: 0.04963810251 | E28: 0.04942567531 | F28: 0.04618579995 | G28: 0.05298249812 | H28: 0.04991463166 | I28: 0.04152514655 | J28: 0.04058661624 | K28: 0.05748669535
A29: 28 | B29: 0.04330494779 | C29: 0.04659219412 | D29: 0.04906792649 | E29: 0.05214506841 | F29: 0.04609778649 | G29: 0.05464206294 | H29: 0.05378744744 | I29: 0.04369794427 | J29: 0.04004572253 | K29: 0.05945546108
A30: 29 | B30: 0.04163726666 | C30: 0.04676439759 | D30: 0.04855855575 | E30: 0.05001018428 | F30: 0.04857083224 | G30: 0.05366021191 | H30: 0.05397817524 | I30: 0.04326385135 | J30: 0.04212235319 | K30: 0.05902646782
A31: 30 | B31: 0.03986431061 | C31: 0.0459687732 | D31: 0.04793334212 | E31: 0.05129177389 | F31: 0.05149939039 | G31: 0.05123810763 | H31: 0.05505066307 | I31: 0.04593435089 | J31: 0.04346246516 | K31: 0.06127524481
A32: 31 | B32: 0.03979718293 | C32: 0.04488552972 | D32: 0.04769879335 | E32: 0.05200503104 | F32: 0.05170990081 | G32: 0.05308067055 | H32: 0.05561612933 | I32: 0.04583924999 | J32: 0.04568780661 | K32: 0.06150257795
A33: 32 | B33: 0.03901497229 | C33: 0.04819172318 | D33: 0.04596806214 | E33: 0.05332048144 | F33: 0.05429342519 | G33: 0.05160338682 | H33: 0.05845171494 | I33: 0.04437564294 | J33: 0.04604359542 | K33: 0.06004193357
A34: 33 | B34: 0.03849034859 | C34: 0.04818457487 | D34: 0.04825180209 | E34: 0.05294692146 | F34: 0.05787340188 | G34: 0.05117851718 | H34: 0.05911695798 | I34: 0.04395336124 | J34: 0.0439650556 | K34: 0.05768809997
A35: 34 | B35: 0.03701444739 | C35: 0.04795350242 | D35: 0.04653288621 | E35: 0.054855268 | F35: 0.057505293 | G35: 0.055520682 | H35: 0.05674626991 | I35: 0.04392059996 | J35: 0.0451481623 | K35: 0.05979767191
A36: 35 | B36: 0.03748942582 | C36: 0.04932282669 | D36: 0.04735200478 | E36: 0.05537676308 | F36: 0.05807496776 | G36: 0.05804048086 | H36: 0.0580039812 | I36: 0.04364487735 | J36: 0.04350960633 | K36: 0.05902346752
A37: 36 | B37: 0.03641671178 | C37: 0.04954475749 | D37: 0.0494203337 | E37: 0.05756916562 | F37: 0.06054265634 | G37: 0.05895590708 | H37: 0.06106280191 | I37: 0.04408745934 | J37: 0.04247164522 | K37: 0.05651266103
A38: 37 | B38: 0.03730427027 | C38: 0.05050957497 | D38: 0.05142022408 | E38: 0.06079399877 | F38: 0.05904629265 | G38: 0.05988138126 | H38: 0.05866418964 | I38: 0.04590942559 | J38: 0.04173934439 | K38: 0.05882036073
A39: 38 | B39: 0.03807966587 | C39: 0.05193234075 | D39: 0.05042287464 | E39: 0.05745240629 | F39: 0.06162819915 | G39: 0.05861533486 | H39: 0.06357472753 | I39: 0.04492300926 | J39: 0.03981274746 | K39: 0.05744142802
A40: 39 | B40: 0.03786752022 | C40: 0.05305174879 | D40: 0.04978963822 | E40: 0.05938517976 | F40: 0.06284767039 | G40: 0.05819749065 | H40: 0.06224591941 | I40: 0.0445638164 | J40: 0.04019674958 | K40: 0.05724921914
A41: 40 | B41: 0.03664349095 | C41: 0.05533602323 | D41: 0.04939259065 | E41: 0.05880757922 | F41: 0.06141530188 | G41: 0.05880714498 | H41: 0.06252485085 | I41: 0.0443103232 | J41: 0.0388457586 | K41: 0.06165862996
A42: 41 | B42: 0.03695356833 | C42: 0.05453316951 | D42: 0.04828250424 | E42: 0.0610956945 | F42: 0.06242612563 | G42: 0.057253177 | H42: 0.06431966566 | I42: 0.04464636454 | J42: 0.03966940179 | K42: 0.06598594108
A43: 42 | B43: 0.03673554492 | C43: 0.05385772471 | D43: 0.04906175089 | E43: 0.06113576275 | F43: 0.06332703606 | G43: 0.05772329652 | H43: 0.06819567168 | I43: 0.04792772036 | J43: 0.03960308092 | K43: 0.06767626881
A44: 43 | B44: 0.03579495583 | C44: 0.05491154391 | D44: 0.05148701491 | E44: 0.05967986247 | F44: 0.06113661182 | G44: 0.05954569316 | H44: 0.06363990587 | I44: 0.04980311308 | J44: 0.03927441348 | K44: 0.06801790976
A45: 44 | B45: 0.03586101003 | C45: 0.05608523774 | D45: 0.05292475891 | E45: 0.05767127065 | F45: 0.06289234243 | G45: 0.05718590279 | H45: 0.06211187913 | I45: 0.04979386518 | J45: 0.03780332236 | K45: 0.07389289093
A46: 45 | B46: 0.03644561512 | C46: 0.05821233609 | D46: 0.0530848337 | E46: 0.05978154161 | F46: 0.06017562833 | G46: 0.05906138094 | H46: 0.06283650694 | I46: 0.04991317656 | J46: 0.03803182354 | K46: 0.07389863178
A47: 46 | B47: 0.03610252638 | C47: 0.05782078687 | D47: 0.05167348046 | E47: 0.05889005002 | F47: 0.06225640261 | G47: 0.06037581793 | H47: 0.06309126198 | I47: 0.04840757518 | J47: 0.03770988144 | K47: 0.07521445378
A48: 47 | B48: 0.03574665495 | C48: 0.06077601346 | D48: 0.05059186052 | E48: 0.05682223643 | F48: 0.0648707907 | G48: 0.06084200795 | H48: 0.06099106033 | I48: 0.0476131467 | J48: 0.03659965974 | K48: 0.07905504437
A49: 48 | B49: 0.03825918151 | C49: 0.06123038163 | D49: 0.05112299377 | E49: 0.05922062265 | F49: 0.06492304373 | G49: 0.05810784683 | H49: 0.05928713645 | I49: 0.04817253824 | J49: 0.03658264262 | K49: 0.07987421106
A50: 49 | B50: 0.04095255036 | C50: 0.06316368352 | D50: 0.04972878498 | E50: 0.05782111846 | F50: 0.06762840709 | G50: 0.05502844568 | H50: 0.06067671598 | I50: 0.04934896024 | J50: 0.03709739033 | K50: 0.083471491
A51: 50 | B51: 0.04134982112 | C51: 0.06326367936 | D51: 0.04888191728 | E51: 0.05745836988 | F51: 0.06534366575 | G51: 0.05439923679 | H51: 0.0629617492 | I51: 0.04972674112 | J51: 0.03665584534 | K51: 0.08465565988
A52: 51 | B52: 0.0422489018 | C52: 0.06391447018 | D52: 0.04908895576 | E52: 0.05495622668 | F52: 0.06906438818 | G52: 0.05246554905 | H52: 0.06190053637 | I52: 0.04855511224 | J52: 0.03620406489 | K52: 0.08638143386
A53: 52 | B53: 0.04426182535 | C53: 0.06687374421 | D53: 0.04828834263 | E53: 0.05250225305 | F53: 0.06880280868 | G53: 0.051515919 | H53: 0.06162199055 | I53: 0.04681735848 | J53: 0.03847768503 | K53: 0.08478264691
A54: 53 | B54: 0.04445840999 | C54: 0.06449822628 | D54: 0.04595629545 | E54: 0.05397393045 | F54: 0.06819908319 | G54: 0.05101350916 | H54: 0.06035002942 | I54: 0.04526042142 | J54: 0.03943571258 | K54: 0.09274809249
A55: 54 | B55: 0.04602590003 | C55: 0.06700310453 | D55: 0.04668241154 | E55: 0.05430078254 | F55: 0.06990233203 | G55: 0.0502569931 | H55: 0.06208106072 | I55: 0.04349724717 | J55: 0.03895350936 | K55: 0.09727888295
A56: 55 | B56: 0.04612648465 | C56: 0.06729497913 | D56: 0.04564482937 | E56: 0.05210254643 | F56: 0.0680528781 | G56: 0.05034027645 | H56: 0.06326336132 | I56: 0.04249313355 | J56: 0.03976791024 | K56: 0.1000012929
A57: 56 | B57: 0.04811287806 | C57: 0.06713372405 | D57: 0.04614460175 | E57: 0.05227844143 | F57: 0.06920567628 | G57: 0.05351983534 | H57: 0.06450612011 | I57: 0.04410822044 | J57: 0.0415766047 | K57: 0.09747152919
A58: 57 | B58: 0.0474482695 | C58: 0.06702906647 | D58: 0.04653491638 | E58: 0.05341317137 | F58: 0.06959477766 | G58: 0.04966821316 | H58: 0.06556992338 | I58: 0.04788605546 | J58: 0.04047126632 | K58: 0.09440125987
A59: 58 | B59: 0.04766276161 | C59: 0.06676666102 | D59: 0.04531407632 | E59: 0.04962518799 | F59: 0.06958563472 | G59: 0.04889544898 | H59: 0.06722381488 | I59: 0.04658936881 | J59: 0.04162123888 | K59: 0.09492528584
A60: 59 | B60: 0.04703030459 | C60: 0.06698004666 | D60: 0.04690407586 | E60: 0.05042076279 | F60: 0.07072296443 | G60: 0.0482457593 | H60: 0.06730117934 | I60: 0.04663245356 | J60: 0.04036870928 | K60: 0.1010761981
A61: 60 | B61: 0.04619497413 | C61: 0.06558421603 | D61: 0.04558701064 | E61: 0.05376553123 | F61: 0.07353648116 | G61: 0.04824431259 | H61: 0.06802456021 | I61: 0.04936700448 | J61: 0.04177520498 | K61: 0.1007402755
A62: 61 | B62: 0.04464751361 | C62: 0.06265636817 | D62: 0.04227222094 | E62: 0.05482499665 | F62: 0.07187285016 | G62: 0.04599593118 | H62: 0.06956169577 | I62: 0.05194559795 | J62: 0.04363086021 | K62: 0.1012276956
A63: 62 | B63: 0.04476284681 | C63: 0.06145442927 | D63: 0.04028565031 | E63: 0.05628160731 | F63: 0.07285942791 | G63: 0.04636420295 | H63: 0.06710290751 | I63: 0.05113853321 | J63: 0.04361779613 | K63: 0.1011672461
A64: 63 | B64: 0.04468703451 | C64: 0.06316289483 | D64: 0.04016274425 | E64: 0.05555747813 | F64: 0.07254860235 | G64: 0.04523325418 | H64: 0.06768513632 | I64: 0.04915696708 | J64: 0.04273828415 | K64: 0.1028250562
A65: 64 | B65: 0.04615474818 | C65: 0.06253574444 | D65: 0.03833806044 | E65: 0.05332133142 | F65: 0.07324011302 | G65: 0.0451430646 | H65: 0.06818722851 | I65: 0.04771826526 | J65: 0.04162383979 | K65: 0.1050577438
A66: 65 | B66: 0.04646716663 | C66: 0.06727580991 | D66: 0.03748664769 | E66: 0.05010470067 | F66: 0.07717075502 | G66: 0.04378285291 | H66: 0.07089519414 | I66: 0.05037176489 | J66: 0.04512651972 | K66: 0.1005855912
A67: 66 | B67: 0.04749888513 | C67: 0.06669480522 | D67: 0.03628512301 | E67: 0.05215946081 | F67: 0.08007753643 | G67: 0.04292913561 | H67: 0.0720056877 | I67: 0.0503085027 | J67: 0.04494094314 | K67: 0.1004149121
A68: 67 | B68: 0.04903805144 | C68: 0.06649527281 | D68: 0.03613315702 | E68: 0.05137115031 | F68: 0.08023641618 | G68: 0.04327512416 | H68: 0.0734627892 | I68: 0.04610289405 | J68: 0.0445556226 | K68: 0.1004475925
A69: 68 | B69: 0.0502401768 | C69: 0.06656121032 | D69: 0.03583790996 | E69: 0.05032769231 | F69: 0.08060486691 | G69: 0.04430919129 | H69: 0.07394129944 | I69: 0.04661635896 | J69: 0.0456569867 | K69: 0.1018400282
A70: 69 | B70: 0.05239188433 | C70: 0.06580006004 | D70: 0.03707317043 | E70: 0.05104054786 | F70: 0.07775374445 | G70: 0.04447376116 | H70: 0.07112853229 | I70: 0.04698962399 | J70: 0.0446289758 | K70: 0.1052213789
A71: 70 | B71: 0.05154640601 | C71: 0.06748150999 | D71: 0.0363755319 | E71: 0.04889120582 | F71: 0.07823126662 | G71: 0.04335475401 | H71: 0.07184437539 | I71: 0.04608872117 | J71: 0.04534648959 | K71: 0.107420795
A72: 71 | B72: 0.05081781139 | C72: 0.06691010808 | D72: 0.03705127711 | E72: 0.04922809821 | F72: 0.07928963821 | G72: 0.04191547491 | H72: 0.07035919308 | I72: 0.04917585039 | J72: 0.0464792437 | K72: 0.1060585123
A73: 72 | B73: 0.05169388454 | C73: 0.06975495768 | D73: 0.03721591925 | E73: 0.04997101595 | F73: 0.08129218584 | G73: 0.04059527107 | H73: 0.06867131828 | I73: 0.04890754815 | J73: 0.04733001769 | K73: 0.1070645817
A74: 73 | B74: 0.05268414953 | C74: 0.07058837963 | D74: 0.03716870866 | E74: 0.05043446602 | F74: 0.08206063931 | G74: 0.03920123173 | H74: 0.07074404665 | I74: 0.04788291754 | J74: 0.04926141937 | K74: 0.09972811078
A75: 74 | B75: 0.05463967539 | C75: 0.07099365999 | D75: 0.0378339652 | E75: 0.05181531804 | F75: 0.0799655142 | G75: 0.03824679038 | H75: 0.07136974936 | I75: 0.04521331047 | J75: 0.0518276883 | K75: 0.09896563338
A76: 75 | B76: 0.05416112003 | C76: 0.07022740248 | D76: 0.036412672 | E76: 0.05355483279 | F76: 0.07943721181 | G76: 0.04006165964 | H76: 0.06766083715 | I76: 0.0446980773 | J76: 0.05098080141 | K76: 0.1010106572
A77: 76 | B77: 0.05710092094 | C77: 0.07287215543 | D77: 0.03595627461 | E77: 0.05205573902 | F77: 0.07899262007 | G77: 0.04090611817 | H77: 0.06963109827 | I77: 0.04486543166 | J77: 0.05175761496 | K77: 0.1021250184
A78: 77 | B78: 0.05739181691 | C78: 0.07420650526 | D78: 0.03672076958 | E78: 0.05243463489 | F78: 0.07834523556 | G78: 0.04286365815 | H78: 0.07044144385 | I78: 0.04378652726 | J78: 0.05264521819 | K78: 0.101723427
A79: 78 | B79: 0.05912628612 | C79: 0.07455812002 | D79: 0.0367125552 | E79: 0.05291552383 | F79: 0.07832309682 | G79: 0.04270295495 | H79: 0.07348266581 | I79: 0.04271793304 | J79: 0.05445483989 | K79: 0.09730835655
A80: 79 | B80: 0.05908546358 | C80: 0.07647483318 | D80: 0.03725708769 | E80: 0.05415657008 | F80: 0.08104928192 | G80: 0.04064000438 | H80: 0.07109651421 | I80: 0.04454545954 | J80: 0.05202987297 | K80: 0.09536547013
A81: 80 | B81: 0.05955974803 | C81: 0.08096265698 | D81: 0.03623201597 | E81: 0.056792958 | F81: 0.08536142438 | G81: 0.04130095945 | H81: 0.0727559053 | I81: 0.04643481175 | J81: 0.05463137778 | K81: 0.09358766743
A82: 81 | B82: 0.06243420635 | C82: 0.08201494399 | D82: 0.03488165102 | E82: 0.05857394786 | F82: 0.08259086868 | G82: 0.03954537776 | H82: 0.07437243731 | I82: 0.04638554745 | J82: 0.05485397749 | K82: 0.09159962456
A83: 82 | B83: 0.06029685026 | C83: 0.08301989204 | D83: 0.03518558199 | E83: 0.05830809449 | F83: 0.08430370511 | G83: 0.03825378949 | H83: 0.07449514821 | I83: 0.04688519204 | J83: 0.05642546742 | K83: 0.09045019039
A84: 83 | B84: 0.06263118367 | C84: 0.0825413046 | D84: 0.03559553939 | E84: 0.05935267519 | F84: 0.088259628 | G84: 0.03723107978 | H84: 0.07462992477 | I84: 0.04837209852 | J84: 0.05508038282 | K84: 0.08550166689
A85: 84 | B85: 0.06276088758 | C85: 0.08007584973 | D85: 0.03501024117 | E85: 0.05700355296 | F85: 0.09210948627 | G85: 0.0354705843 | H85: 0.0715428029 | I85: 0.04809564702 | J85: 0.0554920402 | K85: 0.08871446685
A86: 85 | B86: 0.06247541771 | C86: 0.08118410532 | D86: 0.03546355934 | E86: 0.05697657415 | F86: 0.0905867899 | G86: 0.0354348581 | H86: 0.070047054 | I86: 0.0492005453 | J86: 0.05800934629 | K86: 0.08407313153
A87: 86 | B87: 0.06224496725 | C87: 0.07818223585 | D87: 0.0363110123 | E87: 0.05866349599 | F87: 0.0897038331 | G87: 0.03403939 | H87: 0.06990128862 | I87: 0.04882533647 | J87: 0.05966155163 | K87: 0.08499217401
A88: 87 | B88: 0.06187475146 | C88: 0.07741430142 | D88: 0.03392297548 | E88: 0.05974870521 | F88: 0.08923623326 | G88: 0.03441433902 | H88: 0.06606757042 | I88: 0.04994140081 | J88: 0.06027118379 | K88: 0.08786289645
A89: 88 | B89: 0.06194147192 | C89: 0.0782237486 | D89: 0.03457516579 | E89: 0.05991381011 | F89: 0.08747197534 | G89: 0.03401579871 | H89: 0.06561663572 | I89: 0.04826488347 | J89: 0.05908750349 | K89: 0.09061288494
A90: 89 | B90: 0.06059184331 | C90: 0.07692156679 | D90: 0.03415960366 | E90: 0.05806580768 | F90: 0.08912124608 | G90: 0.03341514449 | H90: 0.06084702784 | I90: 0.04783199924 | J90: 0.05877477644 | K90: 0.08817168319
A91: 90 | B91: 0.05816303655 | C91: 0.0776151751 | D91: 0.03417872228 | E91: 0.05732246881 | F91: 0.09378593922 | G91: 0.03203928664 | H91: 0.06080410876 | I91: 0.04629443444 | J91: 0.05851542796 | K91: 0.08648533454
A92: 91 | B92: 0.05698555358 | C92: 0.07675739654 | D92: 0.03422445864 | E92: 0.05665164866 | F92: 0.09665462024 | G92: 0.03192197333 | H92: 0.06244842166 | I92: 0.04437521425 | J92: 0.05812456096 | K92: 0.08526784068
A93: 92 | B93: 0.05848539459 | C93: 0.07639030591 | D93: 0.03418956704 | E93: 0.05585232431 | F93: 0.09719058347 | G93: 0.03136803564 | H93: 0.05956888059 | I93: 0.04653152659 | J93: 0.05814791765 | K93: 0.08267170508
A94: 93 | B94: 0.05780530876 | C94: 0.07926410521 | D94: 0.03440198202 | E94: 0.0552335054 | F94: 0.09484532284 | G94: 0.03026912988 | H94: 0.06122960005 | I94: 0.04598681358 | J94: 0.05681506987 | K94: 0.0831636463
A95: 94 | B95: 0.05472723711 | C95: 0.08039503535 | D95: 0.0330458256 | E95: 0.05223019601 | F95: 0.09308788646 | G95: 0.02998117431 | H95: 0.06259884633 | I95: 0.04522833453 | J95: 0.05435413159 | K95: 0.08570330066
A96: 95 | B96: 0.05476427056 | C96: 0.08122092345 | D96: 0.03222893082 | E96: 0.05426422552 | F96: 0.09428837565 | G96: 0.03012884584 | H96: 0.06335137237 | I96: 0.04600239443 | J96: 0.05319760712 | K96: 0.08712043633
A97: 96 | B97: 0.05379300471 | C97: 0.08135223433 | D97: 0.03179966628 | E97: 0.05612110297 | F97: 0.0919364382 | G97: 0.02953005563 | H97: 0.05817564053 | I97: 0.04571622153 | J97: 0.05454763417 | K97: 0.08657736372
A98: 97 | B98: 0.05483372409 | C98: 0.08386523023 | D98: 0.03336746307 | E98: 0.05788888615 | F98: 0.09057946018 | G98: 0.02893677834 | H98: 0.0610029353 | I98: 0.04612282662 | J98: 0.05165267599 | K98: 0.08230516575
A99: 98 | B99: 0.05402740889 | C99: 0.0858951759 | D99: 0.03245293138 | E99: 0.05633968483 | F99: 0.0911669104 | G99: 0.03145719936 | H99: 0.06058273082 | I99: 0.04692019922 | J99: 0.04826961895 | K99: 0.07930498936
A100: 99 | B100: 0.05613894092 | C100: 0.08415374758 | D100: 0.03153430271 | E100: 0.05527515294 | F100: 0.0913101885 | G100: 0.03196532455 | H100: 0.06189488139 | I100: 0.04744800474 | J100: 0.04789721978 | K100: 0.07947714614
A101: 100 | B101: 0.05645202266 | C101: 0.08517677887 | D101: 0.03141559015 | E101: 0.0545108224 | F101: 0.08849717102 | G101: 0.03131883077 | H101: 0.06520382512 | I101: 0.04889747139 | J101: 0.04779296883 | K101: 0.07527717652
A102: 101 | B102: 0.05642122644 | C102: 0.08241399187 | D102: 0.0314587199 | E102: 0.05285753622 | F102: 0.08820984422 | G102: 0.03170404234 | H102: 0.06264448989 | I102: 0.0476373699 | J102: 0.04787698726 | K102: 0.07305895761
A103: 102 | B103: 0.05548755977 | C103: 0.0808573742 | D103: 0.03162602277 | E103: 0.05342600837 | F103: 0.09140209467 | G103: 0.03299603006 | H103: 0.05779098807 | I103: 0.04653509088 | J103: 0.04737515573 | K103: 0.07281939209
A104: 103 | B104: 0.05621216345 | C104: 0.07872440259 | D104: 0.03142503806 | E104: 0.05549872526 | F104: 0.09467624101 | G104: 0.03215002673 | H104: 0.05672335226 | I104: 0.04700728435 | J104: 0.04863491842 | K104: 0.07363146117
A105: 104 | B105: 0.05614397329 | C105: 0.07826833058 | D105: 0.03285553142 | E105: 0.05671186962 | F105: 0.09435899473 | G105: 0.03303145628 | H105: 0.0571096762 | I105: 0.04757286921 | J105: 0.04671575312 | K105: 0.07834509758
A106: 105 | B106: 0.05535917206 | C106: 0.07817534551 | D106: 0.0320598168 | E106: 0.05661215839 | F106: 0.09517362688 | G106: 0.03211353757 | H106: 0.05756939431 | I106: 0.04886358076 | J106: 0.04883567658 | K106: 0.07710904327
A107: 106 | B107: 0.05566713617 | C107: 0.07974747754 | D107: 0.03080072197 | E107: 0.05464932232 | F107: 0.09780300491 | G107: 0.03330276175 | H107: 0.06137074515 | I107: 0.04808328334 | J107: 0.04948217098 | K107: 0.08276100213
A108: 107 | B108: 0.05692989456 | C108: 0.07749255884 | D108: 0.03141662545 | E108: 0.0531472058 | F108: 0.09701278586 | G108: 0.03554621806 | H108: 0.05769012301 | I108: 0.04989106253 | J108: 0.04883400713 | K108: 0.08448490339
A109: 108 | B109: 0.05667631549 | C109: 0.07560636709 | D109: 0.03116828048 | E109: 0.05346763907 | F109: 0.09897024491 | G109: 0.03537796709 | H109: 0.056449334 | I109: 0.04985174716 | J109: 0.04839150424 | K109: 0.0831484966
A110: 109 | B110: 0.05640215893 | C110: 0.07504294316 | D110: 0.03102650091 | E110: 0.0515684889 | F110: 0.09797802105 | G110: 0.03460707185 | H110: 0.05724400004 | I110: 0.05095847447 | J110: 0.04938879356 | K110: 0.08454893077
A111: 110 | B111: 0.05506653257 | C111: 0.07552957976 | D111: 0.03200467102 | E111: 0.05040035254 | F111: 0.1004755782 | G111: 0.0337133876 | H111: 0.0564846105 | I111: 0.05063121397 | J111: 0.04869783994 | K111: 0.08578629357
A112: 111 | B112: 0.05785866571 | C112: 0.07546960238 | D112: 0.03171703679 | E112: 0.05040805349 | F112: 0.09732784778 | G112: 0.03238383636 | H112: 0.05834739608 | I112: 0.05075664118 | J112: 0.04838312244 | K112: 0.08397934963
A113: 112 | B113: 0.057618058 | C113: 0.08152608989 | D113: 0.03163508144 | E113: 0.05114368595 | F113: 0.09858665074 | G113: 0.03218839327 | H113: 0.05681126386 | I113: 0.05250945881 | J113: 0.04901894728 | K113: 0.08666641188
A114: 113 | B114: 0.05975605431 | C114: 0.0805338172 | D114: 0.03223953073 | E114: 0.04883980541 | F114: 0.09559776578 | G114: 0.03186463303 | H114: 0.05822964383 | I114: 0.04964731809 | J114: 0.05047961244 | K114: 0.08463440982
A115: 114 | B115: 0.05787184167 | C115: 0.08171750319 | D115: 0.03264199915 | E115: 0.04836389538 | F115: 0.09491921759 | G115: 0.0326643948 | H115: 0.06052953464 | I115: 0.05110255752 | J115: 0.04955254661 | K115: 0.08810527598
A116: 115 | B116: 0.0574125375 | C116: 0.07809117978 | D116: 0.0322376046 | E116: 0.04642301296 | F116: 0.09327265261 | G116: 0.03196314052 | H116: 0.05959229778 | I116: 0.05097260434 | J116: 0.04968598671 | K116: 0.09380845611
A117: 116 | B117: 0.05499228967 | C117: 0.07790008474 | D117: 0.03244965512 | E117: 0.04778554225 | F117: 0.09426408663 | G117: 0.03243179497 | H117: 0.05940142714 | I117: 0.05049726959 | J117: 0.04885227253 | K117: 0.09380076694
A118: 117 | B118: 0.05452347236 | C118: 0.07706880575 | D118: 0.0313404549 | E118: 0.04739624551 | F118: 0.09291095738 | G118: 0.03326029034 | H118: 0.06076006387 | I118: 0.05007665955 | J118: 0.05150653602 | K118: 0.1000696062
A119: 118 | B119: 0.05278475349 | C119: 0.07463570064 | D119: 0.03029827783 | E119: 0.04855948221 | F119: 0.09470693691 | G119: 0.0338378737 | H119: 0.06249230352 | I119: 0.049542774 | J119: 0.05166344127 | K119: 0.09775333742
A120: 119 | B120: 0.05156792115 | C120: 0.07616458302 | D120: 0.03056800796 | E120: 0.04962757302 | F120: 0.09431936478 | G120: 0.03584099123 | H120: 0.06406348896 | I120: 0.04938390593 | J120: 0.05387445888 | K120: 0.09409190032
A121: 120 | B121: 0.05236311133 | C121: 0.07911925244 | D121: 0.03130799931 | E121: 0.04897020021 | F121: 0.09535954434 | G121: 0.03402198795 | H121: 0.06623491311 | I121: 0.04793028526 | J121: 0.05592988392 | K121: 0.09379425898
A122: 121 | B122: 0.05225336849 | C122: 0.08226324679 | D122: 0.02995148406 | E122: 0.05106127658 | F122: 0.09720798879 | G122: 0.03349388451 | H122: 0.06685091055 | I122: 0.05118013199 | J122: 0.05580202048 | K122: 0.09311234768
A123: 122 | B123: 0.0519629357 | C123: 0.0850854475 | D123: 0.03010192204 | E123: 0.05026241948 | F123: 0.09850163775 | G123: 0.03401917042 | H123: 0.06681182055 | I123: 0.04966959265 | J123: 0.05364185004 | K123: 0.09568482833
A124: 123 | B124: 0.0512293445 | C124: 0.0895723072 | D124: 0.03271178978 | E124: 0.05316695049 | F124: 0.1017045889 | G124: 0.03463052478 | H124: 0.0674425326 | I124: 0.05061212629 | J124: 0.0525367461 | K124: 0.09387234386
A125: 124 | B125: 0.05184575081 | C125: 0.09080917976 | D125: 0.03277131682 | E125: 0.05084896657 | F125: 0.09926548453 | G125: 0.03617449769 | H125: 0.06563307966 | I125: 0.04967788596 | J125: 0.05274929766 | K125: 0.09549547381
A126: 125 | B126: 0.05222800486 | C126: 0.09112764168 | D126: 0.03121305312 | E126: 0.04989208695 | F126: 0.09937410328 | G126: 0.0349409513 | H126: 0.06675214343 | I126: 0.05211977247 | J126: 0.0509846351 | K126: 0.09599825838
A127: 126 | B127: 0.04988847796 | C127: 0.09238698158 | D127: 0.03086853865 | E127: 0.04764209104 | F127: 0.1005311419 | G127: 0.03314273613 | H127: 0.06650244055 | I127: 0.0512689252 | J127: 0.05018170556 | K127: 0.09598217511
A128: 127 | B128: 0.04978291776 | C128: 0.0907613993 | D128: 0.03190254463 | E128: 0.04690659828 | F128: 0.101888356 | G128: 0.03331161999 | H128: 0.06777211395 | I128: 0.05074578758 | J128: 0.04897015066 | K128: 0.09758236642
A129: 128 | B129: 0.05215644496 | C129: 0.09090073907 | D129: 0.03154735289 | E129: 0.04600712039 | F129: 0.104795351 | G129: 0.03450124204 | H129: 0.06943828394 | I129: 0.05044372144 | J129: 0.04906539982 | K129: 0.09281185721
A130: 129 | B130: 0.04989870141 | C130: 0.09094301138 | D130: 0.03169235446 | E130: 0.04686036908 | F130: 0.1032617553 | G130: 0.03379216311 | H130: 0.07145791496 | I130: 0.04948543173 | J130: 0.04894666371 | K130: 0.09267051455
A131: 130 | B131: 0.05330993448 | C131: 0.09325314329 | D131: 0.03156585905 | E131: 0.04547453952 | F131: 0.1007091926 | G131: 0.03407908388 | H131: 0.07252844478 | I131: 0.05038572932 | J131: 0.04617279207 | K131: 0.09366623573
A132: 131 | B132: 0.05203434473 | C132: 0.09637073557 | D132: 0.03240734645 | E132: 0.04577444061 | F132: 0.1028820167 | G132: 0.03215948666 | H132: 0.0703752666 | I132: 0.0508050098 | J132: 0.04564785585 | K132: 0.0905259215
A133: 132 | B133: 0.05109500601 | C133: 0.100410389 | D133: 0.03233277993 | E133: 0.0454992944 | F133: 0.1053839953 | G133: 0.03337857086 | H133: 0.07166031652 | I133: 0.05131995503 | J133: 0.04725943941 | K133: 0.08575578806
A134: 133 | B134: 0.05126246705 | C134: 0.1000644996 | D134: 0.03405043306 | E134: 0.04498577587 | F134: 0.1049237911 | G134: 0.03382511655 | H134: 0.07074213877 | I134: 0.05094502225 | J134: 0.04787934319 | K134: 0.08628551676
A135: 134 | B135: 0.05408957035 | C135: 0.09753177226 | D135: 0.03425380439 | E135: 0.04528118182 | F135: 0.1053983427 | G135: 0.03328849921 | H135: 0.07450616891 | I135: 0.05211243993 | J135: 0.0481739069 | K135: 0.08704209917
A136: 135 | B136: 0.04961136926 | C136: 0.09226172745 | D136: 0.03515218504 | E136: 0.04301671611 | F136: 0.1092403337 | G136: 0.03319126442 | H136: 0.07726576162 | I136: 0.05257661397 | J136: 0.04979681136 | K136: 0.08537533109
A137: 136 | B137: 0.04833204117 | C137: 0.09242279191 | D137: 0.03711388914 | E137: 0.04207629999 | F137: 0.1033421956 | G137: 0.03312138381 | H137: 0.07843878992 | I137: 0.05231833547 | J137: 0.04840401735 | K137: 0.08622840757
A138: 137 | B138: 0.04788807732 | C138: 0.09297029243 | D138: 0.03825549894 | E138: 0.04250331058 | F138: 0.1065699744 | G138: 0.03297791793 | H138: 0.0749241502 | I138: 0.05311840135 | J138: 0.04809135168 | K138: 0.08782200298
A139: 138 | B139: 0.04708082264 | C139: 0.08910673769 | D139: 0.03677127552 | E139: 0.04210963545 | F139: 0.1065031239 | G139: 0.03306378242 | H139: 0.07758791476 | I139: 0.05474356811 | J139: 0.05002915031 | K139: 0.09107761753
A140: 139 | B140: 0.04844128257 | C140: 0.0892380007 | D140: 0.03639801297 | E140: 0.04231663807 | F140: 0.1033869374 | G140: 0.03244777235 | H140: 0.07895622514 | I140: 0.05501193712 | J140: 0.05034239781 | K140: 0.09229773016
A141: 140 | B141: 0.04698020084 | C141: 0.0901217675 | D141: 0.03681757106 | E141: 0.04074786418 | F141: 0.1010865194 | G141: 0.03143251417 | H141: 0.08290747156 | I141: 0.05525003437 | J141: 0.05168210914 | K141: 0.09083766317
A142: 141 | B142: 0.04700733348 | C142: 0.08531814276 | D142: 0.03784965466 | E142: 0.03876026651 | F142: 0.09625355142 | G142: 0.03088639712 | H142: 0.0806919144 | I142: 0.05428992913 | J142: 0.05059455385 | K142: 0.09058277705
A143: 142 | B143: 0.04868002487 | C143: 0.08269204995 | D143: 0.03907660116 | E143: 0.03876088234 | F143: 0.09306424391 | G143: 0.03184921114 | H143: 0.08304707034 | I143: 0.05687578798 | J143: 0.04914912822 | K143: 0.09040229397
A144: 143 | B144: 0.04778523071 | C144: 0.08263617947 | D144: 0.03737366411 | E144: 0.03887232551 | F144: 0.0910456095 | G144: 0.03075028852 | H144: 0.08536759429 | I144: 0.05714923194 | J144: 0.0499585772 | K144: 0.0900205543
A145: 144 | B145: 0.04640327758 | C145: 0.08527783834 | D145: 0.03723818901 | E145: 0.03792045718 | F145: 0.09121622323 | G145: 0.0296438206 | H145: 0.08596621369 | I145: 0.05944755073 | J145: 0.05098231703 | K145: 0.09026397847
A146: 145 | B146: 0.04859573311 | C146: 0.08526432954 | D146: 0.03684205136 | E146: 0.03808650052 | F146: 0.08805426441 | G146: 0.02944975721 | H146: 0.08489457687 | I146: 0.05775867214 | J146: 0.05039083455 | K146: 0.08423685426
A147: 146 | B147: 0.048779961 | C147: 0.08361551674 | D147: 0.0345573261 | E147: 0.03861946124 | F147: 0.08493545124 | G147: 0.02929828364 | H147: 0.08736707183 | I147: 0.05779138833 | J147: 0.05150561515 | K147: 0.08164830124
A148: 147 | B148: 0.04961758884 | C148: 0.08665807085 | D148: 0.0328543645 | E148: 0.04024789949 | F148: 0.08400527027 | G148: 0.03060602897 | H148: 0.08590821386 | I148: 0.05395253295 | J148: 0.05392236697 | K148: 0.08030313315
A149: 148 | B149: 0.05050048833 | C149: 0.08466939534 | D149: 0.0331302823 | E149: 0.04058287556 | F149: 0.08192221566 | G149: 0.03009573625 | H149: 0.08608337499 | I149: 0.05396301081 | J149: 0.05164532536 | K149: 0.08284760269
A150: 149 | B150: 0.05124354424 | C150: 0.08261479117 | D150: 0.03376857741 | E150: 0.03972113324 | F150: 0.08025676134 | G150: 0.02850627639 | H150: 0.08810224153 | I150: 0.05234263135 | J150: 0.05327357001 | K150: 0.08001856957
A151: 150 | B151: 0.05243918716 | C151: 0.08456140029 | D151: 0.03270133262 | E151: 0.03938177479 | F151: 0.07760972641 | G151: 0.02933818816 | H151: 0.08772774528 | I151: 0.05144474831 | J151: 0.052814317 | K151: 0.07715751063
A152: 151 | B152: 0.05241518993 | C152: 0.08361410241 | D152: 0.03213545155 | E152: 0.03908157534 | F152: 0.07791895966 | G152: 0.02941349134 | H152: 0.08958247321 | I152: 0.05266098949 | J152: 0.05305905986 | K152: 0.07672670074
A153: 152 | B153: 0.05188559375 | C153: 0.08527321122 | D153: 0.03097346414 | E153: 0.03870058722 | F153: 0.07566185131 | G153: 0.02958760391 | H153: 0.08958713247 | I153: 0.05300149738 | J153: 0.05334843839 | K153: 0.07669546348
A154: 153 | B154: 0.05188737561 | C154: 0.08469978699 | D154: 0.03140742649 | E154: 0.03859848399 | F154: 0.077088768 | G154: 0.03068292236 | H154: 0.09009607467 | I154: 0.05314391781 | J154: 0.05349265774 | K154: 0.0769567575
A155: 154 | B155: 0.04998731574 | C155: 0.08465474213 | D155: 0.03160297751 | E155: 0.03658785338 | F155: 0.07817096203 | G155: 0.03071158484 | H155: 0.08613052722 | I155: 0.05277807557 | J155: 0.05408985122 | K155: 0.07632775697
A156: 155 | B156: 0.04942174286 | C156: 0.08137459855 | D156: 0.03182229133 | E156: 0.03535247253 | F156: 0.07710590412 | G156: 0.0309411716 | H156: 0.08864376844 | I156: 0.05382951976 | J156: 0.05237001094 | K156: 0.07871708111
A157: 156 | B157: 0.04881763939 | C157: 0.08141881799 | D157: 0.03196140642 | E157: 0.03459590135 | F157: 0.07477094005 | G157: 0.03178643837 | H157: 0.0907324054 | I157: 0.05465479076 | J157: 0.05128479331 | K157: 0.07643599225
A158: 157 | B158: 0.04933407058 | C158: 0.08346115851 | D158: 0.03234300083 | E158: 0.03567702921 | F158: 0.07474944542 | G158: 0.03333899235 | H158: 0.09192163419 | I158: 0.05866126937 | J158: 0.05074942771 | K158: 0.06990667634
A159: 158 | B159: 0.05012795045 | C159: 0.08421093313 | D159: 0.03202893694 | E159: 0.03438664549 | F159: 0.07373636745 | G159: 0.0332074321 | H159: 0.08574173667 | I159: 0.05886782876 | J159: 0.04831774194 | K159: 0.07113357291
A160: 159 | B160: 0.05116031389 | C160: 0.08057313312 | D160: 0.03202112867 | E160: 0.0331097139 | F160: 0.07176776819 | G160: 0.03371500336 | H160: 0.09005646076 | I160: 0.06145484467 | J160: 0.04728598143 | K160: 0.07052775331
A161: 160 | B161: 0.05151796941 | C161: 0.07653095586 | D161: 0.03235225968 | E161: 0.03274830285 | F161: 0.07130172164 | G161: 0.03361120741 | H161: 0.08950070406 | I161: 0.06614012211 | J161: 0.04624147426 | K161: 0.07017700643
A162: 161 | B162: 0.049551458 | C162: 0.0757005215 | D162: 0.03037746839 | E162: 0.03256089057 | F162: 0.07193230763 | G162: 0.03244004828 | H162: 0.09192042511 | I162: 0.0693152496 | J162: 0.04627430174 | K162: 0.07198602443
A163: 162 | B163: 0.04911846379 | C163: 0.07834032482 | D163: 0.03033919402 | E163: 0.0325028827 | F163: 0.07078947319 | G163: 0.03298548078 | H163: 0.09055843809 | I163: 0.06770880817 | J163: 0.04656327313 | K163: 0.07129932137
A164: 163 | B164: 0.04813738652 | C164: 0.07686946973 | D164: 0.03027003403 | E164: 0.03207640271 | F164: 0.06965169009 | G164: 0.03100772786 | H164: 0.09003558979 | I164: 0.06663239794 | J164: 0.04706374491 | K164: 0.07109751177
A165: 164 | B165: 0.05025359607 | C165: 0.07457051852 | D165: 0.03098632366 | E165: 0.03306044539 | F165: 0.06706817108 | G165: 0.03328963295 | H165: 0.08901691919 | I165: 0.06710354438 | J165: 0.046956741 | K165: 0.07230098197
A166: 165 | B166: 0.05053382892 | C166: 0.07188158086 | D166: 0.03116318659 | E166: 0.03201824795 | F166: 0.06464600516 | G166: 0.03370448198 | H166: 0.08948585856 | I166: 0.0701041212 | J166: 0.0446821005 | K166: 0.07312465905
A167: 166 | B167: 0.05098094143 | C167: 0.07063147504 | D167: 0.0314681127 | E167: 0.03040149147 | F167: 0.06502916729 | G167: 0.03313772325 | H167: 0.09034991544 | I167: 0.07353968813 | J167: 0.04389952788 | K167: 0.07216057127
A168: 167 | B168: 0.04822691224 | C168: 0.07115551171 | D168: 0.03059422725 | E168: 0.03078584166 | F168: 0.06641300322 | G168: 0.0335028662 | H168: 0.09370694045 | I168: 0.07143468556 | J168: 0.04263733603 | K168: 0.07260265357
A169: 168 | B169: 0.0484956107 | C169: 0.06676817133 | D169: 0.03088592506 | E169: 0.03036006997 | F169: 0.06336176253 | G169: 0.03316070675 | H169: 0.09245121036 | I169: 0.0708444179 | J169: 0.04404609944 | K169: 0.06926600101
A170: 169 | B170: 0.04908230275 | C170: 0.06581043289 | D170: 0.03015022512 | E170: 0.03004613032 | F170: 0.06350167569 | G170: 0.03305230076 | H170: 0.09143938148 | I170: 0.06963285475 | J170: 0.04392399891 | K170: 0.06619431541
A171: 170 | B171: 0.05117778009 | C171: 0.06365293092 | D171: 0.03086884045 | E171: 0.03072223295 | F171: 0.07031541728 | G171: 0.03424549241 | H171: 0.09166796729 | I171: 0.07157771231 | J171: 0.04395001761 | K171: 0.06677716827
A172: 171 | B172: 0.04952146605 | C172: 0.06254072552 | D172: 0.03145805278 | E172: 0.03027512528 | F172: 0.07022512878 | G172: 0.03159397392 | H172: 0.0932007682 | I172: 0.0690115439 | J172: 0.0409037958 | K172: 0.06821462012
A173: 172 | B173: 0.04962150754 | C173: 0.06376711954 | D173: 0.0311923241 | E173: 0.03003245199 | F173: 0.06669282549 | G173: 0.03126843381 | H173: 0.09400436928 | I173: 0.06915877651 | J173: 0.04081510265 | K173: 0.07228177065
A174: 173 | B174: 0.0507596954 | C174: 0.06433968265 | D174: 0.03039518445 | E174: 0.03040860499 | F174: 0.06575938172 | G174: 0.03051485884 | H174: 0.09157163945 | I174: 0.07144271949 | J174: 0.04099373463 | K174: 0.07252367203
A175: 174 | B175: 0.05194063907 | C175: 0.0628230908 | D175: 0.03053905674 | E175: 0.03061040603 | F175: 0.06595366947 | G175: 0.03079206849 | H175: 0.0915210329 | I175: 0.07010247333 | J175: 0.04234777772 | K175: 0.0752784509
A176: 175 | B176: 0.05065377518 | C176: 0.06154318915 | D176: 0.03027468881 | E176: 0.03007113192 | F176: 0.0650635538 | G176: 0.030937695 | H176: 0.09417717748 | I176: 0.0677362796 | J176: 0.04329551616 | K176: 0.07535995197
A177: 176 | B177: 0.04930986621 | C177: 0.06442617955 | D177: 0.02960426711 | E177: 0.0301103451 | F177: 0.06396755125 | G177: 0.03218500395 | H177: 0.09221217696 | I177: 0.07047197467 | J177: 0.0430255594 | K177: 0.07920669721
A178: 177 | B178: 0.0500858039 | C178: 0.0631485762 | D178: 0.02930843831 | E178: 0.0288445482 | F178: 0.06230991735 | G178: 0.03194933329 | H178: 0.09292716391 | I178: 0.07086696209 | J178: 0.04363977344 | K178: 0.07809299985
A179: 178 | B179: 0.04951348411 | C179: 0.06239232899 | D179: 0.02960700645 | E179: 0.02766530643 | F179: 0.06235830143 | G179: 0.03287697625 | H179: 0.09290542901 | I179: 0.07215971322 | J179: 0.04254495693 | K179: 0.0800381093
A180: 179 | B180: 0.05019487209 | C180: 0.06235550645 | D180: 0.02923662599 | E180: 0.02777466398 | F180: 0.06214775115 | G180: 0.03341917687 | H180: 0.09146511017 | I180: 0.07351220921 | J180: 0.04150642959 | K180: 0.07892400552
A181: 180 | B181: 0.04984998584 | C181: 0.06141678724 | D181: 0.02888727763 | E181: 0.02826987907 | F181: 0.06541098961 | G181: 0.03377931456 | H181: 0.09475449333 | I181: 0.07468229988 | J181: 0.04218736995 | K181: 0.07909914863
A182: 181 | B182: 0.04979232406 | C182: 0.05763037006 | D182: 0.02979046824 | E182: 0.02668339572 | F182: 0.0657329152 | G182: 0.03471714597 | H182: 0.09066923088 | I182: 0.07642916934 | J182: 0.04396561053 | K182: 0.07860732583
A183: 182 | B183: 0.04715687717 | C183: 0.05583464814 | D183: 0.03116270427 | E183: 0.02670205442 | F183: 0.06739148236 | G183: 0.03347345319 | H183: 0.08705017826 | I183: 0.07652410066 | J183: 0.04258556798 | K183: 0.080230269
A184: 183 | B184: 0.04716446637 | C184: 0.05418416249 | D184: 0.03040591949 | E184: 0.02786013806 | F184: 0.07112767006 | G184: 0.03342899648 | H184: 0.08831507052 | I184: 0.07584060363 | J184: 0.04305108098 | K184: 0.07988170959
A185: 184 | B185: 0.04797577223 | C185: 0.05243855713 | D185: 0.03120114784 | E185: 0.02781485694 | F185: 0.07324884292 | G185: 0.03443532119 | H185: 0.08785863884 | I185: 0.07596817094 | J185: 0.04131146058 | K185: 0.08251973729
A186: 185 | B186: 0.04831665533 | C186: 0.0512449972 | D186: 0.03383057494 | E186: 0.02602864206 | F186: 0.07034086974 | G186: 0.03481414676 | H186: 0.08859533371 | I186: 0.072248828 | J186: 0.04171055829 | K186: 0.08284941749
A187: 186 | B187: 0.05178228451 | C187: 0.05180881566 | D187: 0.03459317199 | E187: 0.02566041567 | F187: 0.06955835432 | G187: 0.03566703979 | H187: 0.08634612733 | I187: 0.0715133652 | J187: 0.04036764635 | K187: 0.08454130914
A188: 187 | B188: 0.05383017714 | C188: 0.05305339019 | D188: 0.03354970429 | E188: 0.02635027212 | F188: 0.06889095994 | G188: 0.03495373042 | H188: 0.08574240381 | I188: 0.07070899552 | J188: 0.04018807577 | K188: 0.08732178536
A189: 188 | B189: 0.05306201403 | C189: 0.05636810802 | D189: 0.0338414023 | E189: 0.0259797111 | F189: 0.07078683944 | G189: 0.03365926096 | H189: 0.08505589337 | I189: 0.07157171408 | J189: 0.0377396678 | K189: 0.08935205599
A190: 189 | B190: 0.05404407103 | C190: 0.05624889522 | D190: 0.03470697812 | E190: 0.02602371356 | F190: 0.07304841921 | G190: 0.03429733624 | H190: 0.0880975144 | I190: 0.07280726903 | J190: 0.03762946014 | K190: 0.08444544443
A191: 190 | B191: 0.05281903544 | C191: 0.05732737185 | D191: 0.03499746238 | E191: 0.02584931028 | F191: 0.06983151599 | G191: 0.03503031814 | H191: 0.08224982121 | I191: 0.07434996229 | J191: 0.03815056396 | K191: 0.0835133962
A192: 191 | B192: 0.05080769335 | C192: 0.05831446064 | D192: 0.03515506221 | E192: 0.02641053328 | F192: 0.06953937136 | G192: 0.03478546076 | H192: 0.07777800135 | I192: 0.0749940308 | J192: 0.03830543948 | K192: 0.08433200227
A193: 192 | B193: 0.04816661972 | C193: 0.05594563315 | D193: 0.0349670721 | E193: 0.02628157127 | F193: 0.06728940121 | G193: 0.03555608762 | H193: 0.07977162845 | I193: 0.07085526469 | J193: 0.040386743 | K193: 0.08620085162
A194: 193 | B194: 0.04716461852 | C194: 0.05417425706 | D194: 0.03572748271 | E194: 0.02728852799 | F194: 0.0681170606 | G194: 0.0366479169 | H194: 0.07783817707 | I194: 0.07034709747 | J194: 0.04059906253 | K194: 0.08832482972
A195: 194 | B195: 0.0473417951 | C195: 0.05276251195 | D195: 0.03633979753 | E195: 0.02738270363 | F195: 0.06467078956 | G195: 0.03850093468 | H195: 0.07764436712 | I195: 0.06891807144 | J195: 0.03887223469 | K195: 0.09473294219
A196: 195 | B196: 0.04878048996 | C196: 0.05041836154 | D196: 0.03883541894 | E196: 0.02797219075 | F196: 0.06511478142 | G196: 0.03946269198 | H196: 0.07661493356 | I196: 0.07158409005 | J196: 0.03951829682 | K196: 0.09415326138
A197: 196 | B197: 0.0478517184 | C197: 0.05037734436 | D197: 0.03980076244 | E197: 0.02905310871 | F197: 0.06627171324 | G197: 0.03927198758 | H197: 0.07390721731 | I197: 0.07213257054 | J197: 0.04188485848 | K197: 0.09290031118
A198: 197 | B198: 0.04555586646 | C198: 0.05164138951 | D198: 0.04157147949 | E198: 0.02978212105 | F198: 0.06774399698 | G198: 0.0395865245 | H198: 0.07550535808 | I198: 0.07291035792 | J198: 0.04012418921 | K198: 0.09637923437
A199: 198 | B199: 0.04452701147 | C199: 0.05216844689 | D199: 0.04443771078 | E199: 0.02846639204 | F199: 0.06257625406 | G199: 0.03992809832 | H199: 0.07793491954 | I199: 0.07688286742 | J199: 0.03775673455 | K199: 0.1007287302
A200: 199 | B200: 0.04507068291 | C200: 0.05151487181 | D200: 0.04657466893 | E200: 0.02812949381 | F200: 0.06370333587 | G200: 0.04017477 | H200: 0.07571909142 | I200: 0.07731197159 | J200: 0.0368624024 | K200: 0.1009192851
... 401 more rows

Sheet Stats of stats
B1: AveMon | C1: StdMon | D1: SkeMon | E1: KurMon | F1: MomMon | I1: AveSce | J1: StdSce | K1: SkeSce | L1: KurSce | M1: MonSce
A2: Average | B2: 0.06301388731 | C2: 0.005721732504 | D2: -2.463558296 | E2: 8.450348917 | F2: 104.8503592 | H2: Average Scenario | I2: 0.06301388731 | J2: 0.01830982708 | K2: 1.095792053 | L2: 5.697758833 | M2: 97.29048113
A3: Std deviation | B3: 0.03096158856 | C3: 0.008776500499 | D3: -2.694888254 | E3: 7.454972014 | F3: 57.58083838 | H3: Std deviation Scenario | I3: 0.02353406076 | J3: 0.01338967386 | K3: 4.739240309 | L3: 29.47893229 | M3: 900.7234198
A4: Skewness | B4: 1.625130186 | C4: 0.3841924765 | D4: -1.804000317 | E4: 7.639756853 | F4: 88.43179454 | H4: Skewness Scenario | I4: 0.5308883575 | J4: 0.5596643254 | K4: 0.3504250436 | L4: 3.556886227 | M4: 24.49358948
A5: Kurtosis | B5: 8.205981459 | C5: 1.841633634 | D5: 0.04739193514 | E5: 5.442763478 | F5: 46.09099197 | H5: Kurtosis Scenario | I5: 2.74572312 | J5: 1.111598729 | K5: 3.076116868 | L5: 19.17186591 | M5: 931.8526649
A6: 6th Moment | B6: 214.1992566 | C6: 105.8040475 | D6: 1.254092132 | E6: 5.367517967 | F6: 46.69316317 | H6: 6th Moment Scenario | I6: 13.33886308 | J6: 18.13832314 | K6: 8.144602923 | L6: 97.33211018 | M6: 16422.52138
